Department Family,Entity,Payment Date,Expense Type,Expense Area,Supplier,Transaction Number,Amount,Description
BIS,Skills Funding Agency,30/07/2014,Books,Communications & Campaigns - Corporate Communications,Agency Staff Member,SCLAIM_38696,3.80,Staff Expenses Claim
BIS,Skills Funding Agency,30/07/2014,Conference Fees,National Careers & Learner Services,Agency Staff Member,SCLAIM_38702,5.00,Staff Expenses Claim
BIS,Skills Funding Agency,30/07/2014,Diesel Car Mileage Passenger Supplement,Central Delivery Service - Leeds,Agency Staff Member,SCLAIM_38726,6.05,Staff Expenses Claim
BIS,Skills Funding Agency,30/07/2014,Diesel Car Mileage Passenger Supplement,Employer & Provider Services South East,Agency Staff Member,SCLAIM_38675,6.50,Staff Expenses Claim
BIS,Skills Funding Agency,30/07/2014,Diesel Car Mileage Passenger Supplement,Funding & Programmes - European Social Fund,Agency Staff Member,SCLAIM_38673,2.00,Staff Expenses Claim
BIS,Skills Funding Agency,30/07/2014,Diesel Car Mileage Passenger Supplement,Internal Audit,Agency Staff Member,SCLAIM_38707,13.00,Staff Expenses Claim
BIS,Skills Funding Agency,30/07/2014,Diesel Car Mileage Passenger Supplement,Large Companies Unit,Agency Staff Member,SCLAIM_38686,12.80,Staff Expenses Claim
BIS,Skills Funding Agency,30/07/2014,Diesel Car Mileage Passenger Supplement,National Careers & Learner Services,Agency Staff Member,SCLAIM_38711,11.30,Staff Expenses Claim
BIS,Skills Funding Agency,30/07/2014,Diesel Car Mileage Passenger Supplement,Southern Division,Agency Staff Member,SCLAIM_38748,6.00,Staff Expenses Claim
BIS,Skills Funding Agency,30/07/2014,Diesel Car Mileage,Central Delivery Service - European Social Fund - Audit Compliance,Agency Staff Member,SCLAIM_38731,396.90,Staff Expenses Claim
BIS,Skills Funding Agency,30/07/2014,Diesel Car Mileage,Central Delivery Service - Leeds,Agency Staff Member,SCLAIM_38684,106.20,Staff Expenses Claim
BIS,Skills Funding Agency,30/07/2014,Diesel Car Mileage,Central Delivery Service - Leeds,Agency Staff Member,SCLAIM_38726,209.70,Staff Expenses Claim
BIS,Skills Funding Agency,30/07/2014,Diesel Car Mileage,Central Division,Agency Staff Member,SCLAIM_38723,298.35,Staff Expenses Claim
BIS,Skills Funding Agency,30/07/2014,Diesel Car Mileage,Employer & Provider Services South East,Agency Staff Member,SCLAIM_38675,506.70,Staff Expenses Claim
BIS,Skills Funding Agency,30/07/2014,Diesel Car Mileage,Finance Division - Provider Finance,Agency Staff Member,SCLAIM_38482,5.40,Staff Expenses Claim
BIS,Skills Funding Agency,30/07/2014,Diesel Car Mileage,Finance Division - Provider Finance,Agency Staff Member,SCLAIM_38734,238.50,Staff Expenses Claim
BIS,Skills Funding Agency,30/07/2014,Diesel Car Mileage,Finance Division - Provider Financial Assurance Audit,Agency Staff Member,SCLAIM_38677,100.80,Staff Expenses Claim
BIS,Skills Funding Agency,30/07/2014,Diesel Car Mileage,Funding & Programmes - Employer Ownership Programme,Agency Staff Member,SCLAIM_38680,162.45,Staff Expenses Claim
BIS,Skills Funding Agency,30/07/2014,Diesel Car Mileage,Funding & Programmes - European Social Fund,Agency Staff Member,SCLAIM_38673,180.00,Staff Expenses Claim
BIS,Skills Funding Agency,30/07/2014,Diesel Car Mileage,Information Management Finance,Agency Staff Member,SCLAIM_38678,117.45,Staff Expenses Claim
BIS,Skills Funding Agency,30/07/2014,Diesel Car Mileage,Information Management Finance,Agency Staff Member,SCLAIM_38753,237.60,Staff Expenses Claim
BIS,Skills Funding Agency,30/07/2014,Diesel Car Mileage,Internal Audit,Agency Staff Member,SCLAIM_38707,235.80,Staff Expenses Claim
BIS,Skills Funding Agency,30/07/2014,Diesel Car Mileage,Large Companies Unit,Agency Staff Member,SCLAIM_38676,85.50,Staff Expenses Claim
BIS,Skills Funding Agency,30/07/2014,Diesel Car Mileage,Large Companies Unit,Agency Staff Member,SCLAIM_38685,170.10,Staff Expenses Claim
BIS,Skills Funding Agency,30/07/2014,Diesel Car Mileage,Large Companies Unit,Agency Staff Member,SCLAIM_38686,548.10,Staff Expenses Claim
BIS,Skills Funding Agency,30/07/2014,Diesel Car Mileage,Large Companies Unit,Agency Staff Member,SCLAIM_38721,621.90,Staff Expenses Claim
BIS,Skills Funding Agency,30/07/2014,Diesel Car Mileage,Large Companies Unit,Agency Staff Member,SCLAIM_38722,15.30,Staff Expenses Claim
BIS,Skills Funding Agency,30/07/2014,Diesel Car Mileage,National Careers & Learner Services,Agency Staff Member,SCLAIM_38702,171.90,Staff Expenses Claim
BIS,Skills Funding Agency,30/07/2014,Diesel Car Mileage,National Careers & Learner Services,Agency Staff Member,SCLAIM_38711,225.90,Staff Expenses Claim
BIS,Skills Funding Agency,30/07/2014,Diesel Car Mileage,Northern Division,Agency Staff Member,SCLAIM_38672,324.00,Staff Expenses Claim
BIS,Skills Funding Agency,30/07/2014,Diesel Car Mileage,Northern Division,Agency Staff Member,SCLAIM_38691,220.95,Staff Expenses Claim
BIS,Skills Funding Agency,30/07/2014,Diesel Car Mileage,Northern Division,Agency Staff Member,SCLAIM_38703,361.35,Staff Expenses Claim
BIS,Skills Funding Agency,30/07/2014,Diesel Car Mileage,Northern Division,Agency Staff Member,SCLAIM_38747,9.00,Staff Expenses Claim
BIS,Skills Funding Agency,30/07/2014,Diesel Car Mileage,Provider Financial Management & Assurance,Agency Staff Member,SCLAIM_38712,172.80,Staff Expenses Claim
BIS,Skills Funding Agency,30/07/2014,Diesel Car Mileage,Provider Financial Management & Assurance,Agency Staff Member,SCLAIM_38741,315.00,Staff Expenses Claim
BIS,Skills Funding Agency,30/07/2014,Diesel Car Mileage,Relationship Team - North,Agency Staff Member,SCLAIM_38674,377.10,Staff Expenses Claim
BIS,Skills Funding Agency,30/07/2014,Diesel Car Mileage,Relationship Team - North,Agency Staff Member,SCLAIM_38688,125.10,Staff Expenses Claim
BIS,Skills Funding Agency,30/07/2014,Diesel Car Mileage,Relationship Team - North,Agency Staff Member,SCLAIM_38694,253.80,Staff Expenses Claim
BIS,Skills Funding Agency,30/07/2014,Diesel Car Mileage,Relationship Team - North,Agency Staff Member,SCLAIM_38708,352.80,Staff Expenses Claim
BIS,Skills Funding Agency,30/07/2014,Diesel Car Mileage,Relationship Team - South,Agency Staff Member,SCLAIM_38737,73.00,Staff Expenses Claim
BIS,Skills Funding Agency,30/07/2014,Diesel Car Mileage,Relationship Team - South,Agency Staff Member,SCLAIM_38738,119.70,Staff Expenses Claim
BIS,Skills Funding Agency,30/07/2014,Diesel Car Mileage,Skills Marketing,Agency Staff Member,SCLAIM_38710,120.60,Staff Expenses Claim
BIS,Skills Funding Agency,30/07/2014,Diesel Car Mileage,Southern Division,Agency Staff Member,SCLAIM_38748,250.20,Staff Expenses Claim
BIS,Skills Funding Agency,30/07/2014,Diesel Car Mileage,Southern Division,Agency Staff Member,SCLAIM_38749,409.50,Staff Expenses Claim
BIS,Skills Funding Agency,30/07/2014,Framework for Excellence,Professional Services,MARKET & OPINION RESEARCH INTERNATIONAL LTD,SPINVB_22955,"96,106.56",Purchase Invoice
BIS,Skills Funding Agency,30/07/2014,Funding Advances,None,LEEDS COLLEGE OF BUILDING,NQDV_611,"1,000,000.00",Programme Template
BIS,Skills Funding Agency,30/07/2014,Further Education Participation 19+ Additional,Main Funding,HADLOW COLLEGE,NUPS14_27107,"5,676,000.00",Programme Template
BIS,Skills Funding Agency,30/07/2014,Hospitality,Communications & Campaigns - Corporate Communications,Agency Staff Member,SCLAIM_38696,13.60,Staff Expenses Claim
BIS,Skills Funding Agency,30/07/2014,Hospitality,Southern Division,Agency Staff Member,SCLAIM_38748,8.50,Staff Expenses Claim
BIS,Skills Funding Agency,30/07/2014,Hybrid Car Mileage,Internal Audit,Agency Staff Member,SCLAIM_38745,85.50,Staff Expenses Claim
BIS,Skills Funding Agency,30/07/2014,"Information, Advice and Guidance - Local",Main Funding,CSWP LTD,SPINVB_22447,"44,414.44",Purchase Invoice
BIS,Skills Funding Agency,30/07/2014,"Information, Advice and Guidance - Local",Main Funding,CSWP LTD,SPINVB_22448,"12,806.49",Purchase Invoice
BIS,Skills Funding Agency,30/07/2014,IT Maintenance & Supply Recharges,Operations - Information & Communication Technology - Technical,XEROX FINANCE LTD,SPINVB_22610,"32,545.13",Purchase Invoice
BIS,Skills Funding Agency,30/07/2014,Offender Learning and Skills Service - Information & Guidance,Main Funding,CSWP LTD,SPINVB_22449,"63,480.00",Purchase Invoice
BIS,Skills Funding Agency,30/07/2014,Offender Learning and Skills Service - Information & Guidance,Main Funding,CSWP LTD,SPINVB_22450,"9,082.60",Purchase Invoice
BIS,Skills Funding Agency,30/07/2014,Other Fuel Car Mileage,Relationship Team - South,Agency Staff Member,SCLAIM_38735,237.60,Staff Expenses Claim
BIS,Skills Funding Agency,30/07/2014,Other Travel,Central Delivery Service - European Social Fund - Audit Compliance,Agency Staff Member,SCLAIM_38701,14.00,Staff Expenses Claim
BIS,Skills Funding Agency,30/07/2014,Other Travel,Central Delivery Service - European Social Fund - Audit Compliance,Agency Staff Member,SCLAIM_38716,4.70,Staff Expenses Claim
BIS,Skills Funding Agency,30/07/2014,Other Travel,Central Delivery Service - European Social Fund - Audit Compliance,Agency Staff Member,SCLAIM_38731,41.30,Staff Expenses Claim
BIS,Skills Funding Agency,30/07/2014,Other Travel,Central Delivery Service - Leeds,Agency Staff Member,SCLAIM_38740,30.00,Staff Expenses Claim
BIS,Skills Funding Agency,30/07/2014,Other Travel,Central Delivery Service - London,Agency Staff Member,SCLAIM_38725,1.50,Staff Expenses Claim
BIS,Skills Funding Agency,30/07/2014,Other Travel,Central Delivery Service - London,Agency Staff Member,SCLAIM_38754,7.20,Staff Expenses Claim
BIS,Skills Funding Agency,30/07/2014,Other Travel,Central Delivery Service - Manchester,Agency Staff Member,SCLAIM_38714,44.98,Staff Expenses Claim
BIS,Skills Funding Agency,30/07/2014,Other Travel,Central Division,Agency Staff Member,SCLAIM_38681,14.00,Staff Expenses Claim
BIS,Skills Funding Agency,30/07/2014,Other Travel,Central Division,Agency Staff Member,SCLAIM_38723,5.00,Staff Expenses Claim
BIS,Skills Funding Agency,30/07/2014,Other Travel,Employer & Provider Services North West,Agency Staff Member,SCLAIM_38697,26.20,Staff Expenses Claim
BIS,Skills Funding Agency,30/07/2014,Other Travel,Employer & Provider Services South East,Agency Staff Member,SCLAIM_38718,45.00,Staff Expenses Claim
BIS,Skills Funding Agency,30/07/2014,Other Travel,Employer & Provider Services South East,Agency Staff Member,SCLAIM_38729,19.50,Staff Expenses Claim
BIS,Skills Funding Agency,30/07/2014,Other Travel,Finance Division - Provider Finance,Agency Staff Member,SCLAIM_38698,7.80,Staff Expenses Claim
BIS,Skills Funding Agency,30/07/2014,Other Travel,Finance Division - Provider Finance,Agency Staff Member,SCLAIM_38699,20.00,Staff Expenses Claim
BIS,Skills Funding Agency,30/07/2014,Other Travel,Finance Division - Provider Finance,Agency Staff Member,SCLAIM_38734,23.30,Staff Expenses Claim
BIS,Skills Funding Agency,30/07/2014,Other Travel,Finance Division - Provider Financial Assurance Audit,Agency Staff Member,SCLAIM_38677,10.00,Staff Expenses Claim
BIS,Skills Funding Agency,30/07/2014,Other Travel,Finance Division - Provider Financial Assurance Audit,Agency Staff Member,SCLAIM_38682,12.00,Staff Expenses Claim
BIS,Skills Funding Agency,30/07/2014,Other Travel,Funding & Programmes - Apprenticeships & Employer Policy Implement,Agency Staff Member,SCLAIM_38751,5.50,Staff Expenses Claim
BIS,Skills Funding Agency,30/07/2014,Other Travel,Funding & Programmes - Apprenticeships & Employer Policy Implement,Agency Staff Member,SCLAIM_38756,10.00,Staff Expenses Claim
BIS,Skills Funding Agency,30/07/2014,Other Travel,Funding & Programmes - Employer Ownership Programme,Agency Staff Member,SCLAIM_38680,116.60,Staff Expenses Claim
BIS,Skills Funding Agency,30/07/2014,Other Travel,Funding & Programmes - European Social Fund,Agency Staff Member,SCLAIM_38673,4.00,Staff Expenses Claim
BIS,Skills Funding Agency,30/07/2014,Other Travel,Internal Audit,Agency Staff Member,SCLAIM_38707,9.80,Staff Expenses Claim
BIS,Skills Funding Agency,30/07/2014,Other Travel,Internal Audit,Agency Staff Member,SCLAIM_38745,5.50,Staff Expenses Claim
BIS,Skills Funding Agency,30/07/2014,Other Travel,Large Companies Unit,Agency Staff Member,SCLAIM_38686,6.20,Staff Expenses Claim
BIS,Skills Funding Agency,30/07/2014,Other Travel,Large Companies Unit,Agency Staff Member,SCLAIM_38721,37.50,Staff Expenses Claim
BIS,Skills Funding Agency,30/07/2014,Other Travel,Large Companies Unit,Agency Staff Member,SCLAIM_38722,41.00,Staff Expenses Claim
BIS,Skills Funding Agency,30/07/2014,Other Travel,Large Companies Unit,Agency Staff Member,SCLAIM_38728,27.00,Staff Expenses Claim
BIS,Skills Funding Agency,30/07/2014,Other Travel,Large Companies Unit,Agency Staff Member,SCLAIM_38730,9.60,Staff Expenses Claim
BIS,Skills Funding Agency,30/07/2014,Other Travel,National Careers & Learner Services,Agency Staff Member,SCLAIM_38702,33.00,Staff Expenses Claim
BIS,Skills Funding Agency,30/07/2014,Other Travel,National Careers & Learner Services,Agency Staff Member,SCLAIM_38711,11.00,Staff Expenses Claim
BIS,Skills Funding Agency,30/07/2014,Other Travel,Northern Division,Agency Staff Member,SCLAIM_38689,17.40,Staff Expenses Claim
BIS,Skills Funding Agency,30/07/2014,Other Travel,Northern Division,Agency Staff Member,SCLAIM_38691,62.85,Staff Expenses Claim
BIS,Skills Funding Agency,30/07/2014,Other Travel,Northern Division,Agency Staff Member,SCLAIM_38706,11.00,Staff Expenses Claim
BIS,Skills Funding Agency,30/07/2014,Other Travel,Northern Division,Agency Staff Member,SCLAIM_38732,40.70,Staff Expenses Claim
BIS,Skills Funding Agency,30/07/2014,Other Travel,Northern Division,Agency Staff Member,SCLAIM_38746,22.00,Staff Expenses Claim
BIS,Skills Funding Agency,30/07/2014,Other Travel,Northern Division,Agency Staff Member,SCLAIM_38747,26.10,Staff Expenses Claim
BIS,Skills Funding Agency,30/07/2014,Other Travel,Northern Division,Agency Staff Member,SCLAIM_38752,44.50,Staff Expenses Claim
BIS,Skills Funding Agency,30/07/2014,Other Travel,Provider Financial Management & Assurance,Agency Staff Member,SCLAIM_38712,43.40,Staff Expenses Claim
BIS,Skills Funding Agency,30/07/2014,Other Travel,Provider Financial Management & Assurance,Agency Staff Member,SCLAIM_38720,14.20,Staff Expenses Claim
BIS,Skills Funding Agency,30/07/2014,Other Travel,Provider Financial Management & Assurance,Agency Staff Member,SCLAIM_38744,14.20,Staff Expenses Claim
BIS,Skills Funding Agency,30/07/2014,Other Travel,Relationship Team - North,Agency Staff Member,SCLAIM_38688,15.50,Staff Expenses Claim
BIS,Skills Funding Agency,30/07/2014,Other Travel,Relationship Team - North,Agency Staff Member,SCLAIM_38690,103.90,Staff Expenses Claim
BIS,Skills Funding Agency,30/07/2014,Other Travel,Relationship Team - South,Agency Staff Member,SCLAIM_38735,11.70,Staff Expenses Claim
BIS,Skills Funding Agency,30/07/2014,Other Travel,Relationship Team - South,Agency Staff Member,SCLAIM_38737,21.60,Staff Expenses Claim
BIS,Skills Funding Agency,30/07/2014,Other Travel,Relationship Team - South,Agency Staff Member,SCLAIM_38738,24.90,Staff Expenses Claim
BIS,Skills Funding Agency,30/07/2014,Other Travel,Skills Marketing,Agency Staff Member,SCLAIM_38710,55.80,Staff Expenses Claim
BIS,Skills Funding Agency,30/07/2014,Other Travel,Southern Division,Agency Staff Member,SCLAIM_38748,10.80,Staff Expenses Claim
BIS,Skills Funding Agency,30/07/2014,Other Travel,Southern Division,Agency Staff Member,SCLAIM_38749,13.80,Staff Expenses Claim
BIS,Skills Funding Agency,30/07/2014,Petrol Car Mileage Passenger Supplement,Central Delivery Service - Leeds,Agency Staff Member,SCLAIM_38713,3.20,Staff Expenses Claim
BIS,Skills Funding Agency,30/07/2014,Petrol Car Mileage Passenger Supplement,Employer & Provider Services South West,Agency Staff Member,SCLAIM_38717,4.50,Staff Expenses Claim
BIS,Skills Funding Agency,30/07/2014,Petrol Car Mileage Passenger Supplement,Relationship Team - North,Agency Staff Member,SCLAIM_38690,8.00,Staff Expenses Claim
BIS,Skills Funding Agency,30/07/2014,Petrol Car Mileage,Central Delivery Service - European Social Fund - Audit Compliance,Agency Staff Member,SCLAIM_38701,61.20,Staff Expenses Claim
BIS,Skills Funding Agency,30/07/2014,Petrol Car Mileage,Central Delivery Service - Leeds,Agency Staff Member,SCLAIM_38740,4.50,Staff Expenses Claim
BIS,Skills Funding Agency,30/07/2014,Petrol Car Mileage,Central Delivery Service - London,Agency Staff Member,SCLAIM_38693,95.40,Staff Expenses Claim
BIS,Skills Funding Agency,30/07/2014,Petrol Car Mileage,Central Delivery Service - London,Agency Staff Member,SCLAIM_38713,116.10,Staff Expenses Claim
BIS,Skills Funding Agency,30/07/2014,Petrol Car Mileage,Central Division,Agency Staff Member,SCLAIM_38681,520.20,Staff Expenses Claim
BIS,Skills Funding Agency,30/07/2014,Petrol Car Mileage,Employer & Provider Services North West,Agency Staff Member,SCLAIM_38697,224.10,Staff Expenses Claim
BIS,Skills Funding Agency,30/07/2014,Petrol Car Mileage,Employer & Provider Services South East,Agency Staff Member,SCLAIM_38692,129.60,Staff Expenses Claim
BIS,Skills Funding Agency,30/07/2014,Petrol Car Mileage,Employer & Provider Services South East,Agency Staff Member,SCLAIM_38718,53.10,Staff Expenses Claim
BIS,Skills Funding Agency,30/07/2014,Petrol Car Mileage,Employer & Provider Services South East,Agency Staff Member,SCLAIM_38729,13.50,Staff Expenses Claim
BIS,Skills Funding Agency,30/07/2014,Petrol Car Mileage,Employer & Provider Services South East,Agency Staff Member,SCLAIM_38755,124.65,Staff Expenses Claim
BIS,Skills Funding Agency,30/07/2014,Petrol Car Mileage,Employer & Provider Services South West,Agency Staff Member,SCLAIM_38717,51.30,Staff Expenses Claim
BIS,Skills Funding Agency,30/07/2014,Petrol Car Mileage,Employer & Provider Services South West,Agency Staff Member,SCLAIM_38739,63.00,Staff Expenses Claim
BIS,Skills Funding Agency,30/07/2014,Petrol Car Mileage,Finance Division - Provider Finance,Agency Staff Member,SCLAIM_38698,260.10,Staff Expenses Claim
BIS,Skills Funding Agency,30/07/2014,Petrol Car Mileage,Finance Division - Provider Finance,Agency Staff Member,SCLAIM_38699,383.40,Staff Expenses Claim
BIS,Skills Funding Agency,30/07/2014,Petrol Car Mileage,Finance Division - Provider Financial Assurance Audit,Agency Staff Member,SCLAIM_38682,61.20,Staff Expenses Claim
BIS,Skills Funding Agency,30/07/2014,Petrol Car Mileage,Funding & Programmes - Apprenticeships & Employer Policy Implement,Agency Staff Member,SCLAIM_38756,199.80,Staff Expenses Claim
BIS,Skills Funding Agency,30/07/2014,Petrol Car Mileage,Information Management Finance,Agency Staff Member,SCLAIM_38736,83.70,Staff Expenses Claim
BIS,Skills Funding Agency,30/07/2014,Petrol Car Mileage,Large Companies Unit,Agency Staff Member,SCLAIM_38705,62.55,Staff Expenses Claim
BIS,Skills Funding Agency,30/07/2014,Petrol Car Mileage,Large Companies Unit,Agency Staff Member,SCLAIM_38728,10.80,Staff Expenses Claim
BIS,Skills Funding Agency,30/07/2014,Petrol Car Mileage,Large Companies Unit,Agency Staff Member,SCLAIM_38730,191.70,Staff Expenses Claim
BIS,Skills Funding Agency,30/07/2014,Petrol Car Mileage,Northern Division,Agency Staff Member,SCLAIM_38689,155.70,Staff Expenses Claim
BIS,Skills Funding Agency,30/07/2014,Petrol Car Mileage,Northern Division,Agency Staff Member,SCLAIM_38706,17.10,Staff Expenses Claim
BIS,Skills Funding Agency,30/07/2014,Petrol Car Mileage,Northern Division,Agency Staff Member,SCLAIM_38746,5.40,Staff Expenses Claim
BIS,Skills Funding Agency,30/07/2014,Petrol Car Mileage,Programme Development & Vacancy Services,Agency Staff Member,SCLAIM_38715,241.20,Staff Expenses Claim
BIS,Skills Funding Agency,30/07/2014,Petrol Car Mileage,Provider Financial Management & Assurance,Agency Staff Member,SCLAIM_38720,585.90,Staff Expenses Claim
BIS,Skills Funding Agency,30/07/2014,Petrol Car Mileage,Provider Financial Management & Assurance,Agency Staff Member,SCLAIM_38727,5.40,Staff Expenses Claim
BIS,Skills Funding Agency,30/07/2014,Petrol Car Mileage,Relationship Team - North,Agency Staff Member,SCLAIM_38690,345.15,Staff Expenses Claim
BIS,Skills Funding Agency,30/07/2014,Professional Services,Projects - Programme Delivery Projects,CAPGEMINI UK PLC,SPINVB_22661,"103,916.71",Purchase Invoice
BIS,Skills Funding Agency,30/07/2014,Professional Services,Projects - Programme Delivery Projects,CAPGEMINI UK PLC,SPINVB_22662,"41,651.04",Purchase Invoice
BIS,Skills Funding Agency,30/07/2014,Rail Warrants & Tickets,Central Delivery Service - European Social Fund - Audit Compliance,Agency Staff Member,SCLAIM_38716,153.90,Staff Expenses Claim
BIS,Skills Funding Agency,30/07/2014,Rail Warrants & Tickets,Central Delivery Service - London,Agency Staff Member,SCLAIM_38713,72.00,Staff Expenses Claim
BIS,Skills Funding Agency,30/07/2014,Rail Warrants & Tickets,Central Delivery Service - London,Agency Staff Member,SCLAIM_38754,49.00,Staff Expenses Claim
BIS,Skills Funding Agency,30/07/2014,Rail Warrants & Tickets,Communications & Campaigns - Corporate Communications,Agency Staff Member,SCLAIM_38696,35.00,Staff Expenses Claim
BIS,Skills Funding Agency,30/07/2014,Rail Warrants & Tickets,Finance Division - Provider Finance,Agency Staff Member,SCLAIM_38698,26.70,Staff Expenses Claim
BIS,Skills Funding Agency,30/07/2014,Rail Warrants & Tickets,Finance Division - Provider Finance,Agency Staff Member,SCLAIM_38699,17.80,Staff Expenses Claim
BIS,Skills Funding Agency,30/07/2014,Rail Warrants & Tickets,Funding & Programmes - Apprenticeships & Employer Policy Implement,Agency Staff Member,SCLAIM_38756,138.40,Staff Expenses Claim
BIS,Skills Funding Agency,30/07/2014,Rail Warrants & Tickets,Funding & Programmes - Employer Ownership Programme,Agency Staff Member,SCLAIM_38680,15.90,Staff Expenses Claim
BIS,Skills Funding Agency,30/07/2014,Rail Warrants & Tickets,Information Management Finance,Agency Staff Member,SCLAIM_38736,7.20,Staff Expenses Claim
BIS,Skills Funding Agency,30/07/2014,Rail Warrants & Tickets,Large Companies Unit,Agency Staff Member,SCLAIM_38687,69.00,Staff Expenses Claim
BIS,Skills Funding Agency,30/07/2014,Rail Warrants & Tickets,Legal & Information Compliance & Security,Agency Staff Member,SCLAIM_38719,4.40,Staff Expenses Claim
BIS,Skills Funding Agency,30/07/2014,Rail Warrants & Tickets,National Careers & Learner Services,Agency Staff Member,SCLAIM_38702,38.30,Staff Expenses Claim
BIS,Skills Funding Agency,30/07/2014,Rail Warrants & Tickets,Northern Division,Agency Staff Member,SCLAIM_38752,27.60,Staff Expenses Claim
BIS,Skills Funding Agency,30/07/2014,Rail Warrants & Tickets,Provider Financial Management & Assurance,Agency Staff Member,SCLAIM_38712,34.20,Staff Expenses Claim
BIS,Skills Funding Agency,30/07/2014,Rail Warrants & Tickets,Provider Financial Management & Assurance,Agency Staff Member,SCLAIM_38744,8.90,Staff Expenses Claim
BIS,Skills Funding Agency,30/07/2014,Self-Drive Car Hire,Central Delivery Service - European Social Fund - Audit Compliance,Agency Staff Member,SCLAIM_38701,26.00,Staff Expenses Claim
BIS,Skills Funding Agency,30/07/2014,Self-Drive Car Hire,Central Division,Agency Staff Member,SCLAIM_38681,28.01,Staff Expenses Claim
BIS,Skills Funding Agency,30/07/2014,Self-Drive Car Hire,Communications & Campaigns - Corporate Communications,Agency Staff Member,SCLAIM_38679,60.03,Staff Expenses Claim
BIS,Skills Funding Agency,30/07/2014,Self-Drive Car Hire,Funding & Programmes - Apprenticeships & Employer Policy Implement,Agency Staff Member,SCLAIM_38751,98.63,Staff Expenses Claim
BIS,Skills Funding Agency,30/07/2014,Self-Drive Car Hire,Funding & Programmes - Employer Ownership Programme,Agency Staff Member,SCLAIM_38680,239.24,Staff Expenses Claim
BIS,Skills Funding Agency,30/07/2014,Self-Drive Car Hire,Internal Audit,Agency Staff Member,SCLAIM_38707,37.99,Staff Expenses Claim
BIS,Skills Funding Agency,30/07/2014,Self-Drive Car Hire,Provider Financial Management & Assurance,Agency Staff Member,SCLAIM_38727,63.50,Staff Expenses Claim
BIS,Skills Funding Agency,30/07/2014,Self-Drive Car Hire,Southern Division,Agency Staff Member,SCLAIM_38748,68.34,Staff Expenses Claim
BIS,Skills Funding Agency,30/07/2014,Software Upgrades,Projects - Programme Delivery Projects,CGI IT UK LIMITED,SPINVB_23025,"50,400.00",Purchase Invoice
BIS,Skills Funding Agency,30/07/2014,Subsistence,Central Delivery Service - Leeds,Agency Staff Member,SCLAIM_38740,25.00,Staff Expenses Claim
BIS,Skills Funding Agency,30/07/2014,Subsistence,Central Delivery Service - London,Agency Staff Member,SCLAIM_38695,20.00,Staff Expenses Claim
BIS,Skills Funding Agency,30/07/2014,Subsistence,Central Delivery Service - London,Agency Staff Member,SCLAIM_38725,25.00,Staff Expenses Claim
BIS,Skills Funding Agency,30/07/2014,Subsistence,Central Delivery Service - Manchester,Agency Staff Member,SCLAIM_38683,75.00,Staff Expenses Claim
BIS,Skills Funding Agency,30/07/2014,Subsistence,Central Delivery Service - Manchester,Agency Staff Member,SCLAIM_38714,50.00,Staff Expenses Claim
BIS,Skills Funding Agency,30/07/2014,Subsistence,Central Division,Agency Staff Member,SCLAIM_38681,10.00,Staff Expenses Claim
BIS,Skills Funding Agency,30/07/2014,Subsistence,Employer & Provider Services South West,Agency Staff Member,SCLAIM_38717,50.00,Staff Expenses Claim
BIS,Skills Funding Agency,30/07/2014,Subsistence,Finance Division - Provider Finance,Agency Staff Member,SCLAIM_38698,30.00,Staff Expenses Claim
BIS,Skills Funding Agency,30/07/2014,Subsistence,Finance Division - Provider Finance,Agency Staff Member,SCLAIM_38699,20.00,Staff Expenses Claim
BIS,Skills Funding Agency,30/07/2014,Subsistence,Finance Division - Provider Financial Assurance Audit,Agency Staff Member,SCLAIM_38677,10.00,Staff Expenses Claim
BIS,Skills Funding Agency,30/07/2014,Subsistence,Funding & Programmes - Employer Ownership Programme,Agency Staff Member,SCLAIM_38680,55.00,Staff Expenses Claim
BIS,Skills Funding Agency,30/07/2014,Subsistence,Funding & Programmes - European Social Fund,Agency Staff Member,SCLAIM_38673,45.00,Staff Expenses Claim
BIS,Skills Funding Agency,30/07/2014,Subsistence,Growth National Careers Service - Operations,Agency Staff Member,SCLAIM_38750,25.00,Staff Expenses Claim
BIS,Skills Funding Agency,30/07/2014,Subsistence,Internal Audit,Agency Staff Member,SCLAIM_38707,35.00,Staff Expenses Claim
BIS,Skills Funding Agency,30/07/2014,Subsistence,Internal Audit,Agency Staff Member,SCLAIM_38745,25.00,Staff Expenses Claim
BIS,Skills Funding Agency,30/07/2014,Subsistence,Large Companies Unit,Agency Staff Member,SCLAIM_38676,25.00,Staff Expenses Claim
BIS,Skills Funding Agency,30/07/2014,Subsistence,Large Companies Unit,Agency Staff Member,SCLAIM_38685,10.00,Staff Expenses Claim
BIS,Skills Funding Agency,30/07/2014,Subsistence,Large Companies Unit,Agency Staff Member,SCLAIM_38686,80.00,Staff Expenses Claim
BIS,Skills Funding Agency,30/07/2014,Subsistence,Large Companies Unit,Agency Staff Member,SCLAIM_38687,50.00,Staff Expenses Claim
BIS,Skills Funding Agency,30/07/2014,Subsistence,Large Companies Unit,Agency Staff Member,SCLAIM_38721,50.00,Staff Expenses Claim
BIS,Skills Funding Agency,30/07/2014,Subsistence,Legal & Information Compliance & Security,Agency Staff Member,SCLAIM_38719,10.00,Staff Expenses Claim
BIS,Skills Funding Agency,30/07/2014,Subsistence,Northern Division,Agency Staff Member,SCLAIM_38746,10.00,Staff Expenses Claim
BIS,Skills Funding Agency,30/07/2014,Subsistence,Provider Financial Management & Assurance,Agency Staff Member,SCLAIM_38727,75.00,Staff Expenses Claim
BIS,Skills Funding Agency,30/07/2014,Subsistence,Provider Financial Management & Assurance,Agency Staff Member,SCLAIM_38744,125.00,Staff Expenses Claim
BIS,Skills Funding Agency,30/07/2014,Subsistence,Relationship Team - North,Agency Staff Member,SCLAIM_38688,10.00,Staff Expenses Claim
BIS,Skills Funding Agency,30/07/2014,Subsistence,Relationship Team - South,Agency Staff Member,SCLAIM_38735,35.00,Staff Expenses Claim
BIS,Skills Funding Agency,30/07/2014,Subsistence,Skills Marketing,Agency Staff Member,SCLAIM_38743,45.00,Staff Expenses Claim
BIS,Skills Funding Agency,30/07/2014,Subsistence,Southern Division,Agency Staff Member,SCLAIM_38748,10.00,Staff Expenses Claim
BIS,Skills Funding Agency,30/07/2014,Sundry Items,Finance Division - Provider Finance,Agency Staff Member,SCLAIM_38698,9.00,Staff Expenses Claim
BIS,Skills Funding Agency,30/07/2014,Sundry Items,Finance Division - Provider Finance,Agency Staff Member,SCLAIM_38699,3.00,Staff Expenses Claim
BIS,Skills Funding Agency,30/07/2014,Taxis,Central Delivery Service - Leeds,Agency Staff Member,SCLAIM_38740,19.40,Staff Expenses Claim
BIS,Skills Funding Agency,30/07/2014,Taxis,Central Delivery Service - London,Agency Staff Member,SCLAIM_38695,14.00,Staff Expenses Claim
BIS,Skills Funding Agency,30/07/2014,Taxis,Central Delivery Service - London,Agency Staff Member,SCLAIM_38709,16.20,Staff Expenses Claim
BIS,Skills Funding Agency,30/07/2014,Taxis,Central Delivery Service - Manchester,Agency Staff Member,SCLAIM_38683,18.00,Staff Expenses Claim
BIS,Skills Funding Agency,30/07/2014,Taxis,Central Delivery Service - Manchester,Agency Staff Member,SCLAIM_38714,6.60,Staff Expenses Claim
BIS,Skills Funding Agency,30/07/2014,Taxis,Central Delivery Service - Manchester,Agency Staff Member,SCLAIM_38724,5.00,Staff Expenses Claim
BIS,Skills Funding Agency,30/07/2014,Taxis,Employer & Provider Services South East,Agency Staff Member,SCLAIM_38718,6.20,Staff Expenses Claim
BIS,Skills Funding Agency,30/07/2014,Taxis,Finance Division - Provider Financial Assurance Audit,Agency Staff Member,SCLAIM_38677,38.00,Staff Expenses Claim
BIS,Skills Funding Agency,30/07/2014,Taxis,Funding & Programmes - Apprenticeships & Employer Policy Implement,Agency Staff Member,SCLAIM_38742,12.00,Staff Expenses Claim
BIS,Skills Funding Agency,30/07/2014,Taxis,Growth National Careers Service - Operations,Agency Staff Member,SCLAIM_38750,40.50,Staff Expenses Claim
BIS,Skills Funding Agency,30/07/2014,Taxis,Large Companies Unit,Agency Staff Member,SCLAIM_38685,10.40,Staff Expenses Claim
BIS,Skills Funding Agency,30/07/2014,Taxis,Large Companies Unit,Agency Staff Member,SCLAIM_38686,10.00,Staff Expenses Claim
BIS,Skills Funding Agency,30/07/2014,Taxis,Large Companies Unit,Agency Staff Member,SCLAIM_38687,8.40,Staff Expenses Claim
BIS,Skills Funding Agency,30/07/2014,Taxis,National Careers & Learner Services,Agency Staff Member,SCLAIM_38700,13.20,Staff Expenses Claim
BIS,Skills Funding Agency,30/07/2014,Taxis,National Careers & Learner Services,Agency Staff Member,SCLAIM_38711,36.00,Staff Expenses Claim
BIS,Skills Funding Agency,30/07/2014,Taxis,Northern Division,Agency Staff Member,SCLAIM_38732,6.00,Staff Expenses Claim
BIS,Skills Funding Agency,30/07/2014,Taxis,Northern Division,Agency Staff Member,SCLAIM_38747,9.00,Staff Expenses Claim
BIS,Skills Funding Agency,30/07/2014,Taxis,Relationship Team - North,Agency Staff Member,SCLAIM_38688,7.00,Staff Expenses Claim
BIS,Skills Funding Agency,30/07/2014,Taxis,Skills Marketing,Agency Staff Member,SCLAIM_38743,60.00,Staff Expenses Claim
BIS,Skills Funding Agency,30/07/2014,Taxis,Southern Division,Agency Staff Member,SCLAIM_38749,5.20,Staff Expenses Claim
BIS,Skills Funding Agency,30/07/2014,Temporary Staff,Operations - Employer Digital Service,SMART SOURCING PLC,SPINVB_23009,"10,257.48",Purchase Invoice
BIS,Skills Funding Agency,30/07/2014,Temporary Staff,Operations - Projects,SMART SOURCING PLC,SPINVB_23010,"9,094.01",Purchase Invoice
BIS,Skills Funding Agency,30/07/2014,Temporary Staff,Programme Delivery - Project Management/Testing,MAGNETIC IT LIMITED,SPINVB_23031,98.16,Purchase Invoice
BIS,Skills Funding Agency,01/08/2014,Communications Team Expenditure,Communications & Campaigns - Corporate Communications,SMITH CREATIVE,SPINVB_22976,"9,978.00",Purchase Invoice
BIS,Skills Funding Agency,01/08/2014,Conference Fees,Employer & Provider Services North West,PETE PINNINGTON PRESENTS,SPINVB_23040,"2,500.00",Purchase Invoice
BIS,Skills Funding Agency,01/08/2014,Facilities Management,HR - Facilities Divisional,DEPARTMENT FOR BUSINESS INNOVATION & SKILLS (NEWPORT),SPCRNB_704,"-3,193.37",Purchase Credit Note
BIS,Skills Funding Agency,01/08/2014,Facilities Management,HR - Facilities Divisional,DEPARTMENT FOR BUSINESS INNOVATION & SKILLS (NEWPORT),SPINVB_20077,"10,622.36",Purchase Invoice
BIS,Skills Funding Agency,01/08/2014,Facilities Management,HR - Facilities Divisional,DEPARTMENT FOR BUSINESS INNOVATION & SKILLS (NEWPORT),SPINVB_23024,"97,359.36",Purchase Invoice
BIS,Skills Funding Agency,01/08/2014,Further Education Participation 19+ Additional,Main Funding,HADLOW COLLEGE,NUPS14_27108,"2,000,000.00",Programme Template
BIS,Skills Funding Agency,01/08/2014,Hosting,Projects - Programme Delivery Projects,FORDWAY SOLUTIONS LIMITED,SPINVB_23030,"12,661.50",Purchase Invoice
BIS,Skills Funding Agency,01/08/2014,Licences,Operational Services - Service Management - Operate,CGI IT UK LIMITED,SPINVB_23023,"25,768.40",Purchase Invoice
BIS,Skills Funding Agency,01/08/2014,Licences,Operations - Technical Design Authority,BYTES SOFTWARE SERVICES LTD,SPINVB_22598,"32,990.98",Purchase Invoice
BIS,Skills Funding Agency,01/08/2014,Managed IT Service,Operations - Projects,TRIBAL EDUCATION LTD,SPINVB_23052,"77,575.20",Purchase Invoice
BIS,Skills Funding Agency,01/08/2014,Mobile Telephones,Operations - Technical Design Authority,VODAFONE LIMITED,SPINVB_23045,"12,984.37",Purchase Invoice
BIS,Skills Funding Agency,01/08/2014,"National Apprenticeship Service - Business, Innovation & Skills - Non-Participation",Communications & Marketing,CITY DIGITAL LTD,SPINVB_23057,"1,246.20",Purchase Invoice
BIS,Skills Funding Agency,01/08/2014,"National Apprenticeship Service - Business, Innovation & Skills - Non-Participation",Communications & Marketing,WILLIAMS LEA LTD,SPINVB_23041,"1,287.31",Purchase Invoice
BIS,Skills Funding Agency,01/08/2014,Off The Shelf Software,Operational Services - Service Management - Operate,GMO GLOBALSIGN LTD,SPINVB_23033,103.20,Purchase Invoice
BIS,Skills Funding Agency,01/08/2014,Off The Shelf Software,Operational Services - Service Management - Operate,GMO GLOBALSIGN LTD,SPINVB_23034,103.20,Purchase Invoice
BIS,Skills Funding Agency,01/08/2014,Off The Shelf Software,Operational Services - Service Management - Operate,GMO GLOBALSIGN LTD,SPINVB_23042,103.20,Purchase Invoice
BIS,Skills Funding Agency,01/08/2014,Off The Shelf Software,Operational Services - Service Management - Operate,GMO GLOBALSIGN LTD,SPINVB_23043,206.40,Purchase Invoice
BIS,Skills Funding Agency,01/08/2014,Photocopier Rental,Operational Services - Service Management - Operate,XEROX FINANCE LTD,SPINVB_23002,"20,162.02",Purchase Invoice
BIS,Skills Funding Agency,01/08/2014,Photocopier Rental,Operational Services - Service Management - Operate,XEROX FINANCE LTD,SPINVB_23011,"14,354.86",Purchase Invoice
BIS,Skills Funding Agency,01/08/2014,Software Maintenance & Repair,Operational Services - Service Management - Operate,CGI IT UK LIMITED,SPINVB_23038,"314,880.96",Purchase Invoice
BIS,Skills Funding Agency,01/08/2014,Sundry Items,Accounting Services,CGI IT UK LIMITED,SPINVB_23038,-0.96,Purchase Invoice
BIS,Skills Funding Agency,01/08/2014,Support Services,Projects - Programme Delivery Projects,FORDWAY SOLUTIONS LIMITED,SPINVB_23030,"14,428.50",Purchase Invoice
BIS,Skills Funding Agency,01/08/2014,Temporary Staff,Operations - Project Delivery,LA INTERNATIONAL,SPINVB_23053,"1,923.12",Purchase Invoice
BIS,Skills Funding Agency,01/08/2014,Temporary Staff,Operations - Projects,PARITY RESOURCES LTD,SPINVB_23046,"10,799.90",Purchase Invoice
BIS,Skills Funding Agency,01/08/2014,Temporary Staff,Operations - Projects,PARITY RESOURCES LTD,SPINVB_23047,"5,492.18",Purchase Invoice
BIS,Skills Funding Agency,01/08/2014,Temporary Staff,Operations - Projects,PARITY RESOURCES LTD,SPINVB_23051,"5,036.14",Purchase Invoice
BIS,Skills Funding Agency,01/08/2014,Temporary Staff,Operations - Solution Design & Innovation,PARITY RESOURCES LTD,SPINVB_23039,"5,744.64",Purchase Invoice
BIS,Skills Funding Agency,01/08/2014,Temporary Staff,Programme Delivery - Centre of Excellence,PARITY RESOURCES LTD,SPINVB_23050,"7,980.00",Purchase Invoice
BIS,Skills Funding Agency,01/08/2014,Temporary Staff,Programme Delivery - Programme Management Office/Programme Support Office,LA INTERNATIONAL,SPINVB_23053,"1,923.12",Purchase Invoice
BIS,Skills Funding Agency,01/08/2014,Temporary Staff,Programme Delivery - Programme Management Office/Programme Support Office,PARITY RESOURCES LTD,SPINVB_23049,"7,451.28",Purchase Invoice
BIS,Skills Funding Agency,01/08/2014,Temporary Staff,Projects - Programme Delivery Projects,PARITY RESOURCES LTD,SPINVB_23048,"2,599.78",Purchase Invoice
BIS,Skills Funding Agency,01/08/2014,Training Venue & Refreshments,Central Delivery Service - Leeds,EXPOTEL HOTEL RESERVATIONS LTD,IPINVELECT3_1643,253.11,Purchase Invoice
BIS,Skills Funding Agency,05/08/2014,Archiving,Finance Division - Financial Control North,IRON MOUNTAIN UK LTD,IPINVELECT3_1645,"13,441.18",Purchase Invoice
BIS,Skills Funding Agency,05/08/2014,Archiving,Funding & Programmes - Apprenticeships & Employer Policy Implement,IRON MOUNTAIN UK LTD,IPINVELECT3_1645,13.30,Purchase Invoice
BIS,Skills Funding Agency,05/08/2014,Archiving,HR - Facilities Central,IRON MOUNTAIN UK LTD,IPINVELECT3_1645,"5,845.47",Purchase Invoice
BIS,Skills Funding Agency,05/08/2014,Design,Operations - Change Delivery,CAPGEMINI UK PLC,SPINVB_23085,"18,777.60",Purchase Invoice
BIS,Skills Funding Agency,05/08/2014,Design,Operations - Change Delivery,CAPGEMINI UK PLC,SPINVB_23093,"31,556.40",Purchase Invoice
BIS,Skills Funding Agency,05/08/2014,Design,Operations - Projects,DIGI2AL LTD,SPINVB_23118,"22,299.24",Purchase Invoice
BIS,Skills Funding Agency,05/08/2014,Hardware Maintenance & Repair,Operations - Projects,CAPGEMINI UK PLC,SPINVB_23108,"5,685.78",Purchase Invoice
BIS,Skills Funding Agency,05/08/2014,Hosting,Operations - Business IT - Citizen Services,CAPGEMINI UK PLC,SPINVB_23061,180.00,Purchase Invoice
BIS,Skills Funding Agency,05/08/2014,Implementation,Operations - Projects,CAPGEMINI UK PLC,SPINVB_23080,"95,584.98",Purchase Invoice
BIS,Skills Funding Agency,05/08/2014,Implementation,Projects - Programme Delivery Projects,CAPGEMINI UK PLC,SPINVB_23081,"7,458.29",Purchase Invoice
BIS,Skills Funding Agency,05/08/2014,Information Technology Systems Development,Operations - Projects,CAPGEMINI UK PLC,SPINVB_23099,"42,996.00",Purchase Invoice
BIS,Skills Funding Agency,05/08/2014,Information Technology Systems Development,Projects - Programme Delivery Projects,CAPGEMINI UK PLC,SPINVB_23068,"24,208.38",Purchase Invoice
BIS,Skills Funding Agency,05/08/2014,Information Technology Systems Development,Projects - Programme Delivery Projects,CAPGEMINI UK PLC,SPINVB_23075,"333,395.66",Purchase Invoice
BIS,Skills Funding Agency,05/08/2014,"Information, Advice and Guidance - Local",Main Funding,CFBT ADVICE & GUIDANCE LIMITED,SPINVB_22853,"7,763.00",Purchase Invoice
BIS,Skills Funding Agency,05/08/2014,"Information, Advice and Guidance - Local",Main Funding,CFBT ADVICE & GUIDANCE LIMITED,SPINVB_22854,"359,454.17",Purchase Invoice
BIS,Skills Funding Agency,05/08/2014,"Information, Advice and Guidance - Local",Main Funding,GMCP ENTERPRISE LTD,SPINVB_22909,"61,838.00",Purchase Invoice
BIS,Skills Funding Agency,05/08/2014,"Information, Advice and Guidance - Local",Main Funding,GMCP ENTERPRISE LTD,SPINVB_22910,"151,149.00",Purchase Invoice
BIS,Skills Funding Agency,05/08/2014,"Information, Advice and Guidance - Local",Main Funding,GMCP ENTERPRISE LTD,SPINVB_22911,"165,594.17",Purchase Invoice
BIS,Skills Funding Agency,05/08/2014,"Information, Advice and Guidance - Local",Main Funding,GMCP ENTERPRISE LTD,SPINVB_22916,360.00,Purchase Invoice
BIS,Skills Funding Agency,05/08/2014,"Information, Advice and Guidance - Local",Main Funding,GMCP ENTERPRISE LTD,SPINVB_22917,360.00,Purchase Invoice
BIS,Skills Funding Agency,05/08/2014,Landline Telephone Service,Operations - Technical Design Authority,IDN TELECOM LTD,IPINVELECT3_1644,619.06,Purchase Invoice
BIS,Skills Funding Agency,05/08/2014,"National Apprenticeship Service - Business, Innovation & Skills - Non-Participation",Communications & Marketing,BRAY LEINO LIMITED,SPINVB_23113,"1,414.80",Purchase Invoice
BIS,Skills Funding Agency,05/08/2014,"National Apprenticeship Service - Business, Innovation & Skills - Non-Participation",Communications & Marketing,ECHO MANAGED SERVICES LIMITED,SPINVB_23127,"20,808.00",Purchase Invoice
BIS,Skills Funding Agency,05/08/2014,"National Apprenticeship Service - Business, Innovation & Skills - Non-Participation",Communications & Marketing,ECHO MANAGED SERVICES LIMITED,SPINVB_23128,"23,886.00",Purchase Invoice
BIS,Skills Funding Agency,05/08/2014,"National Apprenticeship Service - Business, Innovation & Skills - Non-Participation",Communications & Marketing,M4C - A DIVISION OF GROUPM,SPINVB_21995,"24,423.44",Purchase Invoice
BIS,Skills Funding Agency,05/08/2014,"National Apprenticeship Service - Business, Innovation & Skills - Non-Participation",Communications & Marketing,M4C - A DIVISION OF GROUPM,SPINVB_22228,"22,248.36",Purchase Invoice
BIS,Skills Funding Agency,05/08/2014,"National Apprenticeship Service - Business, Innovation & Skills - Non-Participation",Communications & Marketing,PANLOGIC LTD,SPINVB_22618,"3,060.00",Purchase Invoice
BIS,Skills Funding Agency,05/08/2014,"National Apprenticeship Service - Business, Innovation & Skills - Non-Participation",Communications & Marketing,PANLOGIC LTD,SPINVB_23122,"1,020.00",Purchase Invoice
BIS,Skills Funding Agency,05/08/2014,"National Apprenticeship Service - Business, Innovation & Skills - Non-Participation",Communications & Marketing,PANLOGIC LTD,SPINVB_23123,"11,941.20",Purchase Invoice
BIS,Skills Funding Agency,05/08/2014,"National Apprenticeship Service - Business, Innovation & Skills - Non-Participation",Communications & Marketing,PANLOGIC LTD,SPINVB_23125,450.00,Purchase Invoice
BIS,Skills Funding Agency,05/08/2014,"National Apprenticeship Service - Business, Innovation & Skills - Non-Participation",Communications & Marketing,WILLIAMS LEA LIMITED,SPINVB_23026,"1,827.84",Purchase Invoice
BIS,Skills Funding Agency,05/08/2014,"National Apprenticeship Service - Business, Innovation & Skills - Non-Participation",Communications & Marketing,WILLIAMS LEA LIMITED,SPINVB_23027,749.69,Purchase Invoice
BIS,Skills Funding Agency,05/08/2014,"National Apprenticeship Service - Business, Innovation & Skills - Non-Participation",Communications & Marketing,WILLIAMS LEA LIMITED,SPINVB_23028,"8,904.00",Purchase Invoice
BIS,Skills Funding Agency,05/08/2014,"National Apprenticeship Service - Business, Innovation & Skills - Non-Participation",Communications & Marketing,WILLIAMS LEA LIMITED,SPINVB_23029,"2,941.12",Purchase Invoice
BIS,Skills Funding Agency,05/08/2014,National Careers Service Development,Communications & Marketing,MINDSHARE MEDIA UK LTD,SPINVB_23119,"26,610.00",Purchase Invoice
BIS,Skills Funding Agency,05/08/2014,Next Step Helpline,Main Funding,BROADCASTING SUPPORT SERVICES,SPINVB_23116,600.00,Purchase Invoice
BIS,Skills Funding Agency,05/08/2014,Next Step Helpline,Main Funding,HOTCOURSES LTD,SPINVB_23037,"105,037.20",Purchase Invoice
BIS,Skills Funding Agency,05/08/2014,Next Step Helpline,Main Funding,ICONNECTEL TELCOM LTD,SPINVB_23115,"15,461.64",Purchase Invoice
BIS,Skills Funding Agency,05/08/2014,Offender Learning and Skills Service - Information & Guidance,Main Funding,BABCOCK CAREERS GUIDANCE LIMITED,SPINVB_22899,"20,751.00",Purchase Invoice
BIS,Skills Funding Agency,05/08/2014,Offender Learning and Skills Service - Information & Guidance,Main Funding,BABCOCK CAREERS GUIDANCE LIMITED,SPINVB_22900,"5,127.49",Purchase Invoice
BIS,Skills Funding Agency,05/08/2014,Offender Learning and Skills Service - Information & Guidance,Main Funding,BABCOCK CAREERS GUIDANCE LIMITED,SPINVB_22901,"107,279.00",Purchase Invoice
BIS,Skills Funding Agency,05/08/2014,Offender Learning and Skills Service - Information & Guidance,Main Funding,CFBT ADVICE & GUIDANCE LIMITED,SPINVB_22855,"52,843.57",Purchase Invoice
BIS,Skills Funding Agency,05/08/2014,Offender Learning and Skills Service - Information & Guidance,Main Funding,GMCP ENTERPRISE LTD,SPINVB_22912,"25,218.16",Purchase Invoice
BIS,Skills Funding Agency,05/08/2014,Offender Learning and Skills Service - Information & Guidance,Main Funding,GMCP ENTERPRISE LTD,SPINVB_22913,"45,189.33",Purchase Invoice
BIS,Skills Funding Agency,05/08/2014,Professional Services,Operations - Projects,FORDWAY SOLUTIONS LIMITED,SPINVB_22759,"9,071.05",Purchase Invoice
BIS,Skills Funding Agency,05/08/2014,Professional Services,Operations - Projects,SERVICENOW NEDERLAND B.V.,SPINVB_22729,"29,440.00",Purchase Invoice
BIS,Skills Funding Agency,05/08/2014,Professional Services,Projects - Programme Delivery Projects,ATKINS PLC,SPINVB_23008,"9,630.00",Purchase Invoice
BIS,Skills Funding Agency,05/08/2014,Redundancy Outplacements,HR - Human Resources Corporate,PENNA PLC,SPINVB_23126,"6,000.00",Purchase Invoice
BIS,Skills Funding Agency,05/08/2014,Reissue of Previously Returned Payment,None,PETE PINNINGTON PRESENTS,REISSUE_203,"2,500.00",Payment Reissue
BIS,Skills Funding Agency,05/08/2014,Software Maintenance & Repair,Operations - Projects,CAPGEMINI UK PLC,SPINVB_23076,"42,816.64",Purchase Invoice
BIS,Skills Funding Agency,05/08/2014,Software Maintenance & Repair,Operations - Projects,CAPGEMINI UK PLC,SPINVB_23088,"33,364.74",Purchase Invoice
BIS,Skills Funding Agency,05/08/2014,Sundry Items,Accounting Services,CAPGEMINI UK PLC,SPINVB_23061,0.12,Purchase Invoice
BIS,Skills Funding Agency,05/08/2014,Support Services,Operations - Projects,CAPGEMINI UK PLC,SPINVB_23063,"32,952.78",Purchase Invoice
BIS,Skills Funding Agency,05/08/2014,Support Services,Operations - Projects,CAPGEMINI UK PLC,SPINVB_23064,"31,677.66",Purchase Invoice
BIS,Skills Funding Agency,05/08/2014,Support Services,Operations - Projects,CAPGEMINI UK PLC,SPINVB_23065,"35,784.00",Purchase Invoice
BIS,Skills Funding Agency,05/08/2014,Support Services,Operations - Projects,CAPGEMINI UK PLC,SPINVB_23095,"16,354.80",Purchase Invoice
BIS,Skills Funding Agency,05/08/2014,Temporary Staff,HR - Human Resources,SF RECRUITMENT LTD,SPINVB_23110,756.00,Purchase Invoice
BIS,Skills Funding Agency,06/08/2014,Diesel Car Mileage Passenger Supplement,Employer & Provider Services North East & Yorkshire,Agency Staff Member,SCLAIM_38846,6.20,Staff Expenses Claim
BIS,Skills Funding Agency,06/08/2014,Diesel Car Mileage Passenger Supplement,Employer & Provider Services South East,Agency Staff Member,SCLAIM_38765,5.00,Staff Expenses Claim
BIS,Skills Funding Agency,06/08/2014,Diesel Car Mileage Passenger Supplement,Large Companies Unit,Agency Staff Member,SCLAIM_38806,5.30,Staff Expenses Claim
BIS,Skills Funding Agency,06/08/2014,Diesel Car Mileage Passenger Supplement,Large Companies Unit,Agency Staff Member,SCLAIM_38837,2.10,Staff Expenses Claim
BIS,Skills Funding Agency,06/08/2014,Diesel Car Mileage Passenger Supplement,Provider Financial Management & Assurance,Agency Staff Member,SCLAIM_38758,11.10,Staff Expenses Claim
BIS,Skills Funding Agency,06/08/2014,Diesel Car Mileage,"Business Development, Sales & Marketing",Agency Staff Member,SCLAIM_38859,274.50,Staff Expenses Claim
BIS,Skills Funding Agency,06/08/2014,Diesel Car Mileage,Central Delivery Service - Leeds,Agency Staff Member,SCLAIM_38778,1.80,Staff Expenses Claim
BIS,Skills Funding Agency,06/08/2014,Diesel Car Mileage,Employer & Provider Services Midlands,Agency Staff Member,SCLAIM_38790,148.50,Staff Expenses Claim
BIS,Skills Funding Agency,06/08/2014,Diesel Car Mileage,Employer & Provider Services Midlands,Agency Staff Member,SCLAIM_38791,49.50,Staff Expenses Claim
BIS,Skills Funding Agency,06/08/2014,Diesel Car Mileage,Employer & Provider Services Midlands,Agency Staff Member,SCLAIM_38810,135.00,Staff Expenses Claim
BIS,Skills Funding Agency,06/08/2014,Diesel Car Mileage,Employer & Provider Services North East & Yorkshire,Agency Staff Member,SCLAIM_38846,180.90,Staff Expenses Claim
BIS,Skills Funding Agency,06/08/2014,Diesel Car Mileage,Employer & Provider Services North West,Agency Staff Member,SCLAIM_38833,351.90,Staff Expenses Claim
BIS,Skills Funding Agency,06/08/2014,Diesel Car Mileage,Employer & Provider Services South East,Agency Staff Member,SCLAIM_38764,169.65,Staff Expenses Claim
BIS,Skills Funding Agency,06/08/2014,Diesel Car Mileage,Employer & Provider Services South East,Agency Staff Member,SCLAIM_38765,238.50,Staff Expenses Claim
BIS,Skills Funding Agency,06/08/2014,Diesel Car Mileage,Employer & Provider Services South East,Agency Staff Member,SCLAIM_38830,45.00,Staff Expenses Claim
BIS,Skills Funding Agency,06/08/2014,Diesel Car Mileage,Employer & Provider Services South West,Agency Staff Member,SCLAIM_38768,141.30,Staff Expenses Claim
BIS,Skills Funding Agency,06/08/2014,Diesel Car Mileage,Employer & Provider Services South West,Agency Staff Member,SCLAIM_38818,241.20,Staff Expenses Claim
BIS,Skills Funding Agency,06/08/2014,Diesel Car Mileage,Finance Division - Financial Control North,Agency Staff Member,SCLAIM_38775,213.30,Staff Expenses Claim
BIS,Skills Funding Agency,06/08/2014,Diesel Car Mileage,Finance Division - Financial Control North,Agency Staff Member,SCLAIM_38822,4.50,Staff Expenses Claim
BIS,Skills Funding Agency,06/08/2014,Diesel Car Mileage,Finance Division - Financial Control North,Agency Staff Member,SCLAIM_38861,97.20,Staff Expenses Claim
BIS,Skills Funding Agency,06/08/2014,Diesel Car Mileage,Finance Division - Provider Finance,Agency Staff Member,SCLAIM_38823,78.30,Staff Expenses Claim
BIS,Skills Funding Agency,06/08/2014,Diesel Car Mileage,Funding & Programmes - Employer Ownership Programme,Agency Staff Member,SCLAIM_38804,17.10,Staff Expenses Claim
BIS,Skills Funding Agency,06/08/2014,Diesel Car Mileage,Funding & Programmes - European Social Fund,Agency Staff Member,SCLAIM_38842,275.40,Staff Expenses Claim
BIS,Skills Funding Agency,06/08/2014,Diesel Car Mileage,Funding & Programmes - Funding Policy,Agency Staff Member,SCLAIM_38829,103.50,Staff Expenses Claim
BIS,Skills Funding Agency,06/08/2014,Diesel Car Mileage,Large Companies Unit,Agency Staff Member,SCLAIM_38771,84.60,Staff Expenses Claim
BIS,Skills Funding Agency,06/08/2014,Diesel Car Mileage,Large Companies Unit,Agency Staff Member,SCLAIM_38779,65.70,Staff Expenses Claim
BIS,Skills Funding Agency,06/08/2014,Diesel Car Mileage,Large Companies Unit,Agency Staff Member,SCLAIM_38787,343.35,Staff Expenses Claim
BIS,Skills Funding Agency,06/08/2014,Diesel Car Mileage,Large Companies Unit,Agency Staff Member,SCLAIM_38796,910.80,Staff Expenses Claim
BIS,Skills Funding Agency,06/08/2014,Diesel Car Mileage,Large Companies Unit,Agency Staff Member,SCLAIM_38800,374.40,Staff Expenses Claim
BIS,Skills Funding Agency,06/08/2014,Diesel Car Mileage,Large Companies Unit,Agency Staff Member,SCLAIM_38803,315.90,Staff Expenses Claim
BIS,Skills Funding Agency,06/08/2014,Diesel Car Mileage,Large Companies Unit,Agency Staff Member,SCLAIM_38806,236.70,Staff Expenses Claim
BIS,Skills Funding Agency,06/08/2014,Diesel Car Mileage,Large Companies Unit,Agency Staff Member,SCLAIM_38807,384.30,Staff Expenses Claim
BIS,Skills Funding Agency,06/08/2014,Diesel Car Mileage,Large Companies Unit,Agency Staff Member,SCLAIM_38811,178.20,Staff Expenses Claim
BIS,Skills Funding Agency,06/08/2014,Diesel Car Mileage,Large Companies Unit,Agency Staff Member,SCLAIM_38819,333.90,Staff Expenses Claim
BIS,Skills Funding Agency,06/08/2014,Diesel Car Mileage,Large Companies Unit,Agency Staff Member,SCLAIM_38837,105.75,Staff Expenses Claim
BIS,Skills Funding Agency,06/08/2014,Diesel Car Mileage,Large Companies Unit,Agency Staff Member,SCLAIM_38838,97.20,Staff Expenses Claim
BIS,Skills Funding Agency,06/08/2014,Diesel Car Mileage,Large Companies Unit,Agency Staff Member,SCLAIM_38845,109.80,Staff Expenses Claim
BIS,Skills Funding Agency,06/08/2014,Diesel Car Mileage,Large Companies Unit,Agency Staff Member,SCLAIM_38848,265.50,Staff Expenses Claim
BIS,Skills Funding Agency,06/08/2014,Diesel Car Mileage,Large Companies Unit,Agency Staff Member,SCLAIM_38860,112.50,Staff Expenses Claim
BIS,Skills Funding Agency,06/08/2014,Diesel Car Mileage,Northern Division,Agency Staff Member,SCLAIM_38783,13.50,Staff Expenses Claim
BIS,Skills Funding Agency,06/08/2014,Diesel Car Mileage,Northern Division,Agency Staff Member,SCLAIM_38826,497.25,Staff Expenses Claim
BIS,Skills Funding Agency,06/08/2014,Diesel Car Mileage,Provider Financial Management & Assurance,Agency Staff Member,SCLAIM_38758,226.80,Staff Expenses Claim
BIS,Skills Funding Agency,06/08/2014,Diesel Car Mileage,Provider Financial Management & Assurance,Agency Staff Member,SCLAIM_38772,85.50,Staff Expenses Claim
BIS,Skills Funding Agency,06/08/2014,Diesel Car Mileage,Provider Financial Management & Assurance,Agency Staff Member,SCLAIM_38851,74.70,Staff Expenses Claim
BIS,Skills Funding Agency,06/08/2014,Diesel Car Mileage,Provider Financial Management & Assurance,Agency Staff Member,SCLAIM_38855,180.00,Staff Expenses Claim
BIS,Skills Funding Agency,06/08/2014,Diesel Car Mileage,Relationship Team - South,Agency Staff Member,SCLAIM_38797,48.60,Staff Expenses Claim
BIS,Skills Funding Agency,06/08/2014,Diesel Car Mileage,Skills Marketing,Agency Staff Member,SCLAIM_38786,115.20,Staff Expenses Claim
BIS,Skills Funding Agency,06/08/2014,Diesel Car Mileage,Southern Division,Agency Staff Member,SCLAIM_38840,117.45,Staff Expenses Claim
BIS,Skills Funding Agency,06/08/2014,Eye Tests,Funding & Programmes - Funding Systems and Information,Agency Staff Member,SCLAIM_38844,80.00,Staff Expenses Claim
BIS,Skills Funding Agency,06/08/2014,Eye Tests,Operations - Information & Communication Technology - Digital,Agency Staff Member,SCLAIM_38843,20.00,Staff Expenses Claim
BIS,Skills Funding Agency,06/08/2014,Hospitality,Central Division,Agency Staff Member,SCLAIM_38815,13.60,Staff Expenses Claim
BIS,Skills Funding Agency,06/08/2014,National Careers Service Development,Main Funding,MARKET & OPINION RESEARCH INTERNATIONAL LTD,SPINVB_22991,"119,419.92",Purchase Invoice
BIS,Skills Funding Agency,06/08/2014,National Careers Service Youth Contract,Main Funding,CFBT ADVICE & GUIDANCE LIMITED,SPINVB_22428,"11,599.00",Purchase Invoice
BIS,Skills Funding Agency,06/08/2014,Next Step Helpline,Main Funding,BROADCASTING SUPPORT SERVICES,SPINVB_22691,"711,438.89",Purchase Invoice
BIS,Skills Funding Agency,06/08/2014,Offender Learning and Skills Service - Information & Guidance,Main Funding,CFBT ADVICE & GUIDANCE LIMITED,SPINVB_22429,"56,385.17",Purchase Invoice
BIS,Skills Funding Agency,06/08/2014,Other Fuel Car Mileage,Large Companies Unit,Agency Staff Member,SCLAIM_38856,357.75,Staff Expenses Claim
BIS,Skills Funding Agency,06/08/2014,Other Travel,"Business Development, Sales & Marketing",Agency Staff Member,SCLAIM_38859,10.80,Staff Expenses Claim
BIS,Skills Funding Agency,06/08/2014,Other Travel,Central Delivery Service - European Social Fund - Audit Compliance,Agency Staff Member,SCLAIM_38776,3.00,Staff Expenses Claim
BIS,Skills Funding Agency,06/08/2014,Other Travel,Central Delivery Service - European Social Fund - Audit Compliance,Agency Staff Member,SCLAIM_38792,10.80,Staff Expenses Claim
BIS,Skills Funding Agency,06/08/2014,Other Travel,Central Delivery Service - European Social Fund - Audit Compliance,Agency Staff Member,SCLAIM_38793,16.00,Staff Expenses Claim
BIS,Skills Funding Agency,06/08/2014,Other Travel,Central Delivery Service - European Social Fund - Audit Compliance,Agency Staff Member,SCLAIM_38864,12.00,Staff Expenses Claim
BIS,Skills Funding Agency,06/08/2014,Other Travel,Central Delivery Service - Leeds,Agency Staff Member,SCLAIM_38766,8.60,Staff Expenses Claim
BIS,Skills Funding Agency,06/08/2014,Other Travel,Central Delivery Service - Leeds,Agency Staff Member,SCLAIM_38778,11.00,Staff Expenses Claim
BIS,Skills Funding Agency,06/08/2014,Other Travel,Central Delivery Service - Leeds,Agency Staff Member,SCLAIM_38816,7.00,Staff Expenses Claim
BIS,Skills Funding Agency,06/08/2014,Other Travel,Central Delivery Service - London,Agency Staff Member,SCLAIM_38767,10.20,Staff Expenses Claim
BIS,Skills Funding Agency,06/08/2014,Other Travel,Central Delivery Service - London,Agency Staff Member,SCLAIM_38774,3.80,Staff Expenses Claim
BIS,Skills Funding Agency,06/08/2014,Other Travel,Central Delivery Service - London,Agency Staff Member,SCLAIM_38836,22.30,Staff Expenses Claim
BIS,Skills Funding Agency,06/08/2014,Other Travel,Central Delivery Service - London,Agency Staff Member,SCLAIM_38863,42.70,Staff Expenses Claim
BIS,Skills Funding Agency,06/08/2014,Other Travel,Central Division,Agency Staff Member,SCLAIM_38815,14.40,Staff Expenses Claim
BIS,Skills Funding Agency,06/08/2014,Other Travel,Central Division,Agency Staff Member,SCLAIM_38847,12.00,Staff Expenses Claim
BIS,Skills Funding Agency,06/08/2014,Other Travel,Central Division,Agency Staff Member,SCLAIM_38849,5.00,Staff Expenses Claim
BIS,Skills Funding Agency,06/08/2014,Other Travel,Communications & Campaigns - Corporate Communications,Agency Staff Member,SCLAIM_38808,53.50,Staff Expenses Claim
BIS,Skills Funding Agency,06/08/2014,Other Travel,Employer & Provider Services Midlands,Agency Staff Member,SCLAIM_38773,70.00,Staff Expenses Claim
BIS,Skills Funding Agency,06/08/2014,Other Travel,Employer & Provider Services Midlands,Agency Staff Member,SCLAIM_38790,32.00,Staff Expenses Claim
BIS,Skills Funding Agency,06/08/2014,Other Travel,Employer & Provider Services Midlands,Agency Staff Member,SCLAIM_38791,30.00,Staff Expenses Claim
BIS,Skills Funding Agency,06/08/2014,Other Travel,Employer & Provider Services Midlands,Agency Staff Member,SCLAIM_38810,20.00,Staff Expenses Claim
BIS,Skills Funding Agency,06/08/2014,Other Travel,Employer & Provider Services North East & Yorkshire,Agency Staff Member,SCLAIM_38757,5.40,Staff Expenses Claim
BIS,Skills Funding Agency,06/08/2014,Other Travel,Employer & Provider Services North West,Agency Staff Member,SCLAIM_38833,54.50,Staff Expenses Claim
BIS,Skills Funding Agency,06/08/2014,Other Travel,Employer & Provider Services South East,Agency Staff Member,SCLAIM_38764,45.32,Staff Expenses Claim
BIS,Skills Funding Agency,06/08/2014,Other Travel,Employer & Provider Services South East,Agency Staff Member,SCLAIM_38821,10.50,Staff Expenses Claim
BIS,Skills Funding Agency,06/08/2014,Other Travel,Employer & Provider Services South East,Agency Staff Member,SCLAIM_38830,16.00,Staff Expenses Claim
BIS,Skills Funding Agency,06/08/2014,Other Travel,Employer & Provider Services South West,Agency Staff Member,SCLAIM_38768,14.80,Staff Expenses Claim
BIS,Skills Funding Agency,06/08/2014,Other Travel,Employer & Provider Services South West,Agency Staff Member,SCLAIM_38817,15.70,Staff Expenses Claim
BIS,Skills Funding Agency,06/08/2014,Other Travel,Employer & Provider Services South West,Agency Staff Member,SCLAIM_38818,17.50,Staff Expenses Claim
BIS,Skills Funding Agency,06/08/2014,Other Travel,Finance Division - Financial Control North,Agency Staff Member,SCLAIM_38861,33.00,Staff Expenses Claim
BIS,Skills Funding Agency,06/08/2014,Other Travel,Finance Division - Provider Finance,Agency Staff Member,SCLAIM_38823,8.10,Staff Expenses Claim
BIS,Skills Funding Agency,06/08/2014,Other Travel,Finance Division - Provider Financial Assurance Audit,Agency Staff Member,SCLAIM_38780,11.50,Staff Expenses Claim
BIS,Skills Funding Agency,06/08/2014,Other Travel,Funding & Programmes - Employer Ownership Programme,Agency Staff Member,SCLAIM_38804,30.00,Staff Expenses Claim
BIS,Skills Funding Agency,06/08/2014,Other Travel,Funding & Programmes - Funding Systems and Information,Agency Staff Member,SCLAIM_38762,10.00,Staff Expenses Claim
BIS,Skills Funding Agency,06/08/2014,Other Travel,Funding & Programmes - Funding Systems and Information,Agency Staff Member,SCLAIM_38799,2.80,Staff Expenses Claim
BIS,Skills Funding Agency,06/08/2014,Other Travel,Internal Audit,Agency Staff Member,SCLAIM_38770,24.80,Staff Expenses Claim
BIS,Skills Funding Agency,06/08/2014,Other Travel,Internal Audit,Agency Staff Member,SCLAIM_38802,23.00,Staff Expenses Claim
BIS,Skills Funding Agency,06/08/2014,Other Travel,Large Companies Unit,Agency Staff Member,SCLAIM_38779,8.20,Staff Expenses Claim
BIS,Skills Funding Agency,06/08/2014,Other Travel,Large Companies Unit,Agency Staff Member,SCLAIM_38787,50.40,Staff Expenses Claim
BIS,Skills Funding Agency,06/08/2014,Other Travel,Large Companies Unit,Agency Staff Member,SCLAIM_38800,86.50,Staff Expenses Claim
BIS,Skills Funding Agency,06/08/2014,Other Travel,Large Companies Unit,Agency Staff Member,SCLAIM_38803,57.50,Staff Expenses Claim
BIS,Skills Funding Agency,06/08/2014,Other Travel,Large Companies Unit,Agency Staff Member,SCLAIM_38806,25.30,Staff Expenses Claim
BIS,Skills Funding Agency,06/08/2014,Other Travel,Large Companies Unit,Agency Staff Member,SCLAIM_38807,3.00,Staff Expenses Claim
BIS,Skills Funding Agency,06/08/2014,Other Travel,Large Companies Unit,Agency Staff Member,SCLAIM_38811,78.60,Staff Expenses Claim
BIS,Skills Funding Agency,06/08/2014,Other Travel,Large Companies Unit,Agency Staff Member,SCLAIM_38812,72.00,Staff Expenses Claim
BIS,Skills Funding Agency,06/08/2014,Other Travel,Large Companies Unit,Agency Staff Member,SCLAIM_38814,150.00,Staff Expenses Claim
BIS,Skills Funding Agency,06/08/2014,Other Travel,Large Companies Unit,Agency Staff Member,SCLAIM_38819,14.45,Staff Expenses Claim
BIS,Skills Funding Agency,06/08/2014,Other Travel,Large Companies Unit,Agency Staff Member,SCLAIM_38824,18.60,Staff Expenses Claim
BIS,Skills Funding Agency,06/08/2014,Other Travel,Large Companies Unit,Agency Staff Member,SCLAIM_38831,14.20,Staff Expenses Claim
BIS,Skills Funding Agency,06/08/2014,Other Travel,Large Companies Unit,Agency Staff Member,SCLAIM_38838,20.00,Staff Expenses Claim
BIS,Skills Funding Agency,06/08/2014,Other Travel,Large Companies Unit,Agency Staff Member,SCLAIM_38839,47.50,Staff Expenses Claim
BIS,Skills Funding Agency,06/08/2014,Other Travel,Large Companies Unit,Agency Staff Member,SCLAIM_38845,4.50,Staff Expenses Claim
BIS,Skills Funding Agency,06/08/2014,Other Travel,Large Companies Unit,Agency Staff Member,SCLAIM_38848,35.00,Staff Expenses Claim
BIS,Skills Funding Agency,06/08/2014,Other Travel,Large Companies Unit,Agency Staff Member,SCLAIM_38854,4.40,Staff Expenses Claim
BIS,Skills Funding Agency,06/08/2014,Other Travel,Large Companies Unit,Agency Staff Member,SCLAIM_38856,4.00,Staff Expenses Claim
BIS,Skills Funding Agency,06/08/2014,Other Travel,Large Companies Unit,Agency Staff Member,SCLAIM_38860,3.00,Staff Expenses Claim
BIS,Skills Funding Agency,06/08/2014,Other Travel,Marketing & Communications,Agency Staff Member,SCLAIM_38784,26.50,Staff Expenses Claim
BIS,Skills Funding Agency,06/08/2014,Other Travel,Northern Division,Agency Staff Member,SCLAIM_38783,1.00,Staff Expenses Claim
BIS,Skills Funding Agency,06/08/2014,Other Travel,Northern Division,Agency Staff Member,SCLAIM_38826,11.30,Staff Expenses Claim
BIS,Skills Funding Agency,06/08/2014,Other Travel,Provider Financial Management & Assurance,Agency Staff Member,SCLAIM_38758,61.10,Staff Expenses Claim
BIS,Skills Funding Agency,06/08/2014,Other Travel,Provider Financial Management & Assurance,Agency Staff Member,SCLAIM_38772,37.00,Staff Expenses Claim
BIS,Skills Funding Agency,06/08/2014,Other Travel,Provider Financial Management & Assurance,Agency Staff Member,SCLAIM_38809,3.70,Staff Expenses Claim
BIS,Skills Funding Agency,06/08/2014,Other Travel,Provider Financial Management & Assurance,Agency Staff Member,SCLAIM_38850,4.60,Staff Expenses Claim
BIS,Skills Funding Agency,06/08/2014,Other Travel,Provider Financial Management & Assurance,Agency Staff Member,SCLAIM_38851,14.40,Staff Expenses Claim
BIS,Skills Funding Agency,06/08/2014,Other Travel,Provider Financial Management & Assurance,Agency Staff Member,SCLAIM_38855,8.00,Staff Expenses Claim
BIS,Skills Funding Agency,06/08/2014,Other Travel,Relationship Team - North,Agency Staff Member,SCLAIM_38782,8.00,Staff Expenses Claim
BIS,Skills Funding Agency,06/08/2014,Other Travel,Relationship Team - North,Agency Staff Member,SCLAIM_38820,21.10,Staff Expenses Claim
BIS,Skills Funding Agency,06/08/2014,Other Travel,Relationship Team - North,Agency Staff Member,SCLAIM_38832,100.00,Staff Expenses Claim
BIS,Skills Funding Agency,06/08/2014,Other Travel,Relationship Team - South,Agency Staff Member,SCLAIM_38201,6.00,Staff Expenses Claim
BIS,Skills Funding Agency,06/08/2014,Other Travel,Relationship Team - South,Agency Staff Member,SCLAIM_38797,12.70,Staff Expenses Claim
BIS,Skills Funding Agency,06/08/2014,Other Travel,Relationship Team - South,Agency Staff Member,SCLAIM_38798,22.70,Staff Expenses Claim
BIS,Skills Funding Agency,06/08/2014,Other Travel,Skills Marketing,Agency Staff Member,SCLAIM_38828,7.70,Staff Expenses Claim
BIS,Skills Funding Agency,06/08/2014,Other Travel,Southern Division,Agency Staff Member,SCLAIM_38840,24.50,Staff Expenses Claim
BIS,Skills Funding Agency,06/08/2014,Petrol Car Mileage Passenger Supplement,Central Delivery Service - Birmingham,Agency Staff Member,SCLAIM_38769,3.50,Staff Expenses Claim
BIS,Skills Funding Agency,06/08/2014,Petrol Car Mileage Passenger Supplement,Central Delivery Service - European Social Fund - Audit Compliance,Agency Staff Member,SCLAIM_38793,41.10,Staff Expenses Claim
BIS,Skills Funding Agency,06/08/2014,Petrol Car Mileage Passenger Supplement,Employer & Provider Services South East,Agency Staff Member,SCLAIM_38821,0.70,Staff Expenses Claim
BIS,Skills Funding Agency,06/08/2014,Petrol Car Mileage Passenger Supplement,Finance Division - Provider Financial Assurance Audit,Agency Staff Member,SCLAIM_38777,5.50,Staff Expenses Claim
BIS,Skills Funding Agency,06/08/2014,Petrol Car Mileage Passenger Supplement,Large Companies Unit,Agency Staff Member,SCLAIM_38814,25.55,Staff Expenses Claim
BIS,Skills Funding Agency,06/08/2014,Petrol Car Mileage Passenger Supplement,Large Companies Unit,Agency Staff Member,SCLAIM_38839,6.00,Staff Expenses Claim
BIS,Skills Funding Agency,06/08/2014,Petrol Car Mileage Passenger Supplement,Northern Division,Agency Staff Member,SCLAIM_38794,11.60,Staff Expenses Claim
BIS,Skills Funding Agency,06/08/2014,Petrol Car Mileage Passenger Supplement,Relationship Team - North,Agency Staff Member,SCLAIM_38782,3.50,Staff Expenses Claim
BIS,Skills Funding Agency,06/08/2014,Petrol Car Mileage Passenger Supplement,Relationship Team - North,Agency Staff Member,SCLAIM_38820,2.90,Staff Expenses Claim
BIS,Skills Funding Agency,06/08/2014,Petrol Car Mileage,Central Delivery Service - Birmingham,Agency Staff Member,SCLAIM_38769,99.00,Staff Expenses Claim
BIS,Skills Funding Agency,06/08/2014,Petrol Car Mileage,Central Delivery Service - Birmingham,Agency Staff Member,SCLAIM_38825,11.70,Staff Expenses Claim
BIS,Skills Funding Agency,06/08/2014,Petrol Car Mileage,Central Delivery Service - European Social Fund - Audit Compliance,Agency Staff Member,SCLAIM_38776,106.20,Staff Expenses Claim
BIS,Skills Funding Agency,06/08/2014,Petrol Car Mileage,Central Delivery Service - European Social Fund - Audit Compliance,Agency Staff Member,SCLAIM_38792,106.20,Staff Expenses Claim
BIS,Skills Funding Agency,06/08/2014,Petrol Car Mileage,Central Delivery Service - European Social Fund - Audit Compliance,Agency Staff Member,SCLAIM_38793,155.70,Staff Expenses Claim
BIS,Skills Funding Agency,06/08/2014,Petrol Car Mileage,Central Delivery Service - European Social Fund - Audit Compliance,Agency Staff Member,SCLAIM_38864,99.00,Staff Expenses Claim
BIS,Skills Funding Agency,06/08/2014,Petrol Car Mileage,Central Delivery Service - Leeds,Agency Staff Member,SCLAIM_38766,80.10,Staff Expenses Claim
BIS,Skills Funding Agency,06/08/2014,Petrol Car Mileage,Central Delivery Service - Leeds,Agency Staff Member,SCLAIM_38816,84.60,Staff Expenses Claim
BIS,Skills Funding Agency,06/08/2014,Petrol Car Mileage,Central Delivery Service - London,Agency Staff Member,SCLAIM_38774,140.40,Staff Expenses Claim
BIS,Skills Funding Agency,06/08/2014,Petrol Car Mileage,Central Delivery Service - London,Agency Staff Member,SCLAIM_38836,15.30,Staff Expenses Claim
BIS,Skills Funding Agency,06/08/2014,Petrol Car Mileage,Central Division,Agency Staff Member,SCLAIM_38815,107.10,Staff Expenses Claim
BIS,Skills Funding Agency,06/08/2014,Petrol Car Mileage,Central Division,Agency Staff Member,SCLAIM_38847,432.00,Staff Expenses Claim
BIS,Skills Funding Agency,06/08/2014,Petrol Car Mileage,Central Division,Agency Staff Member,SCLAIM_38849,342.90,Staff Expenses Claim
BIS,Skills Funding Agency,06/08/2014,Petrol Car Mileage,Employer & Provider Services North East & Yorkshire,Agency Staff Member,SCLAIM_38757,78.30,Staff Expenses Claim
BIS,Skills Funding Agency,06/08/2014,Petrol Car Mileage,Employer & Provider Services South East,Agency Staff Member,SCLAIM_38821,48.60,Staff Expenses Claim
BIS,Skills Funding Agency,06/08/2014,Petrol Car Mileage,Employer & Provider Services South East,Agency Staff Member,SCLAIM_38841,499.50,Staff Expenses Claim
BIS,Skills Funding Agency,06/08/2014,Petrol Car Mileage,Employer & Provider Services South West,Agency Staff Member,SCLAIM_38817,61.65,Staff Expenses Claim
BIS,Skills Funding Agency,06/08/2014,Petrol Car Mileage,Finance Division - Provider Financial Assurance Audit,Agency Staff Member,SCLAIM_38759,66.60,Staff Expenses Claim
BIS,Skills Funding Agency,06/08/2014,Petrol Car Mileage,Finance Division - Provider Financial Assurance Audit,Agency Staff Member,SCLAIM_38777,180.00,Staff Expenses Claim
BIS,Skills Funding Agency,06/08/2014,Petrol Car Mileage,Large Companies Unit,Agency Staff Member,SCLAIM_38812,80.10,Staff Expenses Claim
BIS,Skills Funding Agency,06/08/2014,Petrol Car Mileage,Large Companies Unit,Agency Staff Member,SCLAIM_38814,266.40,Staff Expenses Claim
BIS,Skills Funding Agency,06/08/2014,Petrol Car Mileage,Large Companies Unit,Agency Staff Member,SCLAIM_38824,685.80,Staff Expenses Claim
BIS,Skills Funding Agency,06/08/2014,Petrol Car Mileage,Large Companies Unit,Agency Staff Member,SCLAIM_38831,97.20,Staff Expenses Claim
BIS,Skills Funding Agency,06/08/2014,Petrol Car Mileage,Large Companies Unit,Agency Staff Member,SCLAIM_38839,321.75,Staff Expenses Claim
BIS,Skills Funding Agency,06/08/2014,Petrol Car Mileage,Large Companies Unit,Agency Staff Member,SCLAIM_38854,62.55,Staff Expenses Claim
BIS,Skills Funding Agency,06/08/2014,Petrol Car Mileage,Northern Division,Agency Staff Member,SCLAIM_38794,126.00,Staff Expenses Claim
BIS,Skills Funding Agency,06/08/2014,Petrol Car Mileage,Operations - Information & Communication Technology - Digital,Agency Staff Member,SCLAIM_38789,72.00,Staff Expenses Claim
BIS,Skills Funding Agency,06/08/2014,Petrol Car Mileage,Operations - Information & Communication Technology - Digital,Agency Staff Member,SCLAIM_38805,18.90,Staff Expenses Claim
BIS,Skills Funding Agency,06/08/2014,Petrol Car Mileage,Provider Financial Management & Assurance,Agency Staff Member,SCLAIM_38809,143.10,Staff Expenses Claim
BIS,Skills Funding Agency,06/08/2014,Petrol Car Mileage,Provider Financial Management & Assurance,Agency Staff Member,SCLAIM_38850,35.55,Staff Expenses Claim
BIS,Skills Funding Agency,06/08/2014,Petrol Car Mileage,Relationship Team - North,Agency Staff Member,SCLAIM_38782,149.40,Staff Expenses Claim
BIS,Skills Funding Agency,06/08/2014,Petrol Car Mileage,Relationship Team - North,Agency Staff Member,SCLAIM_38820,64.35,Staff Expenses Claim
BIS,Skills Funding Agency,06/08/2014,Petrol Car Mileage,Relationship Team - North,Agency Staff Member,SCLAIM_38832,8.10,Staff Expenses Claim
BIS,Skills Funding Agency,06/08/2014,Petrol Car Mileage,Relationship Team - South,Agency Staff Member,SCLAIM_38201,546.75,Staff Expenses Claim
BIS,Skills Funding Agency,06/08/2014,Petrol Car Mileage,Relationship Team - South,Agency Staff Member,SCLAIM_38798,123.75,Staff Expenses Claim
BIS,Skills Funding Agency,06/08/2014,Petrol Car Mileage,Skills Marketing,Agency Staff Member,SCLAIM_38761,28.80,Staff Expenses Claim
BIS,Skills Funding Agency,06/08/2014,Petrol Car Mileage,Skills Marketing,Agency Staff Member,SCLAIM_38763,572.40,Staff Expenses Claim
BIS,Skills Funding Agency,06/08/2014,Petrol Car Mileage,Skills Marketing,Agency Staff Member,SCLAIM_38785,88.20,Staff Expenses Claim
BIS,Skills Funding Agency,06/08/2014,Professional Services - Single Assignments,Funding & Programmes - Programme Performance,CAPGEMINI UK PLC,SPINVB_23059,"4,460.40",Purchase Invoice
BIS,Skills Funding Agency,06/08/2014,Rail Warrants & Tickets,Central Delivery Service - Birmingham,Agency Staff Member,SCLAIM_38781,29.60,Staff Expenses Claim
BIS,Skills Funding Agency,06/08/2014,Rail Warrants & Tickets,Central Division,Agency Staff Member,SCLAIM_38815,51.30,Staff Expenses Claim
BIS,Skills Funding Agency,06/08/2014,Rail Warrants & Tickets,Communications & Campaigns - Corporate Communications,Agency Staff Member,SCLAIM_38808,48.00,Staff Expenses Claim
BIS,Skills Funding Agency,06/08/2014,Rail Warrants & Tickets,Employer & Provider Services South East,Agency Staff Member,SCLAIM_38764,31.70,Staff Expenses Claim
BIS,Skills Funding Agency,06/08/2014,Rail Warrants & Tickets,Employer & Provider Services South East,Agency Staff Member,SCLAIM_38830,2.40,Staff Expenses Claim
BIS,Skills Funding Agency,06/08/2014,Rail Warrants & Tickets,Finance Division - Financial Control North,Agency Staff Member,SCLAIM_38861,36.00,Staff Expenses Claim
BIS,Skills Funding Agency,06/08/2014,Rail Warrants & Tickets,Funding & Programmes - Apprenticeships & Employer Policy Implement,Agency Staff Member,SCLAIM_38827,142.35,Staff Expenses Claim
BIS,Skills Funding Agency,06/08/2014,Rail Warrants & Tickets,Funding & Programmes - Funding Systems and Information,Agency Staff Member,SCLAIM_38762,27.80,Staff Expenses Claim
BIS,Skills Funding Agency,06/08/2014,Rail Warrants & Tickets,Large Companies Unit,Agency Staff Member,SCLAIM_38771,54.20,Staff Expenses Claim
BIS,Skills Funding Agency,06/08/2014,Rail Warrants & Tickets,Large Companies Unit,Agency Staff Member,SCLAIM_38779,24.40,Staff Expenses Claim
BIS,Skills Funding Agency,06/08/2014,Rail Warrants & Tickets,Large Companies Unit,Agency Staff Member,SCLAIM_38803,150.80,Staff Expenses Claim
BIS,Skills Funding Agency,06/08/2014,Rail Warrants & Tickets,Northern Division,Agency Staff Member,SCLAIM_38788,124.30,Staff Expenses Claim
BIS,Skills Funding Agency,06/08/2014,Rail Warrants & Tickets,Provider Financial Management & Assurance,Agency Staff Member,SCLAIM_38772,8.90,Staff Expenses Claim
BIS,Skills Funding Agency,06/08/2014,Rail Warrants & Tickets,Provider Financial Management & Assurance,Agency Staff Member,SCLAIM_38850,8.90,Staff Expenses Claim
BIS,Skills Funding Agency,06/08/2014,Rail Warrants & Tickets,Relationship Team - North,Agency Staff Member,SCLAIM_38820,3.60,Staff Expenses Claim
BIS,Skills Funding Agency,06/08/2014,Self-Drive Car Hire,Central Delivery Service - European Social Fund - Audit Compliance,Agency Staff Member,SCLAIM_38792,176.66,Staff Expenses Claim
BIS,Skills Funding Agency,06/08/2014,Self-Drive Car Hire,Central Delivery Service - European Social Fund - Audit Compliance,Agency Staff Member,SCLAIM_38865,67.50,Staff Expenses Claim
BIS,Skills Funding Agency,06/08/2014,Self-Drive Car Hire,Central Delivery Service - Leeds,Agency Staff Member,SCLAIM_38778,44.74,Staff Expenses Claim
BIS,Skills Funding Agency,06/08/2014,Self-Drive Car Hire,Central Delivery Service - Leeds,Agency Staff Member,SCLAIM_38816,24.62,Staff Expenses Claim
BIS,Skills Funding Agency,06/08/2014,Self-Drive Car Hire,Employer & Provider Services North East & Yorkshire,Agency Staff Member,SCLAIM_38846,26.00,Staff Expenses Claim
BIS,Skills Funding Agency,06/08/2014,Self-Drive Car Hire,Employer & Provider Services South East,Agency Staff Member,SCLAIM_38764,40.53,Staff Expenses Claim
BIS,Skills Funding Agency,06/08/2014,Self-Drive Car Hire,Finance Division - Contract Control,Agency Staff Member,SCLAIM_38852,20.00,Staff Expenses Claim
BIS,Skills Funding Agency,06/08/2014,Self-Drive Car Hire,Finance Division - Provider Financial Assurance Audit,Agency Staff Member,SCLAIM_38777,57.71,Staff Expenses Claim
BIS,Skills Funding Agency,06/08/2014,Self-Drive Car Hire,Finance Division - Provider Financial Assurance Audit,Agency Staff Member,SCLAIM_38780,26.54,Staff Expenses Claim
BIS,Skills Funding Agency,06/08/2014,Self-Drive Car Hire,Funding & Programmes - Employer Ownership Programme,Agency Staff Member,SCLAIM_38804,51.15,Staff Expenses Claim
BIS,Skills Funding Agency,06/08/2014,Self-Drive Car Hire,Funding & Programmes - Funding Systems and Information,Agency Staff Member,SCLAIM_38799,100.17,Staff Expenses Claim
BIS,Skills Funding Agency,06/08/2014,Self-Drive Car Hire,Provider Financial Management & Assurance,Agency Staff Member,SCLAIM_38772,41.72,Staff Expenses Claim
BIS,Skills Funding Agency,06/08/2014,Self-Drive Car Hire,Skills Marketing,Agency Staff Member,SCLAIM_38828,45.50,Staff Expenses Claim
BIS,Skills Funding Agency,06/08/2014,Subsistence,Central Delivery Service - European Social Fund - Audit Compliance,Agency Staff Member,SCLAIM_38792,20.00,Staff Expenses Claim
BIS,Skills Funding Agency,06/08/2014,Subsistence,Central Delivery Service - European Social Fund - Audit Compliance,Agency Staff Member,SCLAIM_38813,25.00,Staff Expenses Claim
BIS,Skills Funding Agency,06/08/2014,Subsistence,Central Delivery Service - European Social Fund - Audit Compliance,Agency Staff Member,SCLAIM_38865,50.00,Staff Expenses Claim
BIS,Skills Funding Agency,06/08/2014,Subsistence,Central Delivery Service - London,Agency Staff Member,SCLAIM_38767,25.00,Staff Expenses Claim
BIS,Skills Funding Agency,06/08/2014,Subsistence,Central Delivery Service - London,Agency Staff Member,SCLAIM_38836,25.00,Staff Expenses Claim
BIS,Skills Funding Agency,06/08/2014,Subsistence,Central Delivery Service - London,Agency Staff Member,SCLAIM_38863,25.00,Staff Expenses Claim
BIS,Skills Funding Agency,06/08/2014,Subsistence,Communications & Campaigns - Business Communications,Agency Staff Member,SCLAIM_38801,50.00,Staff Expenses Claim
BIS,Skills Funding Agency,06/08/2014,Subsistence,Communications & Campaigns - Corporate Communications,Agency Staff Member,SCLAIM_38808,200.00,Staff Expenses Claim
BIS,Skills Funding Agency,06/08/2014,Subsistence,Employer & Provider Services Midlands,Agency Staff Member,SCLAIM_38790,50.00,Staff Expenses Claim
BIS,Skills Funding Agency,06/08/2014,Subsistence,Employer & Provider Services Midlands,Agency Staff Member,SCLAIM_38791,25.00,Staff Expenses Claim
BIS,Skills Funding Agency,06/08/2014,Subsistence,Employer & Provider Services North West,Agency Staff Member,SCLAIM_38833,25.00,Staff Expenses Claim
BIS,Skills Funding Agency,06/08/2014,Subsistence,Employer & Provider Services South East,Agency Staff Member,SCLAIM_38830,105.00,Staff Expenses Claim
BIS,Skills Funding Agency,06/08/2014,Subsistence,Finance Division - Financial Control North,Agency Staff Member,SCLAIM_38861,9.44,Staff Expenses Claim
BIS,Skills Funding Agency,06/08/2014,Subsistence,Finance Division - Provider Financial Assurance Audit,Agency Staff Member,SCLAIM_38777,97.00,Staff Expenses Claim
BIS,Skills Funding Agency,06/08/2014,Subsistence,Finance Division - Provider Financial Assurance Audit,Agency Staff Member,SCLAIM_38780,25.00,Staff Expenses Claim
BIS,Skills Funding Agency,06/08/2014,Subsistence,Funding & Programmes - Employer Ownership Programme,Agency Staff Member,SCLAIM_38804,20.00,Staff Expenses Claim
BIS,Skills Funding Agency,06/08/2014,Subsistence,Funding & Programmes - Funding Systems and Information,Agency Staff Member,SCLAIM_38799,75.00,Staff Expenses Claim
BIS,Skills Funding Agency,06/08/2014,Subsistence,Internal Audit,Agency Staff Member,SCLAIM_38770,90.00,Staff Expenses Claim
BIS,Skills Funding Agency,06/08/2014,Subsistence,Internal Audit,Agency Staff Member,SCLAIM_38802,90.00,Staff Expenses Claim
BIS,Skills Funding Agency,06/08/2014,Subsistence,Large Companies Unit,Agency Staff Member,SCLAIM_38800,155.00,Staff Expenses Claim
BIS,Skills Funding Agency,06/08/2014,Subsistence,Large Companies Unit,Agency Staff Member,SCLAIM_38803,170.00,Staff Expenses Claim
BIS,Skills Funding Agency,06/08/2014,Subsistence,Large Companies Unit,Agency Staff Member,SCLAIM_38812,60.00,Staff Expenses Claim
BIS,Skills Funding Agency,06/08/2014,Subsistence,Large Companies Unit,Agency Staff Member,SCLAIM_38814,120.00,Staff Expenses Claim
BIS,Skills Funding Agency,06/08/2014,Subsistence,Large Companies Unit,Agency Staff Member,SCLAIM_38819,10.00,Staff Expenses Claim
BIS,Skills Funding Agency,06/08/2014,Subsistence,Large Companies Unit,Agency Staff Member,SCLAIM_38854,10.00,Staff Expenses Claim
BIS,Skills Funding Agency,06/08/2014,Subsistence,Operations - Information & Communication Technology - Digital,Agency Staff Member,SCLAIM_38789,35.00,Staff Expenses Claim
BIS,Skills Funding Agency,06/08/2014,Subsistence,Provider Financial Management & Assurance,Agency Staff Member,SCLAIM_38758,10.00,Staff Expenses Claim
BIS,Skills Funding Agency,06/08/2014,Subsistence,Provider Financial Management & Assurance,Agency Staff Member,SCLAIM_38772,45.00,Staff Expenses Claim
BIS,Skills Funding Agency,06/08/2014,Subsistence,Provider Financial Management & Assurance,Agency Staff Member,SCLAIM_38855,50.00,Staff Expenses Claim
BIS,Skills Funding Agency,06/08/2014,Subsistence,Relationship Team - North,Agency Staff Member,SCLAIM_38782,25.00,Staff Expenses Claim
BIS,Skills Funding Agency,06/08/2014,Subsistence,Relationship Team - North,Agency Staff Member,SCLAIM_38820,35.00,Staff Expenses Claim
BIS,Skills Funding Agency,06/08/2014,Subsistence,Relationship Team - North,Agency Staff Member,SCLAIM_38832,125.00,Staff Expenses Claim
BIS,Skills Funding Agency,06/08/2014,Subsistence,Skills Marketing,Agency Staff Member,SCLAIM_38786,25.00,Staff Expenses Claim
BIS,Skills Funding Agency,06/08/2014,Sundry Items,Operations - Information & Communication Technology - Digital,Agency Staff Member,SCLAIM_38789,109.77,Staff Expenses Claim
BIS,Skills Funding Agency,06/08/2014,Taxis,Central Delivery Service - European Social Fund - Audit Compliance,Agency Staff Member,SCLAIM_38792,17.00,Staff Expenses Claim
BIS,Skills Funding Agency,06/08/2014,Taxis,Central Delivery Service - European Social Fund - Audit Compliance,Agency Staff Member,SCLAIM_38813,98.00,Staff Expenses Claim
BIS,Skills Funding Agency,06/08/2014,Taxis,Central Delivery Service - European Social Fund - Audit Compliance,Agency Staff Member,SCLAIM_38865,22.50,Staff Expenses Claim
BIS,Skills Funding Agency,06/08/2014,Taxis,Central Delivery Service - London,Agency Staff Member,SCLAIM_38836,8.90,Staff Expenses Claim
BIS,Skills Funding Agency,06/08/2014,Taxis,Central Delivery Service - London,Agency Staff Member,SCLAIM_38863,24.85,Staff Expenses Claim
BIS,Skills Funding Agency,06/08/2014,Taxis,Employer & Provider Services North East & Yorkshire,Agency Staff Member,SCLAIM_38757,7.40,Staff Expenses Claim
BIS,Skills Funding Agency,06/08/2014,Taxis,Employer & Provider Services South East,Agency Staff Member,SCLAIM_38830,57.90,Staff Expenses Claim
BIS,Skills Funding Agency,06/08/2014,Taxis,Finance Division - Financial Control North,Agency Staff Member,SCLAIM_38861,17.40,Staff Expenses Claim
BIS,Skills Funding Agency,06/08/2014,Taxis,Large Companies Unit,Agency Staff Member,SCLAIM_38800,13.00,Staff Expenses Claim
BIS,Skills Funding Agency,06/08/2014,Taxis,London & South East Division,Agency Staff Member,SCLAIM_38834,8.60,Staff Expenses Claim
BIS,Skills Funding Agency,06/08/2014,Taxis,London & South East Division,Agency Staff Member,SCLAIM_38835,10.70,Staff Expenses Claim
BIS,Skills Funding Agency,06/08/2014,Taxis,Northern Division,Agency Staff Member,SCLAIM_38788,13.20,Staff Expenses Claim
BIS,Skills Funding Agency,06/08/2014,Taxis,Operations - Information & Communication Technology - Digital,Agency Staff Member,SCLAIM_38789,9.50,Staff Expenses Claim
BIS,Skills Funding Agency,06/08/2014,Taxis,Relationship Team - North,Agency Staff Member,SCLAIM_38820,33.00,Staff Expenses Claim
BIS,Skills Funding Agency,06/08/2014,Taxis,Relationship Team - North,Agency Staff Member,SCLAIM_38832,33.80,Staff Expenses Claim
BIS,Skills Funding Agency,06/08/2014,UK Skills - Competitions (International),Main Funding,WILLIAMS LEA LIMITED,SPINVNO_3549,518.36,Purchase Invoice
BIS,Skills Funding Agency,06/08/2014,UK Skills - Competitions (International),Main Funding,WILLIAMS LEA LIMITED,SPINVNO_3550,359.20,Purchase Invoice
BIS,Skills Funding Agency,06/08/2014,UK Skills - Competitions (International),Main Funding,WILLIAMS LEA LIMITED,SPINVNO_3551,"1,986.60",Purchase Invoice
BIS,Skills Funding Agency,08/08/2014,Communications Team Expenditure,Communications & Campaigns - Corporate Communications,DOD'S PARLIAMENTARY COMMUNICATIONS LTD,SPINVB_23196,"9,000.00",Purchase Invoice
BIS,Skills Funding Agency,08/08/2014,Course Fees,HR - Human Resources Corporate,GREENWICH�SCHOOL�OF�MANAGEMENT�LIMITED,SPINVCHQ_357,750.00,Purchase Invoice
BIS,Skills Funding Agency,08/08/2014,Design,Operations - Change Delivery,MASTEK UK LIMITED,SPINVB_23185,"12,144.00",Purchase Invoice
BIS,Skills Funding Agency,08/08/2014,Hosting,Operational Services - Service Management - Operate,SPECIALIST COMPUTER CENTRES PLC,SPINVB_23121,"9,882.48",Purchase Invoice
BIS,Skills Funding Agency,08/08/2014,"National Apprenticeship Service - Business, Innovation & Skills - Non-Participation",Communications & Marketing,ECHO MANAGED SERVICES LIMITED,SPINVB_22977,"1,454.33",Purchase Invoice
BIS,Skills Funding Agency,08/08/2014,National Careers Service Development,Communications & Marketing,MUNRO & FORSTER COMMUNICATIONS LIMITED,SPINVB_23179,"6,958.81",Purchase Invoice
BIS,Skills Funding Agency,08/08/2014,Next Step Development,Main Funding,ALERTS ONLINE LIMITED,SPINVB_22932,"4,863.73",Purchase Invoice
BIS,Skills Funding Agency,08/08/2014,Professional Services - Single Assignments,Chief Information Officer Services - Enterprise Architecture,CAPGEMINI UK PLC,SPINVB_22667,"29,736.00",Purchase Invoice
BIS,Skills Funding Agency,08/08/2014,Professional Services,Operations - Projects,CAPGEMINI UK PLC,SPINVB_23060,"33,421.20",Purchase Invoice
BIS,Skills Funding Agency,08/08/2014,Professional Services,Operations - Projects,CAPGEMINI UK PLC,SPINVB_23067,"46,252.08",Purchase Invoice
BIS,Skills Funding Agency,08/08/2014,Professional Services,Operations - Projects,CAPGEMINI UK PLC,SPINVB_23103,"123,130.51",Purchase Invoice
BIS,Skills Funding Agency,08/08/2014,Temporary Staff,Funding & Programmes - Programme Performance,HAYS SPECIALIST RECRUITMENT LTD,IPINVELECT3_1647,"1,650.00",Purchase Invoice
BIS,Skills Funding Agency,08/08/2014,Temporary Staff,Funding & Programmes - Programme Performance,LA INTERNATIONAL,SPINVB_22481,"13,800.00",Purchase Invoice
BIS,Skills Funding Agency,08/08/2014,Temporary Staff,Operations - Business IT - Citizen Services,BADENOCH & CLARK IP LTD,IPINVELECT3_1646,"3,297.84",Purchase Invoice
BIS,Skills Funding Agency,08/08/2014,Temporary Staff,Operations - Change Delivery,BADENOCH & CLARK IP LTD,IPINVELECT3_1646,"2,531.04",Purchase Invoice
BIS,Skills Funding Agency,08/08/2014,Temporary Staff,Operations - Project Delivery,BROOK STREET UK LTD,SPINVB_23191,514.80,Purchase Invoice
BIS,Skills Funding Agency,08/08/2014,Temporary Staff,Operations - Project Delivery,BROOK STREET UK LTD,SPINVB_23192,514.80,Purchase Invoice
BIS,Skills Funding Agency,08/08/2014,Temporary Staff,Operations - Project Delivery,BROOK STREET UK LTD,SPINVB_23193,494.21,Purchase Invoice
BIS,Skills Funding Agency,08/08/2014,Temporary Staff,Operations - Project Delivery,METHODS ADVISORY LTD,SPINVB_23147,"1,920.00",Purchase Invoice
BIS,Skills Funding Agency,08/08/2014,Temporary Staff,Operations - Project Delivery,METHODS ADVISORY LTD,SPINVB_23148,"9,383.58",Purchase Invoice
BIS,Skills Funding Agency,08/08/2014,Temporary Staff,Operations - Project Delivery,METHODS ADVISORY LTD,SPINVB_23149,"5,421.62",Purchase Invoice
BIS,Skills Funding Agency,08/08/2014,Temporary Staff,Operations - Project Delivery,METHODS ADVISORY LTD,SPINVB_23150,"3,336.38",Purchase Invoice
BIS,Skills Funding Agency,08/08/2014,Temporary Staff,Operations - Projects,MAGNETIC IT LIMITED,SPINVB_23157,"6,594.72",Purchase Invoice
BIS,Skills Funding Agency,08/08/2014,Temporary Staff,Operations - Projects,MAGNETIC IT LIMITED,SPINVB_23158,"5,252.16",Purchase Invoice
BIS,Skills Funding Agency,08/08/2014,Temporary Staff,Operations - Service Integration & Management,METHODS ADVISORY LTD,SPINVB_23151,"9,661.90",Purchase Invoice
BIS,Skills Funding Agency,08/08/2014,Temporary Staff,Operations - Service Integration & Management,METHODS ADVISORY LTD,SPINVB_23152,"22,050.00",Purchase Invoice
BIS,Skills Funding Agency,08/08/2014,Temporary Staff,Programme Delivery - Programme Management Office/Programme Support Office,METHODS ADVISORY LTD,SPINVB_23146,"3,120.00",Purchase Invoice
BIS,Skills Funding Agency,12/08/2014,Bank Charges,Strategic Finance - Financial Control Accounting Services,Citi Bank,BANKCHARGES_224,340.00,Bank Charge
BIS,Skills Funding Agency,12/08/2014,City Deals Wave 1,Main Funding,SHEFFIELD CITY COUNCIL,SPINVB_23174,"290,256.00",Purchase Invoice
BIS,Skills Funding Agency,12/08/2014,Communications Team Expenditure,Communications & Campaigns - Corporate Communications,GORKANA GROUP LTD,SPINVB_22733,"10,663.81",Purchase Invoice
BIS,Skills Funding Agency,12/08/2014,Electricity,Finance Division - Information Management Finance,OFFICE FOR NATIONAL STATISTICS,SPINVNO_3553,744.00,Purchase Invoice
BIS,Skills Funding Agency,12/08/2014,Electricity,HR - Facilities Central,CGI IT UK LIMITED,SPINVB_23114,105.73,Purchase Invoice
BIS,Skills Funding Agency,12/08/2014,Electricity,HR - Facilities Central,EDF ENERGY PLC,SPINVNO_3557,"13,718.16",Purchase Invoice
BIS,Skills Funding Agency,12/08/2014,Electricity,HR - Facilities Central,EDF ENERGY PLC,SPINVNO_3558,"6,236.28",Purchase Invoice
BIS,Skills Funding Agency,12/08/2014,Electricity,HR - Facilities Central,SIEMENS PLC,SPINVNO_3554,"1,232.40",Purchase Invoice
BIS,Skills Funding Agency,12/08/2014,Framework for Excellence,Professional Services,MARKET & OPINION RESEARCH INTERNATIONAL LTD,SPINVB_23159,"87,985.20",Purchase Invoice
BIS,Skills Funding Agency,12/08/2014,Hardware Maintenance & Repair,Operations - Business IT - Agency Services,COOLSPIRIT LIMITED,SPINVB_23133,"1,737.60",Purchase Invoice
BIS,Skills Funding Agency,12/08/2014,Information Technology Systems Development,Operations - Projects,INFOR GLOBAL SOLUTIONS (MIDLANDS IV) LTD,SPINVB_23022,"1,575.00",Purchase Invoice
BIS,Skills Funding Agency,12/08/2014,"Information, Advice and Guidance - Local",Main Funding,GMCP ENTERPRISE LTD,SPINVB_23201,"168,425.17",Purchase Invoice
BIS,Skills Funding Agency,12/08/2014,"Information, Advice and Guidance - Local",Main Funding,GMCP ENTERPRISE LTD,SPINVB_23202,"61,388.00",Purchase Invoice
BIS,Skills Funding Agency,12/08/2014,"Information, Advice and Guidance - Local",Main Funding,GMCP ENTERPRISE LTD,SPINVB_23203,"168,356.00",Purchase Invoice
BIS,Skills Funding Agency,12/08/2014,"Information, Advice and Guidance - Local",Main Funding,GMCP ENTERPRISE LTD,SPINVB_23207,"6,873.00",Purchase Invoice
BIS,Skills Funding Agency,12/08/2014,"Information, Advice and Guidance - Local",Main Funding,PROSPECTS SERVICES LTD,SPINVB_23232,"711,644.00",Purchase Invoice
BIS,Skills Funding Agency,12/08/2014,"Information, Advice and Guidance - Local",Main Funding,PROSPECTS SERVICES LTD,SPINVB_23235,"97,874.17",Purchase Invoice
BIS,Skills Funding Agency,12/08/2014,Managed IT Service,Operations - Projects,BAE SYSTEMS APPLIED INTELLIGENCE LIMITED,SPINVB_23175,"10,746.00",Purchase Invoice
BIS,Skills Funding Agency,12/08/2014,Managed IT Service,Operations - Projects,BAE SYSTEMS APPLIED INTELLIGENCE LIMITED,SPINVB_23176,"21,789.60",Purchase Invoice
BIS,Skills Funding Agency,12/08/2014,Mobile Telephones,Operations - Technical Design Authority,VODAFONE LIMITED,SPINVB_23162,"12,134.30",Purchase Invoice
BIS,Skills Funding Agency,12/08/2014,National Careers Service Development,Communications & Marketing,GFK NOP LTD,SPINVB_22620,"31,500.00",Purchase Invoice
BIS,Skills Funding Agency,12/08/2014,National Careers Service Youth Contract,Main Funding,"FUTURES ADVICE, SKILLS AND EMPLOYMENT LTD",SPINVB_23186,"10,618.37",Purchase Invoice
BIS,Skills Funding Agency,12/08/2014,National Careers Service Youth Contract,Main Funding,GMCP ENTERPRISE LTD,SPINVB_23205,"4,308.00",Purchase Invoice
BIS,Skills Funding Agency,12/08/2014,National Careers Service Youth Contract,Main Funding,PROSPECTS SERVICES LTD,SPINVB_23234,"17,466.50",Purchase Invoice
BIS,Skills Funding Agency,12/08/2014,National Careers Service Youth Contract,Main Funding,PROSPECTS SERVICES LTD,SPINVB_23238,"1,755.17",Purchase Invoice
BIS,Skills Funding Agency,12/08/2014,Offender Learning and Skills Service - Information & Guidance,Main Funding,GMCP ENTERPRISE LTD,SPINVB_23239,"43,186.33",Purchase Invoice
BIS,Skills Funding Agency,12/08/2014,Offender Learning and Skills Service - Information & Guidance,Main Funding,GMCP ENTERPRISE LTD,SPINVB_23240,"29,294.16",Purchase Invoice
BIS,Skills Funding Agency,12/08/2014,Prepayment Rents,Finance Division - Information Management Finance,OFFICE FOR NATIONAL STATISTICS,SPINVNO_3553,"2,488.00",Purchase Invoice
BIS,Skills Funding Agency,12/08/2014,Prepayment Service Charges,Finance Division - Information Management Finance,OFFICE FOR NATIONAL STATISTICS,SPINVNO_3553,"12,086.00",Purchase Invoice
BIS,Skills Funding Agency,12/08/2014,Professional Services - Single Assignments,Chief Information Officer Services - Enterprise Architecture,CAPGEMINI UK PLC,SPINVB_22289,"29,736.00",Purchase Invoice
BIS,Skills Funding Agency,12/08/2014,Professional Services - Single Assignments,Chief Information Officer Services - Enterprise Architecture,CAPGEMINI UK PLC,SPINVB_23109,"28,249.20",Purchase Invoice
BIS,Skills Funding Agency,12/08/2014,Professional Services - Single Assignments,Data Service - Management Information,CAPGEMINI UK PLC,SPINVB_23071,"16,493.40",Purchase Invoice
BIS,Skills Funding Agency,12/08/2014,Professional Services - Single Assignments,Operations - Projects,BAE SYSTEMS APPLIED INTELLIGENCE LIMITED,SPINVB_23177,"23,346.00",Purchase Invoice
BIS,Skills Funding Agency,12/08/2014,Professional Services - Single Assignments,Projects - Programme Delivery Projects,FORDWAY SOLUTIONS LIMITED,SPINVB_23154,"9,071.05",Purchase Invoice
BIS,Skills Funding Agency,12/08/2014,Professional Services,HR - Human Resources,DUE DILIGENCE CHECKING LTD,SPINVB_23256,467.00,Purchase Invoice
BIS,Skills Funding Agency,12/08/2014,Professional Services,Operations - Mission IT / Business As Usual Major Releases,METHODS ADVISORY LTD,SPINVB_23260,"10,716.00",Purchase Invoice
BIS,Skills Funding Agency,12/08/2014,Rates,Finance Division - Information Management Finance,OFFICE FOR NATIONAL STATISTICS,SPINVNO_3553,"1,968.00",Purchase Invoice
BIS,Skills Funding Agency,12/08/2014,Software Maintenance & Repair,Operations - Projects,CAPGEMINI UK PLC,SPINVB_22673,"10,703.93",Purchase Invoice
BIS,Skills Funding Agency,12/08/2014,Temporary Staff,HR - Human Resources,SF RECRUITMENT LTD,SPINVB_23236,743.40,Purchase Invoice
BIS,Skills Funding Agency,12/08/2014,Temporary Staff,Operations - Project Delivery,PARITY RESOURCES LTD,SPINVB_23217,"1,862.82",Purchase Invoice
BIS,Skills Funding Agency,12/08/2014,Temporary Staff,Operations - Project Delivery,PARITY RESOURCES LTD,SPINVB_23220,"2,544.00",Purchase Invoice
BIS,Skills Funding Agency,12/08/2014,Temporary Staff,Operations - Projects,EXPERIS LIMITED,SPINVB_23197,"13,551.86",Purchase Invoice
BIS,Skills Funding Agency,12/08/2014,Temporary Staff,Operations - Projects,PARITY RESOURCES LTD,SPINVB_23214,"3,697.20",Purchase Invoice
BIS,Skills Funding Agency,12/08/2014,Temporary Staff,Operations - Projects,PARITY RESOURCES LTD,SPINVB_23216,"10,984.36",Purchase Invoice
BIS,Skills Funding Agency,12/08/2014,Temporary Staff,Operations - Projects,PARITY RESOURCES LTD,SPINVB_23219,"13,669.51",Purchase Invoice
BIS,Skills Funding Agency,12/08/2014,Temporary Staff,Operations - Projects,PARITY RESOURCES LTD,SPINVB_23221,"15,539.90",Purchase Invoice
BIS,Skills Funding Agency,12/08/2014,Temporary Staff,Operations - Solution Design & Innovation,PARITY RESOURCES LTD,SPINVB_23208,"2,297.86",Purchase Invoice
BIS,Skills Funding Agency,12/08/2014,Temporary Staff,Operations - Technical Design Authority,PARITY RESOURCES LTD,SPINVB_23230,"3,249.72",Purchase Invoice
BIS,Skills Funding Agency,12/08/2014,Temporary Staff,Programme Delivery - Business Change,PARITY RESOURCES LTD,SPINVB_23223,"1,726.66",Purchase Invoice
BIS,Skills Funding Agency,12/08/2014,Temporary Staff,Programme Delivery - Business Change,SAND RESOURCES,SPINVB_23173,"14,957.26",Purchase Invoice
BIS,Skills Funding Agency,12/08/2014,Temporary Staff,Programme Delivery - Programme Management Office/Programme Support Office,PARITY RESOURCES LTD,SPINVB_23218,"5,588.46",Purchase Invoice
BIS,Skills Funding Agency,12/08/2014,Temporary Staff,Programme Delivery - Programme Management Office/Programme Support Office,PARITY RESOURCES LTD,SPINVB_23222,"7,632.00",Purchase Invoice
BIS,Skills Funding Agency,12/08/2014,Temporary Staff,Projects - Programme Delivery Projects,PARITY RESOURCES LTD,SPINVB_23210,"9,749.16",Purchase Invoice
BIS,Skills Funding Agency,12/08/2014,Training Venue & Refreshments,Funding & Programmes - Funding Policy,EXPOTEL HOTEL RESERVATIONS LTD,IPINVELECT3_1648,"1,810.80",Purchase Invoice
BIS,Skills Funding Agency,12/08/2014,Water,HR - Facilities Central,SEVERN TRENT WATER LTD,SPINVNO_3555,"3,113.55",Purchase Invoice
BIS,Skills Funding Agency,12/08/2014,Water,HR - Facilities Central,SEVERN TRENT WATER LTD,SPINVNO_3556,"3,948.51",Purchase Invoice
BIS,Skills Funding Agency,13/08/2014,16-18 Apprenticeship Grant for Employers,Main Funding,ANDERSON STOCKLEY ACCREDITED TRAINING LTD,NUPS14_26199,"3,000.00",Programme Template
BIS,Skills Funding Agency,13/08/2014,16-18 Apprenticeship Grant for Employers,Main Funding,CRACKERJACK TRAINING LTD,NUPS14_26278,"-3,000.00",Programme Template
BIS,Skills Funding Agency,13/08/2014,16-18 Apprenticeship Grant for Employers,Main Funding,CREATIVE PROCESS,NUPS14_26282,"-6,000.00",Programme Template
BIS,Skills Funding Agency,13/08/2014,16-18 Apprenticeship Grant for Employers,Main Funding,JANCETT CHILDCARE & JACE TRAINING LIMITED,NQAA_5450,"-1,500.00",Programme Template
BIS,Skills Funding Agency,13/08/2014,16-18 Apprenticeship Grant for Employers,Main Funding,JANCETT CHILDCARE & JACE TRAINING LIMITED,NQAA_5484,"1,500.00",Programme Template
BIS,Skills Funding Agency,13/08/2014,16-18 Apprenticeship Grant for Employers,Main Funding,JANCETT CHILDCARE & JACE TRAINING LIMITED,NQAA_5529,"-1,500.00",Programme Template
BIS,Skills Funding Agency,13/08/2014,16-18 Apprenticeship Grant for Employers,Main Funding,JANCETT CHILDCARE & JACE TRAINING LIMITED,NUPS14_14923,"1,500.00",Programme Template
BIS,Skills Funding Agency,13/08/2014,16-18 Apprenticeship Grant for Employers,Main Funding,JANCETT CHILDCARE & JACE TRAINING LIMITED,NUPS14_20983,"1,500.00",Programme Template
BIS,Skills Funding Agency,13/08/2014,16-18 Apprenticeship Grant for Employers,Main Funding,JANCETT CHILDCARE & JACE TRAINING LIMITED,NUPS14_26376,"1,500.00",Programme Template
BIS,Skills Funding Agency,13/08/2014,16-18 Apprenticeship Grant for Employers,Main Funding,JANCETT CHILDCARE & JACE TRAINING LIMITED,NUPS14_7040,"-12,000.00",Programme Template
BIS,Skills Funding Agency,13/08/2014,16-18 Apprenticeship Grant for Employers,Main Funding,KINGSTON COLLEGE,NUPS14_26789,"-1,500.00",Programme Template
BIS,Skills Funding Agency,13/08/2014,16-18 Apprenticeship Grant for Employers,Main Funding,NEW COLLEGE NOTTINGHAM,NUPS14_26921,"-12,000.00",Programme Template
BIS,Skills Funding Agency,13/08/2014,16-18 Apprenticeship Grant for Employers,Main Funding,NORTH NOTTINGHAMSHIRE COLLEGE,NUPS14_27069,"-27,000.00",Programme Template
BIS,Skills Funding Agency,13/08/2014,16-18 Apprenticeship Grant for Employers,Main Funding,NORTHAMPTONSHIRE COUNTY COUNCIL,NUPS14_27010,"-1,500.00",Programme Template
BIS,Skills Funding Agency,13/08/2014,16-18 Apprenticeship Grant for Employers,Main Funding,SPRINGBOARD SUNDERLAND TRUST,NUPS14_27068,"-1,500.00",Programme Template
BIS,Skills Funding Agency,13/08/2014,16-18 Apprenticeship Grant for Employers,Main Funding,TARGETED TRAINING PROJECTS LIMITED,NUPS14_26551,"-1,500.00",Programme Template
BIS,Skills Funding Agency,13/08/2014,16-18 Apprenticeship Grant for Employers,Main Funding,TOTTON COLLEGE,NUPS14_26990,"-9,000.00",Programme Template
BIS,Skills Funding Agency,13/08/2014,16-18 Apprenticeship Grant for Employers,Main Funding,WEST ANGLIA TRAINING ASSOCIATION LIMITED,NUPS14_14232,"-1,500.00",Programme Template
BIS,Skills Funding Agency,13/08/2014,16-18 Apprenticeship Grant for Employers,Main Funding,WEST ANGLIA TRAINING ASSOCIATION LIMITED,NUPS14_21228,"1,500.00",Programme Template
BIS,Skills Funding Agency,13/08/2014,16-18 Apprenticeship Grant for Employers,Main Funding,WEST ANGLIA TRAINING ASSOCIATION LIMITED,NUPS14_26596,"1,500.00",Programme Template
BIS,Skills Funding Agency,13/08/2014,16-18 Apprenticeships - Centralised Contract Management,Main Funding,CHESHIRE WEST & CHESTER COUNCIL,16APC_8160,"-7,026.80",Programme System File
BIS,Skills Funding Agency,13/08/2014,16-18 Apprenticeships - Centralised Contract Management,Main Funding,CHESHIRE WEST & CHESTER COUNCIL,16APC_8559,-3.16,Programme System File
BIS,Skills Funding Agency,13/08/2014,16-18 Apprenticeships - Centralised Contract Management,Main Funding,CHESHIRE WEST & CHESTER COUNCIL,16APR_47220,"-2,066.25",Programme System File
BIS,Skills Funding Agency,13/08/2014,16-18 Apprenticeships - Centralised Contract Management,Main Funding,CORDANT GROUP PLC,16APC_6147,"-135,292.33",Programme System File
BIS,Skills Funding Agency,13/08/2014,16-18 Apprenticeships - Centralised Contract Management,Main Funding,CORDANT GROUP PLC,16APR_34971,"103,554.87",Programme System File
BIS,Skills Funding Agency,13/08/2014,16-18 Apprenticeships - Centralised Contract Management,Main Funding,CORDANT GROUP PLC,16APR_36066,"13,817.95",Programme System File
BIS,Skills Funding Agency,13/08/2014,16-18 Apprenticeships - Centralised Contract Management,Main Funding,CORDANT GROUP PLC,16APR_37259,"10,367.08",Programme System File
BIS,Skills Funding Agency,13/08/2014,16-18 Apprenticeships - Centralised Contract Management,Main Funding,CORDANT GROUP PLC,16APR_38962,"5,482.26",Programme System File
BIS,Skills Funding Agency,13/08/2014,16-18 Apprenticeships - Centralised Contract Management,Main Funding,CORDANT GROUP PLC,16APR_40238,"12,562.54",Programme System File
BIS,Skills Funding Agency,13/08/2014,16-18 Apprenticeships - Centralised Contract Management,Main Funding,CORDANT GROUP PLC,16APR_41541,"4,536.37",Programme System File
BIS,Skills Funding Agency,13/08/2014,16-18 Apprenticeships - Centralised Contract Management,Main Funding,CORDANT GROUP PLC,16APR_42746,"2,618.94",Programme System File
BIS,Skills Funding Agency,13/08/2014,16-18 Apprenticeships - Centralised Contract Management,Main Funding,CORDANT GROUP PLC,16APR_43952,"5,482.72",Programme System File
BIS,Skills Funding Agency,13/08/2014,16-18 Apprenticeships - Centralised Contract Management,Main Funding,CORDANT GROUP PLC,16APR_45213,"2,803.00",Programme System File
BIS,Skills Funding Agency,13/08/2014,16-18 Apprenticeships - Centralised Contract Management,Main Funding,CORDANT GROUP PLC,16APR_46541,"2,324.74",Programme System File
BIS,Skills Funding Agency,13/08/2014,16-18 Apprenticeships - Centralised Contract Management,Main Funding,CORDANT GROUP PLC,16APR_47601,"2,905.29",Programme System File
BIS,Skills Funding Agency,13/08/2014,16-18 Apprenticeships - Non Centralised Contract Management,Main Funding,5 E LTD,NUPS14_27875,"-33,691.80",Programme Template
BIS,Skills Funding Agency,13/08/2014,16-18 Apprenticeships - Non Centralised Contract Management,Main Funding,5 E LTD,NUPS14_30367,"37,173.89",Programme Template
BIS,Skills Funding Agency,13/08/2014,16-18 Apprenticeships - Non Centralised Contract Management,Main Funding,A4E LTD,NUPS14_27714,"-163,783.71",Programme Template
BIS,Skills Funding Agency,13/08/2014,16-18 Apprenticeships - Non Centralised Contract Management,Main Funding,A4E LTD,NUPS14_30202,"185,692.65",Programme Template
BIS,Skills Funding Agency,13/08/2014,16-18 Apprenticeships - Non Centralised Contract Management,Main Funding,ABA TRAINING LIMITED,NUPS14_27844,"-53,723.81",Programme Template
BIS,Skills Funding Agency,13/08/2014,16-18 Apprenticeships - Non Centralised Contract Management,Main Funding,ABA TRAINING LIMITED,NUPS14_30328,"67,852.26",Programme Template
BIS,Skills Funding Agency,13/08/2014,16-18 Apprenticeships - Non Centralised Contract Management,Main Funding,ABINGDON & WITNEY COLLEGE,NUPS14_27609,"-308,126.36",Programme Template
BIS,Skills Funding Agency,13/08/2014,16-18 Apprenticeships - Non Centralised Contract Management,Main Funding,ABINGDON & WITNEY COLLEGE,NUPS14_30108,"332,127.25",Programme Template
BIS,Skills Funding Agency,13/08/2014,16-18 Apprenticeships - Non Centralised Contract Management,Main Funding,ACACIA TRAINING & DEVELOPMENT LTD,NUPS14_27479,"-528,898.57",Programme Template
BIS,Skills Funding Agency,13/08/2014,16-18 Apprenticeships - Non Centralised Contract Management,Main Funding,ACACIA TRAINING & DEVELOPMENT LTD,NUPS14_29979,"579,416.43",Programme Template
BIS,Skills Funding Agency,13/08/2014,16-18 Apprenticeships - Non Centralised Contract Management,Main Funding,ACACIA TRAINING LTD,NUPS14_27788,"-104,800.86",Programme Template
BIS,Skills Funding Agency,13/08/2014,16-18 Apprenticeships - Non Centralised Contract Management,Main Funding,ACACIA TRAINING LTD,NUPS14_30273,"124,947.17",Programme Template
BIS,Skills Funding Agency,13/08/2014,16-18 Apprenticeships - Non Centralised Contract Management,Main Funding,ACADEMIES ENTERPRISE,NUPS14_27868,"-39,121.77",Programme Template
BIS,Skills Funding Agency,13/08/2014,16-18 Apprenticeships - Non Centralised Contract Management,Main Funding,ACADEMIES ENTERPRISE,NUPS14_30360,"42,935.16",Programme Template
BIS,Skills Funding Agency,13/08/2014,16-18 Apprenticeships - Non Centralised Contract Management,Main Funding,ACADEMY EDUCATION LTD,NUPS14_27501,"-483,566.71",Programme Template
BIS,Skills Funding Agency,13/08/2014,16-18 Apprenticeships - Non Centralised Contract Management,Main Funding,ACADEMY EDUCATION LTD,NUPS14_30006,"513,482.01",Programme Template
BIS,Skills Funding Agency,13/08/2014,16-18 Apprenticeships - Non Centralised Contract Management,Main Funding,ACADEMY HAIR & BEAUTY LTD,NUPS14_27772,"-117,415.67",Programme Template
BIS,Skills Funding Agency,13/08/2014,16-18 Apprenticeships - Non Centralised Contract Management,Main Funding,ACADEMY HAIR & BEAUTY LTD,NUPS14_30269,"126,290.18",Programme Template
BIS,Skills Funding Agency,13/08/2014,16-18 Apprenticeships - Non Centralised Contract Management,Main Funding,ACADEMY TRANSFORMATION TRUST,NUPS14_27853,"-48,118.08",Programme Template
BIS,Skills Funding Agency,13/08/2014,16-18 Apprenticeships - Non Centralised Contract Management,Main Funding,ACADEMY TRANSFORMATION TRUST,NUPS14_30355,"48,828.56",Programme Template
BIS,Skills Funding Agency,13/08/2014,16-18 Apprenticeships - Non Centralised Contract Management,Main Funding,ACCESS TO MUSIC LTD,NUPS14_27858,"-46,554.50",Programme Template
BIS,Skills Funding Agency,13/08/2014,16-18 Apprenticeships - Non Centralised Contract Management,Main Funding,ACCESS TO MUSIC LTD,NUPS14_30350,"52,402.19",Programme Template
BIS,Skills Funding Agency,13/08/2014,16-18 Apprenticeships - Non Centralised Contract Management,Main Funding,ACCESS TRAINING EAST MIDLANDS LTD,NUPS14_27538,"-417,517.21",Programme Template
BIS,Skills Funding Agency,13/08/2014,16-18 Apprenticeships - Non Centralised Contract Management,Main Funding,ACCESS TRAINING EAST MIDLANDS LTD,NUPS14_30033,"456,933.50",Programme Template
BIS,Skills Funding Agency,13/08/2014,16-18 Apprenticeships - Non Centralised Contract Management,Main Funding,ACCESS TRAINING LTD,NUPS14_27510,"-471,082.27",Programme Template
BIS,Skills Funding Agency,13/08/2014,16-18 Apprenticeships - Non Centralised Contract Management,Main Funding,ACCESS TRAINING LTD,NUPS14_30001,"517,707.72",Programme Template
BIS,Skills Funding Agency,13/08/2014,16-18 Apprenticeships - Non Centralised Contract Management,Main Funding,ACCRINGTON & ROSSENDALE COLLEGE,NUPS14_27392,"-754,230.96",Programme Template
BIS,Skills Funding Agency,13/08/2014,16-18 Apprenticeships - Non Centralised Contract Management,Main Funding,ACCRINGTON & ROSSENDALE COLLEGE,NUPS14_29879,"834,731.35",Programme Template
BIS,Skills Funding Agency,13/08/2014,16-18 Apprenticeships - Non Centralised Contract Management,Main Funding,ACHIEVEMENT TRAINING LIMITED,NUPS14_27584,"-344,415.40",Programme Template
BIS,Skills Funding Agency,13/08/2014,16-18 Apprenticeships - Non Centralised Contract Management,Main Funding,ACHIEVEMENT TRAINING LIMITED,NUPS14_30070,"390,101.41",Programme Template
BIS,Skills Funding Agency,13/08/2014,16-18 Apprenticeships - Non Centralised Contract Management,Main Funding,AGE UK TRADING LTD,NUPS14_27303,"-1,037,872.70",Programme Template
BIS,Skills Funding Agency,13/08/2014,16-18 Apprenticeships - Non Centralised Contract Management,Main Funding,AGE UK TRADING LTD,NUPS14_29801,"1,123,411.56",Programme Template
BIS,Skills Funding Agency,13/08/2014,16-18 Apprenticeships - Non Centralised Contract Management,Main Funding,AGILISYS ARCH LTD,NUPS14_27434,"-637,208.94",Programme Template
BIS,Skills Funding Agency,13/08/2014,16-18 Apprenticeships - Non Centralised Contract Management,Main Funding,AGILISYS ARCH LTD,NUPS14_29916,"728,605.28",Programme Template
BIS,Skills Funding Agency,13/08/2014,16-18 Apprenticeships - Non Centralised Contract Management,Main Funding,ALDER TRAINING LTD,NUPS14_27449,"-597,213.69",Programme Template
BIS,Skills Funding Agency,13/08/2014,16-18 Apprenticeships - Non Centralised Contract Management,Main Funding,ALDER TRAINING LTD,NUPS14_29952,"641,459.78",Programme Template
BIS,Skills Funding Agency,13/08/2014,16-18 Apprenticeships - Non Centralised Contract Management,Main Funding,ALL TRADES TRAINING LIMITED,NUPS14_27949,"-1,861.99",Programme Template
BIS,Skills Funding Agency,13/08/2014,16-18 Apprenticeships - Non Centralised Contract Management,Main Funding,ALL TRADES TRAINING LIMITED,NUPS14_30440,"3,046.67",Programme Template
BIS,Skills Funding Agency,13/08/2014,16-18 Apprenticeships - Non Centralised Contract Management,Main Funding,ALLIANCE LEARNING LTD,NUPS14_27369,"-825,968.85",Programme Template
BIS,Skills Funding Agency,13/08/2014,16-18 Apprenticeships - Non Centralised Contract Management,Main Funding,ALLIANCE LEARNING LTD,NUPS14_29867,"893,391.96",Programme Template
BIS,Skills Funding Agency,13/08/2014,16-18 Apprenticeships - Non Centralised Contract Management,Main Funding,ALPHA BUILDING SERVICES ENGINEERING LTD,NUPS14_27465,"-562,832.15",Programme Template
BIS,Skills Funding Agency,13/08/2014,16-18 Apprenticeships - Non Centralised Contract Management,Main Funding,ALPHA BUILDING SERVICES ENGINEERING LTD,NUPS14_29953,"637,105.71",Programme Template
BIS,Skills Funding Agency,13/08/2014,16-18 Apprenticeships - Non Centralised Contract Management,Main Funding,ALT VALLEY COMMUNITY TRUST LTD,NUPS14_27689,"-186,978.73",Programme Template
BIS,Skills Funding Agency,13/08/2014,16-18 Apprenticeships - Non Centralised Contract Management,Main Funding,ALT VALLEY COMMUNITY TRUST LTD,NUPS14_30191,"194,788.97",Programme Template
BIS,Skills Funding Agency,13/08/2014,16-18 Apprenticeships - Non Centralised Contract Management,Main Funding,AMERSHAM & WYCOMBE COLLEGE,NUPS14_27685,"-192,324.96",Programme Template
BIS,Skills Funding Agency,13/08/2014,16-18 Apprenticeships - Non Centralised Contract Management,Main Funding,AMERSHAM & WYCOMBE COLLEGE,NUPS14_30182,"208,090.26",Programme Template
BIS,Skills Funding Agency,13/08/2014,16-18 Apprenticeships - Non Centralised Contract Management,Main Funding,ANDERSON STOCKLEY ACCREDITED TRAINING LTD,NUPS14_27779,"-112,761.54",Programme Template
BIS,Skills Funding Agency,13/08/2014,16-18 Apprenticeships - Non Centralised Contract Management,Main Funding,ANDERSON STOCKLEY ACCREDITED TRAINING LTD,NUPS14_30274,"124,539.16",Programme Template
BIS,Skills Funding Agency,13/08/2014,16-18 Apprenticeships - Non Centralised Contract Management,Main Funding,ANDREW COLLINGE TRAINING LTD,NUPS14_27451,"-592,919.25",Programme Template
BIS,Skills Funding Agency,13/08/2014,16-18 Apprenticeships - Non Centralised Contract Management,Main Funding,ANDREW COLLINGE TRAINING LTD,NUPS14_29936,"678,589.39",Programme Template
BIS,Skills Funding Agency,13/08/2014,16-18 Apprenticeships - Non Centralised Contract Management,Main Funding,ANNE CLARKE ASSOCIATES LTD,NUPS14_27733,"-148,000.50",Programme Template
BIS,Skills Funding Agency,13/08/2014,16-18 Apprenticeships - Non Centralised Contract Management,Main Funding,ANNE CLARKE ASSOCIATES LTD,NUPS14_30222,"168,370.95",Programme Template
BIS,Skills Funding Agency,13/08/2014,16-18 Apprenticeships - Non Centralised Contract Management,Main Funding,APPRENTICE FUNDING ASSISTANT LTD,NUPS14_27337,"-928,826.07",Programme Template
BIS,Skills Funding Agency,13/08/2014,16-18 Apprenticeships - Non Centralised Contract Management,Main Funding,APPRENTICE FUNDING ASSISTANT LTD,NUPS14_29835,"1,014,836.52",Programme Template
BIS,Skills Funding Agency,13/08/2014,16-18 Apprenticeships - Non Centralised Contract Management,Main Funding,APPRENTICE SCHOOL CHARITABLE TRUST,NUPS14_27573,"-355,594.47",Programme Template
BIS,Skills Funding Agency,13/08/2014,16-18 Apprenticeships - Non Centralised Contract Management,Main Funding,APPRENTICE SCHOOL CHARITABLE TRUST,NUPS14_30076,"383,927.53",Programme Template
BIS,Skills Funding Agency,13/08/2014,16-18 Apprenticeships - Non Centralised Contract Management,Main Funding,APPRENTICESHIPS & TRAINING SERVICES CONSORTIUM LIMITED,NUPS14_27469,"-556,920.13",Programme Template
BIS,Skills Funding Agency,13/08/2014,16-18 Apprenticeships - Non Centralised Contract Management,Main Funding,APPRENTICESHIPS & TRAINING SERVICES CONSORTIUM LIMITED,NUPS14_29966,"611,967.68",Programme Template
BIS,Skills Funding Agency,13/08/2014,16-18 Apprenticeships - Non Centralised Contract Management,Main Funding,APPRIS CHARITY LIMITED,NUPS14_27362,"-841,983.25",Programme Template
BIS,Skills Funding Agency,13/08/2014,16-18 Apprenticeships - Non Centralised Contract Management,Main Funding,APPRIS CHARITY LIMITED,NUPS14_29858,"909,043.52",Programme Template
BIS,Skills Funding Agency,13/08/2014,16-18 Apprenticeships - Non Centralised Contract Management,Main Funding,ASHTON UNDER LYNE SIXTH FORM COLLEGE,NUPS14_27922,"-9,454.85",Programme Template
BIS,Skills Funding Agency,13/08/2014,16-18 Apprenticeships - Non Centralised Contract Management,Main Funding,ASHTON UNDER LYNE SIXTH FORM COLLEGE,NUPS14_30419,"10,136.26",Programme Template
BIS,Skills Funding Agency,13/08/2014,16-18 Apprenticeships - Non Centralised Contract Management,Main Funding,ASKHAM BRYAN COLLEGE,NUPS14_27425,"-649,351.38",Programme Template
BIS,Skills Funding Agency,13/08/2014,16-18 Apprenticeships - Non Centralised Contract Management,Main Funding,ASKHAM BRYAN COLLEGE,NUPS14_29915,"735,282.96",Programme Template
BIS,Skills Funding Agency,13/08/2014,16-18 Apprenticeships - Non Centralised Contract Management,Main Funding,ASPIRATION TRAINING LTD,NUPS14_27577,"-350,527.93",Programme Template
BIS,Skills Funding Agency,13/08/2014,16-18 Apprenticeships - Non Centralised Contract Management,Main Funding,ASPIRATION TRAINING LTD,NUPS14_30074,"385,503.28",Programme Template
BIS,Skills Funding Agency,13/08/2014,16-18 Apprenticeships - Non Centralised Contract Management,Main Funding,ASPIRE ACHIEVE ADVANCE LIMITED,NUPS14_27184,"-2,724,355.79",Programme Template
BIS,Skills Funding Agency,13/08/2014,16-18 Apprenticeships - Non Centralised Contract Management,Main Funding,ASPIRE ACHIEVE ADVANCE LIMITED,NUPS14_29676,"3,183,976.93",Programme Template
BIS,Skills Funding Agency,13/08/2014,16-18 Apprenticeships - Non Centralised Contract Management,Main Funding,ASPIRE TRAINING TEAM,NUPS14_27583,"-344,578.94",Programme Template
BIS,Skills Funding Agency,13/08/2014,16-18 Apprenticeships - Non Centralised Contract Management,Main Funding,ASPIRE TRAINING TEAM,NUPS14_30081,"380,953.79",Programme Template
BIS,Skills Funding Agency,13/08/2014,16-18 Apprenticeships - Non Centralised Contract Management,Main Funding,ASSET TRAINING & CONSULTANCY LTD,NUPS14_27437,"-624,699.45",Programme Template
BIS,Skills Funding Agency,13/08/2014,16-18 Apprenticeships - Non Centralised Contract Management,Main Funding,ASSET TRAINING & CONSULTANCY LTD,NUPS14_29940,"670,578.59",Programme Template
BIS,Skills Funding Agency,13/08/2014,16-18 Apprenticeships - Non Centralised Contract Management,Main Funding,ASTUTE MINDS LTD,NUPS14_27544,"-397,891.13",Programme Template
BIS,Skills Funding Agency,13/08/2014,16-18 Apprenticeships - Non Centralised Contract Management,Main Funding,ASTUTE MINDS LTD,NUPS14_30039,"438,918.55",Programme Template
BIS,Skills Funding Agency,13/08/2014,16-18 Apprenticeships - Non Centralised Contract Management,Main Funding,ATG TRAINING,NUPS14_27502,"-482,995.36",Programme Template
BIS,Skills Funding Agency,13/08/2014,16-18 Apprenticeships - Non Centralised Contract Management,Main Funding,ATG TRAINING,NUPS14_29982,"569,697.22",Programme Template
BIS,Skills Funding Agency,13/08/2014,16-18 Apprenticeships - Non Centralised Contract Management,Main Funding,AURELIA TRAINING LTD,NUPS14_27842,"-56,716.99",Programme Template
BIS,Skills Funding Agency,13/08/2014,16-18 Apprenticeships - Non Centralised Contract Management,Main Funding,AURELIA TRAINING LTD,NUPS14_30335,"63,822.95",Programme Template
BIS,Skills Funding Agency,13/08/2014,16-18 Apprenticeships - Non Centralised Contract Management,Main Funding,AVANT PARTNERSHIP LTD,NUPS14_27517,"-461,209.79",Programme Template
BIS,Skills Funding Agency,13/08/2014,16-18 Apprenticeships - Non Centralised Contract Management,Main Funding,AVANT PARTNERSHIP LTD,NUPS14_30013,"502,288.48",Programme Template
BIS,Skills Funding Agency,13/08/2014,16-18 Apprenticeships - Non Centralised Contract Management,Main Funding,AVANTA ENTERPRISE LTD,NUPS14_27645,"-248,894.29",Programme Template
BIS,Skills Funding Agency,13/08/2014,16-18 Apprenticeships - Non Centralised Contract Management,Main Funding,AVANTA ENTERPRISE LTD,NUPS14_30140,"278,870.73",Programme Template
BIS,Skills Funding Agency,13/08/2014,16-18 Apprenticeships - Non Centralised Contract Management,Main Funding,AWE PLC,NUPS14_27635,"-265,294.10",Programme Template
BIS,Skills Funding Agency,13/08/2014,16-18 Apprenticeships - Non Centralised Contract Management,Main Funding,AWE PLC,NUPS14_30138,"283,494.21",Programme Template
BIS,Skills Funding Agency,13/08/2014,16-18 Apprenticeships - Non Centralised Contract Management,Main Funding,AXIA SOLUTIONS LTD,NUPS14_27625,"-279,521.87",Programme Template
BIS,Skills Funding Agency,13/08/2014,16-18 Apprenticeships - Non Centralised Contract Management,Main Funding,AXIA SOLUTIONS LTD,NUPS14_30114,"321,724.25",Programme Template
BIS,Skills Funding Agency,13/08/2014,16-18 Apprenticeships - Non Centralised Contract Management,Main Funding,AYLESBURY COLLEGE,NUPS14_27390,"-756,441.56",Programme Template
BIS,Skills Funding Agency,13/08/2014,16-18 Apprenticeships - Non Centralised Contract Management,Main Funding,AYLESBURY COLLEGE,NUPS14_29883,"827,982.86",Programme Template
BIS,Skills Funding Agency,13/08/2014,16-18 Apprenticeships - Non Centralised Contract Management,Main Funding,B SKILL LTD,NUPS14_27836,"-62,418.03",Programme Template
BIS,Skills Funding Agency,13/08/2014,16-18 Apprenticeships - Non Centralised Contract Management,Main Funding,B SKILL LTD,NUPS14_30333,"64,865.35",Programme Template
BIS,Skills Funding Agency,13/08/2014,16-18 Apprenticeships - Non Centralised Contract Management,Main Funding,B2B ENGAGE LTD,NUPS14_27265,"-1,216,150.18",Programme Template
BIS,Skills Funding Agency,13/08/2014,16-18 Apprenticeships - Non Centralised Contract Management,Main Funding,B2B ENGAGE LTD,NUPS14_29756,"1,348,954.84",Programme Template
BIS,Skills Funding Agency,13/08/2014,16-18 Apprenticeships - Non Centralised Contract Management,Main Funding,BABCOCK SKILLS DEVELOPMENT & TRAINING LTD,NUPS14_27273,"-1,188,556.86",Programme Template
BIS,Skills Funding Agency,13/08/2014,16-18 Apprenticeships - Non Centralised Contract Management,Main Funding,BABCOCK SKILLS DEVELOPMENT & TRAINING LTD,NUPS14_29782,"1,255,625.70",Programme Template
BIS,Skills Funding Agency,13/08/2014,16-18 Apprenticeships - Non Centralised Contract Management,Main Funding,BABCOCK TRAINING LTD,NUPS14_27153,"-7,607,767.74",Programme Template
BIS,Skills Funding Agency,13/08/2014,16-18 Apprenticeships - Non Centralised Contract Management,Main Funding,BABCOCK TRAINING LTD,NUPS14_29648,"8,405,755.49",Programme Template
BIS,Skills Funding Agency,13/08/2014,16-18 Apprenticeships - Non Centralised Contract Management,Main Funding,BABINGTON BUSINESS COLLEGE LTD,NUPS14_27186,"-2,433,242.64",Programme Template
BIS,Skills Funding Agency,13/08/2014,16-18 Apprenticeships - Non Centralised Contract Management,Main Funding,BABINGTON BUSINESS COLLEGE LTD,NUPS14_29682,"2,773,910.35",Programme Template
BIS,Skills Funding Agency,13/08/2014,16-18 Apprenticeships - Non Centralised Contract Management,Main Funding,BAE SYSTEMS PLC,NUPS14_27225,"-1,656,484.09",Programme Template
BIS,Skills Funding Agency,13/08/2014,16-18 Apprenticeships - Non Centralised Contract Management,Main Funding,BAE SYSTEMS PLC,NUPS14_29722,"1,770,886.88",Programme Template
BIS,Skills Funding Agency,13/08/2014,16-18 Apprenticeships - Non Centralised Contract Management,Main Funding,BALTIC TRAINING SERVICES LTD,NUPS14_27203,"-1,984,849.07",Programme Template
BIS,Skills Funding Agency,13/08/2014,16-18 Apprenticeships - Non Centralised Contract Management,Main Funding,BALTIC TRAINING SERVICES LTD,NUPS14_29698,"2,188,905.41",Programme Template
BIS,Skills Funding Agency,13/08/2014,16-18 Apprenticeships - Non Centralised Contract Management,Main Funding,BARCHESTER HEALTHCARE LTD,NUPS14_27426,"-648,641.98",Programme Template
BIS,Skills Funding Agency,13/08/2014,16-18 Apprenticeships - Non Centralised Contract Management,Main Funding,BARCHESTER HEALTHCARE LTD,NUPS14_29932,"691,768.36",Programme Template
BIS,Skills Funding Agency,13/08/2014,16-18 Apprenticeships - Non Centralised Contract Management,Main Funding,BARFORD EDUCATION & TRAINING NORTH EAST LTD,NUPS14_27918,"-10,271.62",Programme Template
BIS,Skills Funding Agency,13/08/2014,16-18 Apprenticeships - Non Centralised Contract Management,Main Funding,BARFORD EDUCATION & TRAINING NORTH EAST LTD,NUPS14_30413,"11,814.40",Programme Template
BIS,Skills Funding Agency,13/08/2014,16-18 Apprenticeships - Non Centralised Contract Management,Main Funding,BARKING & DAGENHAM COLLEGE,NUPS14_27109,-532.23,Programme Template
BIS,Skills Funding Agency,13/08/2014,16-18 Apprenticeships - Non Centralised Contract Management,Main Funding,BARKING & DAGENHAM COLLEGE,NUPS14_27266,"-1,215,796.65",Programme Template
BIS,Skills Funding Agency,13/08/2014,16-18 Apprenticeships - Non Centralised Contract Management,Main Funding,BARKING & DAGENHAM COLLEGE,NUPS14_29753,"1,387,458.45",Programme Template
BIS,Skills Funding Agency,13/08/2014,16-18 Apprenticeships - Non Centralised Contract Management,Main Funding,BARKING & DAGENHAM LONDON BOROUGH COUNCIL,NUPS14_27814,"-84,364.73",Programme Template
BIS,Skills Funding Agency,13/08/2014,16-18 Apprenticeships - Non Centralised Contract Management,Main Funding,BARKING & DAGENHAM LONDON BOROUGH COUNCIL,NUPS14_30309,"90,279.20",Programme Template
BIS,Skills Funding Agency,13/08/2014,16-18 Apprenticeships - Non Centralised Contract Management,Main Funding,BARNARDOS,NUPS14_27690,"-185,159.74",Programme Template
BIS,Skills Funding Agency,13/08/2014,16-18 Apprenticeships - Non Centralised Contract Management,Main Funding,BARNARDOS,NUPS14_30185,"206,070.93",Programme Template
BIS,Skills Funding Agency,13/08/2014,16-18 Apprenticeships - Non Centralised Contract Management,Main Funding,BARNET AND SOUTHGATE COLLEGE,NUPS14_27591,"-330,000.81",Programme Template
BIS,Skills Funding Agency,13/08/2014,16-18 Apprenticeships - Non Centralised Contract Management,Main Funding,BARNET AND SOUTHGATE COLLEGE,NUPS14_30097,"355,640.14",Programme Template
BIS,Skills Funding Agency,13/08/2014,16-18 Apprenticeships - Non Centralised Contract Management,Main Funding,BARNFIELD COLLEGE,NUPS14_27576,"-351,280.46",Programme Template
BIS,Skills Funding Agency,13/08/2014,16-18 Apprenticeships - Non Centralised Contract Management,Main Funding,BARNFIELD COLLEGE,NUPS14_30079,"383,005.65",Programme Template
BIS,Skills Funding Agency,13/08/2014,16-18 Apprenticeships - Non Centralised Contract Management,Main Funding,BARNSLEY COLLEGE,NUPS14_27196,"-2,166,100.99",Programme Template
BIS,Skills Funding Agency,13/08/2014,16-18 Apprenticeships - Non Centralised Contract Management,Main Funding,BARNSLEY COLLEGE,NUPS14_29690,"2,445,622.31",Programme Template
BIS,Skills Funding Agency,13/08/2014,16-18 Apprenticeships - Non Centralised Contract Management,Main Funding,BASINGSTOKE COLLEGE,NUPS14_27317,"-986,377.26",Programme Template
BIS,Skills Funding Agency,13/08/2014,16-18 Apprenticeships - Non Centralised Contract Management,Main Funding,BASINGSTOKE COLLEGE,NUPS14_29811,"1,078,855.71",Programme Template
BIS,Skills Funding Agency,13/08/2014,16-18 Apprenticeships - Non Centralised Contract Management,Main Funding,BASINGSTOKE YOUTH ACTION TRUST LTD,NUPS14_27590,"-337,561.22",Programme Template
BIS,Skills Funding Agency,13/08/2014,16-18 Apprenticeships - Non Centralised Contract Management,Main Funding,BASINGSTOKE YOUTH ACTION TRUST LTD,NUPS14_30088,"371,535.57",Programme Template
BIS,Skills Funding Agency,13/08/2014,16-18 Apprenticeships - Non Centralised Contract Management,Main Funding,BCTG LIMITED,NUPS14_27246,"-1,371,329.82",Programme Template
BIS,Skills Funding Agency,13/08/2014,16-18 Apprenticeships - Non Centralised Contract Management,Main Funding,BCTG LIMITED,NUPS14_29740,"1,525,418.16",Programme Template
BIS,Skills Funding Agency,13/08/2014,16-18 Apprenticeships - Non Centralised Contract Management,Main Funding,BE TOTALLY YOU,NUPS14_27777,"-115,394.19",Programme Template
BIS,Skills Funding Agency,13/08/2014,16-18 Apprenticeships - Non Centralised Contract Management,Main Funding,BE TOTALLY YOU,NUPS14_30271,"125,531.38",Programme Template
BIS,Skills Funding Agency,13/08/2014,16-18 Apprenticeships - Non Centralised Contract Management,Main Funding,BEDFORD COLLEGE,NUPS14_27189,"-2,337,415.34",Programme Template
BIS,Skills Funding Agency,13/08/2014,16-18 Apprenticeships - Non Centralised Contract Management,Main Funding,BEDFORD COLLEGE,NUPS14_29688,"2,540,051.74",Programme Template
BIS,Skills Funding Agency,13/08/2014,16-18 Apprenticeships - Non Centralised Contract Management,Main Funding,BERKSHIRE COLLEGE OF AGRICULTURE,NUPS14_27784,"-109,075.29",Programme Template
BIS,Skills Funding Agency,13/08/2014,16-18 Apprenticeships - Non Centralised Contract Management,Main Funding,BERKSHIRE COLLEGE OF AGRICULTURE,NUPS14_30282,"118,837.14",Programme Template
BIS,Skills Funding Agency,13/08/2014,16-18 Apprenticeships - Non Centralised Contract Management,Main Funding,BESTLAND SOLUTIONS LTD,NUPS14_27504,"-475,760.48",Programme Template
BIS,Skills Funding Agency,13/08/2014,16-18 Apprenticeships - Non Centralised Contract Management,Main Funding,BESTLAND SOLUTIONS LTD,NUPS14_30004,"516,395.29",Programme Template
BIS,Skills Funding Agency,13/08/2014,16-18 Apprenticeships - Non Centralised Contract Management,Main Funding,BEXHILL COLLEGE,NUPS14_27840,"-59,387.18",Programme Template
BIS,Skills Funding Agency,13/08/2014,16-18 Apprenticeships - Non Centralised Contract Management,Main Funding,BEXHILL COLLEGE,NUPS14_30336,"63,639.68",Programme Template
BIS,Skills Funding Agency,13/08/2014,16-18 Apprenticeships - Non Centralised Contract Management,Main Funding,BEXLEY COLLEGE,NUPS14_27508,"-471,672.42",Programme Template
BIS,Skills Funding Agency,13/08/2014,16-18 Apprenticeships - Non Centralised Contract Management,Main Funding,BEXLEY COLLEGE,NUPS14_30007,"513,319.06",Programme Template
BIS,Skills Funding Agency,13/08/2014,16-18 Apprenticeships - Non Centralised Contract Management,Main Funding,BEXLEY YOUTH TRAINING GROUP,NUPS14_27292,"-1,094,552.36",Programme Template
BIS,Skills Funding Agency,13/08/2014,16-18 Apprenticeships - Non Centralised Contract Management,Main Funding,BEXLEY YOUTH TRAINING GROUP,NUPS14_29779,"1,261,625.38",Programme Template
BIS,Skills Funding Agency,13/08/2014,16-18 Apprenticeships - Non Centralised Contract Management,Main Funding,BHS LTD,NUPS14_27771,"-119,950.13",Programme Template
BIS,Skills Funding Agency,13/08/2014,16-18 Apprenticeships - Non Centralised Contract Management,Main Funding,BHS LTD,NUPS14_30266,"127,882.20",Programme Template
BIS,Skills Funding Agency,13/08/2014,16-18 Apprenticeships - Non Centralised Contract Management,Main Funding,BICTON COLLEGE,NUPS14_27521,"-456,683.29",Programme Template
BIS,Skills Funding Agency,13/08/2014,16-18 Apprenticeships - Non Centralised Contract Management,Main Funding,BICTON COLLEGE,NUPS14_30023,"486,204.48",Programme Template
BIS,Skills Funding Agency,13/08/2014,16-18 Apprenticeships - Non Centralised Contract Management,Main Funding,BIRMINGHAM ELECTRICAL TRAINING LTD,NUPS14_27569,"-359,617.73",Programme Template
BIS,Skills Funding Agency,13/08/2014,16-18 Apprenticeships - Non Centralised Contract Management,Main Funding,BIRMINGHAM ELECTRICAL TRAINING LTD,NUPS14_30073,"385,688.72",Programme Template
BIS,Skills Funding Agency,13/08/2014,16-18 Apprenticeships - Non Centralised Contract Management,Main Funding,BIRMINGHAM METROPOLITAN COLLEGE,NUPS14_27182,"-2,751,091.41",Programme Template
BIS,Skills Funding Agency,13/08/2014,16-18 Apprenticeships - Non Centralised Contract Management,Main Funding,BIRMINGHAM METROPOLITAN COLLEGE,NUPS14_29681,"2,917,815.26",Programme Template
BIS,Skills Funding Agency,13/08/2014,16-18 Apprenticeships - Non Centralised Contract Management,Main Funding,BISHOP AUCKLAND COLLEGE,NUPS14_27541,"-405,083.53",Programme Template
BIS,Skills Funding Agency,13/08/2014,16-18 Apprenticeships - Non Centralised Contract Management,Main Funding,BISHOP AUCKLAND COLLEGE,NUPS14_30037,"446,269.95",Programme Template
BIS,Skills Funding Agency,13/08/2014,16-18 Apprenticeships - Non Centralised Contract Management,Main Funding,BISHOP BURTON COLLEGE,NUPS14_27478,"-530,589.60",Programme Template
BIS,Skills Funding Agency,13/08/2014,16-18 Apprenticeships - Non Centralised Contract Management,Main Funding,BISHOP BURTON COLLEGE,NUPS14_29971,"601,201.67",Programme Template
BIS,Skills Funding Agency,13/08/2014,16-18 Apprenticeships - Non Centralised Contract Management,Main Funding,BL TRAINING LTD,NUPS14_27305,"-1,023,758.63",Programme Template
BIS,Skills Funding Agency,13/08/2014,16-18 Apprenticeships - Non Centralised Contract Management,Main Funding,BL TRAINING LTD,NUPS14_29800,"1,126,588.80",Programme Template
BIS,Skills Funding Agency,13/08/2014,16-18 Apprenticeships - Non Centralised Contract Management,Main Funding,BLACKBURN COLLEGE,NUPS14_27293,"-1,093,593.05",Programme Template
BIS,Skills Funding Agency,13/08/2014,16-18 Apprenticeships - Non Centralised Contract Management,Main Funding,BLACKBURN COLLEGE,NUPS14_29793,"1,179,509.43",Programme Template
BIS,Skills Funding Agency,13/08/2014,16-18 Apprenticeships - Non Centralised Contract Management,Main Funding,BLACKPOOL & FLYDE COLLEGE,NUPS14_27302,"-1,050,893.76",Programme Template
BIS,Skills Funding Agency,13/08/2014,16-18 Apprenticeships - Non Centralised Contract Management,Main Funding,BLACKPOOL & FLYDE COLLEGE,NUPS14_29798,"1,148,464.98",Programme Template
BIS,Skills Funding Agency,13/08/2014,16-18 Apprenticeships - Non Centralised Contract Management,Main Funding,BLUE TRAINING UK LTD,NUPS14_27669,"-213,332.53",Programme Template
BIS,Skills Funding Agency,13/08/2014,16-18 Apprenticeships - Non Centralised Contract Management,Main Funding,BLUE TRAINING UK LTD,NUPS14_30169,"229,686.38",Programme Template
BIS,Skills Funding Agency,13/08/2014,16-18 Apprenticeships - Non Centralised Contract Management,Main Funding,BOLTON COMMUNITY COLLEGE,NUPS14_27296,"-1,072,427.15",Programme Template
BIS,Skills Funding Agency,13/08/2014,16-18 Apprenticeships - Non Centralised Contract Management,Main Funding,BOLTON COMMUNITY COLLEGE,NUPS14_29797,"1,154,289.96",Programme Template
BIS,Skills Funding Agency,13/08/2014,16-18 Apprenticeships - Non Centralised Contract Management,Main Funding,BOOTS OPTICANS PROFESSIONAL SERVICES LTD,NUPS14_27818,"-80,754.05",Programme Template
BIS,Skills Funding Agency,13/08/2014,16-18 Apprenticeships - Non Centralised Contract Management,Main Funding,BOOTS OPTICANS PROFESSIONAL SERVICES LTD,NUPS14_30311,"88,501.47",Programme Template
BIS,Skills Funding Agency,13/08/2014,16-18 Apprenticeships - Non Centralised Contract Management,Main Funding,BOROUGH OF POOLE,NUPS14_27828,"-70,460.95",Programme Template
BIS,Skills Funding Agency,13/08/2014,16-18 Apprenticeships - Non Centralised Contract Management,Main Funding,BOROUGH OF POOLE,NUPS14_30322,"73,520.13",Programme Template
BIS,Skills Funding Agency,13/08/2014,16-18 Apprenticeships - Non Centralised Contract Management,Main Funding,BOSCH AUTOMOTIVE SERVICE SOLUTIONS LTD,NUPS14_27631,"-270,881.83",Programme Template
BIS,Skills Funding Agency,13/08/2014,16-18 Apprenticeships - Non Centralised Contract Management,Main Funding,BOSCH AUTOMOTIVE SERVICE SOLUTIONS LTD,NUPS14_30107,"334,699.06",Programme Template
BIS,Skills Funding Agency,13/08/2014,16-18 Apprenticeships - Non Centralised Contract Management,Main Funding,BOSTON COLLEGE,NUPS14_27473,"-545,995.47",Programme Template
BIS,Skills Funding Agency,13/08/2014,16-18 Apprenticeships - Non Centralised Contract Management,Main Funding,BOSTON COLLEGE,NUPS14_29967,"611,961.55",Programme Template
BIS,Skills Funding Agency,13/08/2014,16-18 Apprenticeships - Non Centralised Contract Management,Main Funding,BOURNEMOUTH & POOLE COLLEGE,NUPS14_27180,"-2,865,224.12",Programme Template
BIS,Skills Funding Agency,13/08/2014,16-18 Apprenticeships - Non Centralised Contract Management,Main Funding,BOURNEMOUTH & POOLE COLLEGE,NUPS14_29677,"3,115,870.10",Programme Template
BIS,Skills Funding Agency,13/08/2014,16-18 Apprenticeships - Non Centralised Contract Management,Main Funding,BOURNVILLE COLLEGE OF HIGHER EDUCATION,NUPS14_27332,"-943,659.32",Programme Template
BIS,Skills Funding Agency,13/08/2014,16-18 Apprenticeships - Non Centralised Contract Management,Main Funding,BOURNVILLE COLLEGE OF HIGHER EDUCATION,NUPS14_29823,"1,060,730.11",Programme Template
BIS,Skills Funding Agency,13/08/2014,16-18 Apprenticeships - Non Centralised Contract Management,Main Funding,BPP HOLDINGS PLC,NUPS14_27358,"-843,963.84",Programme Template
BIS,Skills Funding Agency,13/08/2014,16-18 Apprenticeships - Non Centralised Contract Management,Main Funding,BPP HOLDINGS PLC,NUPS14_29851,"927,073.02",Programme Template
BIS,Skills Funding Agency,13/08/2014,16-18 Apprenticeships - Non Centralised Contract Management,Main Funding,BRACKNELL & WOKINGHAM COLLEGE,NUPS14_27445,"-604,551.78",Programme Template
BIS,Skills Funding Agency,13/08/2014,16-18 Apprenticeships - Non Centralised Contract Management,Main Funding,BRACKNELL & WOKINGHAM COLLEGE,NUPS14_29939,"672,013.16",Programme Template
BIS,Skills Funding Agency,13/08/2014,16-18 Apprenticeships - Non Centralised Contract Management,Main Funding,BRADFORD CITY COUNCIL,NUPS14_27822,"-77,278.90",Programme Template
BIS,Skills Funding Agency,13/08/2014,16-18 Apprenticeships - Non Centralised Contract Management,Main Funding,BRADFORD CITY COUNCIL,NUPS14_30310,"89,861.85",Programme Template
BIS,Skills Funding Agency,13/08/2014,16-18 Apprenticeships - Non Centralised Contract Management,Main Funding,BRADFORD COLLEGE,NUPS14_27194,"-2,218,283.33",Programme Template
BIS,Skills Funding Agency,13/08/2014,16-18 Apprenticeships - Non Centralised Contract Management,Main Funding,BRADFORD COLLEGE,NUPS14_29684,"2,583,692.12",Programme Template
BIS,Skills Funding Agency,13/08/2014,16-18 Apprenticeships - Non Centralised Contract Management,Main Funding,BRIDGWATER COLLEGE,NUPS14_27209,"-1,899,292.51",Programme Template
BIS,Skills Funding Agency,13/08/2014,16-18 Apprenticeships - Non Centralised Contract Management,Main Funding,BRIDGWATER COLLEGE,NUPS14_29703,"2,075,250.14",Programme Template
BIS,Skills Funding Agency,13/08/2014,16-18 Apprenticeships - Non Centralised Contract Management,Main Funding,BRIGHT HORIZONS FAMILY SOLUTIONS LTD,NUPS14_27928,"-6,961.98",Programme Template
BIS,Skills Funding Agency,13/08/2014,16-18 Apprenticeships - Non Centralised Contract Management,Main Funding,BRIGHT HORIZONS FAMILY SOLUTIONS LTD,NUPS14_30408,"14,230.69",Programme Template
BIS,Skills Funding Agency,13/08/2014,16-18 Apprenticeships - Non Centralised Contract Management,Main Funding,BRINSWORTH TRAINING LIMITED,NUPS14_27416,"-670,198.64",Programme Template
BIS,Skills Funding Agency,13/08/2014,16-18 Apprenticeships - Non Centralised Contract Management,Main Funding,BRINSWORTH TRAINING LIMITED,NUPS14_29906,"757,311.51",Programme Template
BIS,Skills Funding Agency,13/08/2014,16-18 Apprenticeships - Non Centralised Contract Management,Main Funding,BRISTOL CITY COUNCIL,NUPS14_27433,"-637,389.63",Programme Template
BIS,Skills Funding Agency,13/08/2014,16-18 Apprenticeships - Non Centralised Contract Management,Main Funding,BRISTOL CITY COUNCIL,NUPS14_29905,"757,342.40",Programme Template
BIS,Skills Funding Agency,13/08/2014,16-18 Apprenticeships - Non Centralised Contract Management,Main Funding,BRITISH ARMY,NUPS14_27152,"-10,358,511.73",Programme Template
BIS,Skills Funding Agency,13/08/2014,16-18 Apprenticeships - Non Centralised Contract Management,Main Funding,BRITISH ARMY,NUPS14_29647,"11,110,407.17",Programme Template
BIS,Skills Funding Agency,13/08/2014,16-18 Apprenticeships - Non Centralised Contract Management,Main Funding,BRITISH GAS SERVICES LIMITED,NUPS14_27636,"-264,346.05",Programme Template
BIS,Skills Funding Agency,13/08/2014,16-18 Apprenticeships - Non Centralised Contract Management,Main Funding,BRITISH GAS SERVICES LIMITED,NUPS14_30133,"286,674.07",Programme Template
BIS,Skills Funding Agency,13/08/2014,16-18 Apprenticeships - Non Centralised Contract Management,Main Funding,BRITISH NUCLEAR FUELS PLC,NUPS14_27696,"-179,840.46",Programme Template
BIS,Skills Funding Agency,13/08/2014,16-18 Apprenticeships - Non Centralised Contract Management,Main Funding,BRITISH NUCLEAR FUELS PLC,NUPS14_30197,"189,682.84",Programme Template
BIS,Skills Funding Agency,13/08/2014,16-18 Apprenticeships - Non Centralised Contract Management,Main Funding,BRITISH PRINTING INDUSTRIES FEDERATION LTD,NUPS14_27566,"-367,511.75",Programme Template
BIS,Skills Funding Agency,13/08/2014,16-18 Apprenticeships - Non Centralised Contract Management,Main Funding,BRITISH PRINTING INDUSTRIES FEDERATION LTD,NUPS14_30059,"405,327.11",Programme Template
BIS,Skills Funding Agency,13/08/2014,16-18 Apprenticeships - Non Centralised Contract Management,Main Funding,BRITISH TELECOM PLC,NUPS14_27261,"-1,222,650.50",Programme Template
BIS,Skills Funding Agency,13/08/2014,16-18 Apprenticeships - Non Centralised Contract Management,Main Funding,BRITISH TELECOM PLC,NUPS14_29759,"1,327,225.17",Programme Template
BIS,Skills Funding Agency,13/08/2014,16-18 Apprenticeships - Non Centralised Contract Management,Main Funding,BROADLAND DISTRICT COUNCIL,NUPS14_27440,"-617,147.65",Programme Template
BIS,Skills Funding Agency,13/08/2014,16-18 Apprenticeships - Non Centralised Contract Management,Main Funding,BROADLAND DISTRICT COUNCIL,NUPS14_29928,"699,914.40",Programme Template
BIS,Skills Funding Agency,13/08/2014,16-18 Apprenticeships - Non Centralised Contract Management,Main Funding,BROCKENHURST COLLEGE,NUPS14_27563,"-370,611.38",Programme Template
BIS,Skills Funding Agency,13/08/2014,16-18 Apprenticeships - Non Centralised Contract Management,Main Funding,BROCKENHURST COLLEGE,NUPS14_30054,"412,338.08",Programme Template
BIS,Skills Funding Agency,13/08/2014,16-18 Apprenticeships - Non Centralised Contract Management,Main Funding,BROMLEY COLLEGE OF FURTHER & HIGHER EDUCATION,NUPS14_27288,"-1,140,235.86",Programme Template
BIS,Skills Funding Agency,13/08/2014,16-18 Apprenticeships - Non Centralised Contract Management,Main Funding,BROMLEY COLLEGE OF FURTHER & HIGHER EDUCATION,NUPS14_29784,"1,242,946.15",Programme Template
BIS,Skills Funding Agency,13/08/2014,16-18 Apprenticeships - Non Centralised Contract Management,Main Funding,BROOKLANDS TECHNICAL COLLEGE,NUPS14_27183,"-2,749,441.32",Programme Template
BIS,Skills Funding Agency,13/08/2014,16-18 Apprenticeships - Non Centralised Contract Management,Main Funding,BROOKLANDS TECHNICAL COLLEGE,NUPS14_29667,"3,518,948.32",Programme Template
BIS,Skills Funding Agency,13/08/2014,16-18 Apprenticeships - Non Centralised Contract Management,Main Funding,BROOKSBY MELTON COLLEGE,NUPS14_27610,"-307,475.54",Programme Template
BIS,Skills Funding Agency,13/08/2014,16-18 Apprenticeships - Non Centralised Contract Management,Main Funding,BROOKSBY MELTON COLLEGE,NUPS14_30110,"326,692.27",Programme Template
BIS,Skills Funding Agency,13/08/2014,16-18 Apprenticeships - Non Centralised Contract Management,Main Funding,BUCKINGHAMSHIRE COUNTY COUNCIL,NUPS14_27702,"-172,234.31",Programme Template
BIS,Skills Funding Agency,13/08/2014,16-18 Apprenticeships - Non Centralised Contract Management,Main Funding,BUCKINGHAMSHIRE COUNTY COUNCIL,NUPS14_30199,"187,991.75",Programme Template
BIS,Skills Funding Agency,13/08/2014,16-18 Apprenticeships - Non Centralised Contract Management,Main Funding,BUILDING CRAFTS COLLEGE,NUPS14_27768,"-120,514.07",Programme Template
BIS,Skills Funding Agency,13/08/2014,16-18 Apprenticeships - Non Centralised Contract Management,Main Funding,BUILDING CRAFTS COLLEGE,NUPS14_30263,"131,458.44",Programme Template
BIS,Skills Funding Agency,13/08/2014,16-18 Apprenticeships - Non Centralised Contract Management,Main Funding,BUILDING ENGINEERING SERVICES TRAINING LTD,NUPS14_27259,"-1,232,966.84",Programme Template
BIS,Skills Funding Agency,13/08/2014,16-18 Apprenticeships - Non Centralised Contract Management,Main Funding,BUILDING ENGINEERING SERVICES TRAINING LTD,NUPS14_29761,"1,325,077.52",Programme Template
BIS,Skills Funding Agency,13/08/2014,16-18 Apprenticeships - Non Centralised Contract Management,Main Funding,BURNLEY COLLEGE,NUPS14_27267,"-1,204,009.79",Programme Template
BIS,Skills Funding Agency,13/08/2014,16-18 Apprenticeships - Non Centralised Contract Management,Main Funding,BURNLEY COLLEGE,NUPS14_29752,"1,397,561.38",Programme Template
BIS,Skills Funding Agency,13/08/2014,16-18 Apprenticeships - Non Centralised Contract Management,Main Funding,BURTON & SOUTH DERBYSHIRE COLLEGE,NUPS14_27315,"-987,349.75",Programme Template
BIS,Skills Funding Agency,13/08/2014,16-18 Apprenticeships - Non Centralised Contract Management,Main Funding,BURTON & SOUTH DERBYSHIRE COLLEGE,NUPS14_29819,"1,068,006.53",Programme Template
BIS,Skills Funding Agency,13/08/2014,16-18 Apprenticeships - Non Centralised Contract Management,Main Funding,BURY COLLEGE,NUPS14_27297,"-1,071,532.49",Programme Template
BIS,Skills Funding Agency,13/08/2014,16-18 Apprenticeships - Non Centralised Contract Management,Main Funding,BURY COLLEGE,NUPS14_29791,"1,185,461.45",Programme Template
BIS,Skills Funding Agency,13/08/2014,16-18 Apprenticeships - Non Centralised Contract Management,Main Funding,BURY METRO BOROUGH COUNCIL,NUPS14_27952,-466.24,Programme Template
BIS,Skills Funding Agency,13/08/2014,16-18 Apprenticeships - Non Centralised Contract Management,Main Funding,BURY METRO BOROUGH COUNCIL,NUPS14_30446,466.24,Programme Template
BIS,Skills Funding Agency,13/08/2014,16-18 Apprenticeships - Non Centralised Contract Management,Main Funding,BUSINESS IMPACT UK LIMITED,NUPS14_27256,"-1,281,835.01",Programme Template
BIS,Skills Funding Agency,13/08/2014,16-18 Apprenticeships - Non Centralised Contract Management,Main Funding,BUSINESS IMPACT UK LIMITED,NUPS14_29751,"1,411,712.27",Programme Template
BIS,Skills Funding Agency,13/08/2014,16-18 Apprenticeships - Non Centralised Contract Management,Main Funding,BUSINESS MANAGEMENT RESOURCES UK LTD,NUPS14_27813,"-84,537.43",Programme Template
BIS,Skills Funding Agency,13/08/2014,16-18 Apprenticeships - Non Centralised Contract Management,Main Funding,BUSINESS MANAGEMENT RESOURCES UK LTD,NUPS14_30308,"90,534.66",Programme Template
BIS,Skills Funding Agency,13/08/2014,16-18 Apprenticeships - Non Centralised Contract Management,Main Funding,BUSY BEES NURSERIES,NUPS14_27455,"-583,252.36",Programme Template
BIS,Skills Funding Agency,13/08/2014,16-18 Apprenticeships - Non Centralised Contract Management,Main Funding,BUSY BEES NURSERIES,NUPS14_29958,"630,526.55",Programme Template
BIS,Skills Funding Agency,13/08/2014,16-18 Apprenticeships - Non Centralised Contract Management,Main Funding,CABLECOM TRAINING LTD,NUPS14_27837,"-61,817.53",Programme Template
BIS,Skills Funding Agency,13/08/2014,16-18 Apprenticeships - Non Centralised Contract Management,Main Funding,CABLECOM TRAINING LTD,NUPS14_30327,"68,975.56",Programme Template
BIS,Skills Funding Agency,13/08/2014,16-18 Apprenticeships - Non Centralised Contract Management,Main Funding,CADCENTRE UK LTD,NUPS14_27759,"-127,496.84",Programme Template
BIS,Skills Funding Agency,13/08/2014,16-18 Apprenticeships - Non Centralised Contract Management,Main Funding,CADCENTRE UK LTD,NUPS14_30246,"147,449.74",Programme Template
BIS,Skills Funding Agency,13/08/2014,16-18 Apprenticeships - Non Centralised Contract Management,Main Funding,CALDERDALE COLLEGE,NUPS14_27382,"-778,386.76",Programme Template
BIS,Skills Funding Agency,13/08/2014,16-18 Apprenticeships - Non Centralised Contract Management,Main Funding,CALDERDALE COLLEGE,NUPS14_29872,"859,874.05",Programme Template
BIS,Skills Funding Agency,13/08/2014,16-18 Apprenticeships - Non Centralised Contract Management,Main Funding,CAMBRIDGE REGIONAL COLLEGE,NUPS14_27173,"-3,140,792.80",Programme Template
BIS,Skills Funding Agency,13/08/2014,16-18 Apprenticeships - Non Centralised Contract Management,Main Funding,CAMBRIDGE REGIONAL COLLEGE,NUPS14_29666,"3,525,759.00",Programme Template
BIS,Skills Funding Agency,13/08/2014,16-18 Apprenticeships - Non Centralised Contract Management,Main Funding,CAMBRIDGESHIRE COUNTY COUNCIL,NUPS14_27950,"-1,428.60",Programme Template
BIS,Skills Funding Agency,13/08/2014,16-18 Apprenticeships - Non Centralised Contract Management,Main Funding,CAMBRIDGESHIRE COUNTY COUNCIL,NUPS14_30439,"3,473.14",Programme Template
BIS,Skills Funding Agency,13/08/2014,16-18 Apprenticeships - Non Centralised Contract Management,Main Funding,CANTERBURY COLLEGE,NUPS14_27351,"-858,022.03",Programme Template
BIS,Skills Funding Agency,13/08/2014,16-18 Apprenticeships - Non Centralised Contract Management,Main Funding,CANTERBURY COLLEGE,NUPS14_29846,"948,374.36",Programme Template
BIS,Skills Funding Agency,13/08/2014,16-18 Apprenticeships - Non Centralised Contract Management,Main Funding,CAPEL MANOR COLLEGE,NUPS14_27683,"-194,603.15",Programme Template
BIS,Skills Funding Agency,13/08/2014,16-18 Apprenticeships - Non Centralised Contract Management,Main Funding,CAPEL MANOR COLLEGE,NUPS14_30173,"222,306.93",Programme Template
BIS,Skills Funding Agency,13/08/2014,16-18 Apprenticeships - Non Centralised Contract Management,Main Funding,CAPITA PLC,NUPS14_27762,"-126,132.86",Programme Template
BIS,Skills Funding Agency,13/08/2014,16-18 Apprenticeships - Non Centralised Contract Management,Main Funding,CAPITA PLC,NUPS14_30261,"133,540.03",Programme Template
BIS,Skills Funding Agency,13/08/2014,16-18 Apprenticeships - Non Centralised Contract Management,Main Funding,CAPITAL ENGINEERING GROUP HOLDINGS LTD,NUPS14_27523,"-445,519.44",Programme Template
BIS,Skills Funding Agency,13/08/2014,16-18 Apprenticeships - Non Centralised Contract Management,Main Funding,CAPITAL ENGINEERING GROUP HOLDINGS LTD,NUPS14_30025,"482,609.86",Programme Template
BIS,Skills Funding Agency,13/08/2014,16-18 Apprenticeships - Non Centralised Contract Management,Main Funding,CARE LEARNING CENTRE ISLE OF WIGHT LTD,NUPS14_27774,"-116,826.91",Programme Template
BIS,Skills Funding Agency,13/08/2014,16-18 Apprenticeships - Non Centralised Contract Management,Main Funding,CARE LEARNING CENTRE ISLE OF WIGHT LTD,NUPS14_30272,"125,108.85",Programme Template
BIS,Skills Funding Agency,13/08/2014,16-18 Apprenticeships - Non Centralised Contract Management,Main Funding,CARE TRAINING EAST MIDLANDS LIMITED,NUPS14_27621,"-290,111.44",Programme Template
BIS,Skills Funding Agency,13/08/2014,16-18 Apprenticeships - Non Centralised Contract Management,Main Funding,CARE TRAINING EAST MIDLANDS LIMITED,NUPS14_30112,"323,148.96",Programme Template
BIS,Skills Funding Agency,13/08/2014,16-18 Apprenticeships - Non Centralised Contract Management,Main Funding,CAREER DEVELOPMENT CENTRE LTD,NUPS14_27793,"-101,456.35",Programme Template
BIS,Skills Funding Agency,13/08/2014,16-18 Apprenticeships - Non Centralised Contract Management,Main Funding,CAREER DEVELOPMENT CENTRE LTD,NUPS14_30284,"114,791.69",Programme Template
BIS,Skills Funding Agency,13/08/2014,16-18 Apprenticeships - Non Centralised Contract Management,Main Funding,CARILLION CONSTRUCTION LTD,NUPS14_27159,"-5,501,930.44",Programme Template
BIS,Skills Funding Agency,13/08/2014,16-18 Apprenticeships - Non Centralised Contract Management,Main Funding,CARILLION CONSTRUCTION LTD,NUPS14_29653,"6,063,312.89",Programme Template
BIS,Skills Funding Agency,13/08/2014,16-18 Apprenticeships - Non Centralised Contract Management,Main Funding,CARLISLE COLLEGE,NUPS14_27461,"-573,127.69",Programme Template
BIS,Skills Funding Agency,13/08/2014,16-18 Apprenticeships - Non Centralised Contract Management,Main Funding,CARLISLE COLLEGE,NUPS14_29956,"632,034.08",Programme Template
BIS,Skills Funding Agency,13/08/2014,16-18 Apprenticeships - Non Centralised Contract Management,Main Funding,CARSHALTON COLLEGE,NUPS14_27417,"-667,160.09",Programme Template
BIS,Skills Funding Agency,13/08/2014,16-18 Apprenticeships - Non Centralised Contract Management,Main Funding,CARSHALTON COLLEGE,NUPS14_29920,"721,850.64",Programme Template
BIS,Skills Funding Agency,13/08/2014,16-18 Apprenticeships - Non Centralised Contract Management,Main Funding,CATCH 22 CHARITY LTD,NUPS14_27224,"-1,658,371.44",Programme Template
BIS,Skills Funding Agency,13/08/2014,16-18 Apprenticeships - Non Centralised Contract Management,Main Funding,CATCH 22 CHARITY LTD,NUPS14_29712,"1,946,343.83",Programme Template
BIS,Skills Funding Agency,13/08/2014,16-18 Apprenticeships - Non Centralised Contract Management,Main Funding,CENTRAL BEDFORDSHIRE COLLEGE,NUPS14_27675,"-207,685.25",Programme Template
BIS,Skills Funding Agency,13/08/2014,16-18 Apprenticeships - Non Centralised Contract Management,Main Funding,CENTRAL BEDFORDSHIRE COLLEGE,NUPS14_30164,"236,990.24",Programme Template
BIS,Skills Funding Agency,13/08/2014,16-18 Apprenticeships - Non Centralised Contract Management,Main Funding,CENTRAL BEDFORDSHIRE COUNCIL,NUPS14_27919,"-10,172.84",Programme Template
BIS,Skills Funding Agency,13/08/2014,16-18 Apprenticeships - Non Centralised Contract Management,Main Funding,CENTRAL BEDFORDSHIRE COUNCIL,NUPS14_30418,"10,172.84",Programme Template
BIS,Skills Funding Agency,13/08/2014,16-18 Apprenticeships - Non Centralised Contract Management,Main Funding,CENTRAL COLLEGE NOTTINGHAM,NUPS14_27115,"-1,567.00",Programme Template
BIS,Skills Funding Agency,13/08/2014,16-18 Apprenticeships - Non Centralised Contract Management,Main Funding,CENTRAL COLLEGE NOTTINGHAM,NUPS14_27205,"-1,947,710.94",Programme Template
BIS,Skills Funding Agency,13/08/2014,16-18 Apprenticeships - Non Centralised Contract Management,Main Funding,CENTRAL COLLEGE NOTTINGHAM,NUPS14_29700,"2,114,050.83",Programme Template
BIS,Skills Funding Agency,13/08/2014,16-18 Apprenticeships - Non Centralised Contract Management,Main Funding,CENTRAL SUSSEX COLLEGE,NUPS14_27312,"-992,809.15",Programme Template
BIS,Skills Funding Agency,13/08/2014,16-18 Apprenticeships - Non Centralised Contract Management,Main Funding,CENTRAL SUSSEX COLLEGE,NUPS14_29820,"1,067,820.27",Programme Template
BIS,Skills Funding Agency,13/08/2014,16-18 Apprenticeships - Non Centralised Contract Management,Main Funding,CENTRAL TRAINING ACADEMY LTD,NUPS14_27201,"-2,058,266.80",Programme Template
BIS,Skills Funding Agency,13/08/2014,16-18 Apprenticeships - Non Centralised Contract Management,Main Funding,CENTRAL TRAINING ACADEMY LTD,NUPS14_29693,"2,345,967.33",Programme Template
BIS,Skills Funding Agency,13/08/2014,16-18 Apprenticeships - Non Centralised Contract Management,Main Funding,CHAMBER TRAINING HUMBER LTD,NUPS14_27110,-117.40,Programme Template
BIS,Skills Funding Agency,13/08/2014,16-18 Apprenticeships - Non Centralised Contract Management,Main Funding,CHAMBER TRAINING HUMBER LTD,NUPS14_27411,"-680,185.01",Programme Template
BIS,Skills Funding Agency,13/08/2014,16-18 Apprenticeships - Non Centralised Contract Management,Main Funding,CHAMBER TRAINING HUMBER LTD,NUPS14_29913,"741,876.41",Programme Template
BIS,Skills Funding Agency,13/08/2014,16-18 Apprenticeships - Non Centralised Contract Management,Main Funding,CHAPMAN BENNETT ASSOCIATES LIMITED,NUPS14_27686,"-192,078.76",Programme Template
BIS,Skills Funding Agency,13/08/2014,16-18 Apprenticeships - Non Centralised Contract Management,Main Funding,CHAPMAN BENNETT ASSOCIATES LIMITED,NUPS14_30180,"211,604.15",Programme Template
BIS,Skills Funding Agency,13/08/2014,16-18 Apprenticeships - Non Centralised Contract Management,Main Funding,CHARNWOOD TRAINING GROUP LTD,NUPS14_27380,"-780,826.66",Programme Template
BIS,Skills Funding Agency,13/08/2014,16-18 Apprenticeships - Non Centralised Contract Management,Main Funding,CHARNWOOD TRAINING GROUP LTD,NUPS14_29884,"827,932.72",Programme Template
BIS,Skills Funding Agency,13/08/2014,16-18 Apprenticeships - Non Centralised Contract Management,Main Funding,CHEADLE & MARPLE SIXTH FORM COLLEGE,NUPS14_27616,"-298,996.13",Programme Template
BIS,Skills Funding Agency,13/08/2014,16-18 Apprenticeships - Non Centralised Contract Management,Main Funding,CHEADLE & MARPLE SIXTH FORM COLLEGE,NUPS14_30113,"322,893.90",Programme Template
BIS,Skills Funding Agency,13/08/2014,16-18 Apprenticeships - Non Centralised Contract Management,Main Funding,CHELMSFORD COLLEGE,NUPS14_27539,"-414,633.31",Programme Template
BIS,Skills Funding Agency,13/08/2014,16-18 Apprenticeships - Non Centralised Contract Management,Main Funding,CHELMSFORD COLLEGE,NUPS14_30031,"459,833.02",Programme Template
BIS,Skills Funding Agency,13/08/2014,16-18 Apprenticeships - Non Centralised Contract Management,Main Funding,CHESHIRE WEST & CHESTER COUNCIL,NUPS13_15302,"-17,082.00",Programme Template
BIS,Skills Funding Agency,13/08/2014,16-18 Apprenticeships - Non Centralised Contract Management,Main Funding,CHESHIRE WEST & CHESTER COUNCIL,NUPS13_17047,"-17,082.00",Programme Template
BIS,Skills Funding Agency,13/08/2014,16-18 Apprenticeships - Non Centralised Contract Management,Main Funding,CHESHIRE WEST & CHESTER COUNCIL,NUPS13_19517,"-17,082.00",Programme Template
BIS,Skills Funding Agency,13/08/2014,16-18 Apprenticeships - Non Centralised Contract Management,Main Funding,CHESHIRE WEST & CHESTER COUNCIL,NUPS13_21857,"7,866.01",Programme Template
BIS,Skills Funding Agency,13/08/2014,16-18 Apprenticeships - Non Centralised Contract Management,Main Funding,CHESHIRE WEST & CHESTER COUNCIL,NUPS13_26530,"-7,866.01",Programme Template
BIS,Skills Funding Agency,13/08/2014,16-18 Apprenticeships - Non Centralised Contract Management,Main Funding,CHESHIRE WEST & CHESTER COUNCIL,NUPS13_30662,"8,629.39",Programme Template
BIS,Skills Funding Agency,13/08/2014,16-18 Apprenticeships - Non Centralised Contract Management,Main Funding,CHESHIRE WEST & CHESTER COUNCIL,NUPS13_34803,"-8,629.39",Programme Template
BIS,Skills Funding Agency,13/08/2014,16-18 Apprenticeships - Non Centralised Contract Management,Main Funding,CHESHIRE WEST & CHESTER COUNCIL,NUPS13_37068,"13,865.22",Programme Template
BIS,Skills Funding Agency,13/08/2014,16-18 Apprenticeships - Non Centralised Contract Management,Main Funding,CHESHIRE WEST & CHESTER COUNCIL,NUPS13_40558,"-13,865.22",Programme Template
BIS,Skills Funding Agency,13/08/2014,16-18 Apprenticeships - Non Centralised Contract Management,Main Funding,CHESHIRE WEST & CHESTER COUNCIL,NUPS13_43031,"14,160.72",Programme Template
BIS,Skills Funding Agency,13/08/2014,16-18 Apprenticeships - Non Centralised Contract Management,Main Funding,CHESHIRE WEST & CHESTER COUNCIL,NUPS14_12483,"13,047.97",Programme Template
BIS,Skills Funding Agency,13/08/2014,16-18 Apprenticeships - Non Centralised Contract Management,Main Funding,CHESHIRE WEST & CHESTER COUNCIL,NUPS14_16442,"-13,047.97",Programme Template
BIS,Skills Funding Agency,13/08/2014,16-18 Apprenticeships - Non Centralised Contract Management,Main Funding,CHESHIRE WEST & CHESTER COUNCIL,NUPS14_18493,"13,393.98",Programme Template
BIS,Skills Funding Agency,13/08/2014,16-18 Apprenticeships - Non Centralised Contract Management,Main Funding,CHESHIRE WEST & CHESTER COUNCIL,NUPS14_22466,"-13,393.98",Programme Template
BIS,Skills Funding Agency,13/08/2014,16-18 Apprenticeships - Non Centralised Contract Management,Main Funding,CHESHIRE WEST & CHESTER COUNCIL,NUPS14_24922,"13,677.26",Programme Template
BIS,Skills Funding Agency,13/08/2014,16-18 Apprenticeships - Non Centralised Contract Management,Main Funding,CHESHIRE WEST & CHESTER COUNCIL,NUPS14_2649,"-14,160.72",Programme Template
BIS,Skills Funding Agency,13/08/2014,16-18 Apprenticeships - Non Centralised Contract Management,Main Funding,CHESHIRE WEST & CHESTER COUNCIL,NUPS14_27913,"-13,677.26",Programme Template
BIS,Skills Funding Agency,13/08/2014,16-18 Apprenticeships - Non Centralised Contract Management,Main Funding,CHESHIRE WEST & CHESTER COUNCIL,NUPS14_30410,"13,960.53",Programme Template
BIS,Skills Funding Agency,13/08/2014,16-18 Apprenticeships - Non Centralised Contract Management,Main Funding,CHESHIRE WEST & CHESTER COUNCIL,NUPS14_5897,"12,701.96",Programme Template
BIS,Skills Funding Agency,13/08/2014,16-18 Apprenticeships - Non Centralised Contract Management,Main Funding,CHESHIRE WEST & CHESTER COUNCIL,NUPS14_9218,"-12,701.96",Programme Template
BIS,Skills Funding Agency,13/08/2014,16-18 Apprenticeships - Non Centralised Contract Management,Main Funding,CHESTERFIELD COLLEGE,NUPS14_27171,"-3,204,317.03",Programme Template
BIS,Skills Funding Agency,13/08/2014,16-18 Apprenticeships - Non Centralised Contract Management,Main Funding,CHESTERFIELD COLLEGE,NUPS14_29670,"3,399,165.58",Programme Template
BIS,Skills Funding Agency,13/08/2014,16-18 Apprenticeships - Non Centralised Contract Management,Main Funding,CHEYNES MANAGEMENT LTD,NUPS14_27321,"-980,962.04",Programme Template
BIS,Skills Funding Agency,13/08/2014,16-18 Apprenticeships - Non Centralised Contract Management,Main Funding,CHEYNES MANAGEMENT LTD,NUPS14_29808,"1,085,323.83",Programme Template
BIS,Skills Funding Agency,13/08/2014,16-18 Apprenticeships - Non Centralised Contract Management,Main Funding,CHICHESTER COLLEGE,NUPS14_27255,"-1,301,028.40",Programme Template
BIS,Skills Funding Agency,13/08/2014,16-18 Apprenticeships - Non Centralised Contract Management,Main Funding,CHICHESTER COLLEGE,NUPS14_29750,"1,417,457.96",Programme Template
BIS,Skills Funding Agency,13/08/2014,16-18 Apprenticeships - Non Centralised Contract Management,Main Funding,CHILDRENS LINKS,NUPS14_27809,"-90,878.00",Programme Template
BIS,Skills Funding Agency,13/08/2014,16-18 Apprenticeships - Non Centralised Contract Management,Main Funding,CHILDRENS LINKS,NUPS14_30296,"104,494.76",Programme Template
BIS,Skills Funding Agency,13/08/2014,16-18 Apprenticeships - Non Centralised Contract Management,Main Funding,CHILTERN TRAINING LTD,NUPS14_27342,"-900,791.28",Programme Template
BIS,Skills Funding Agency,13/08/2014,16-18 Apprenticeships - Non Centralised Contract Management,Main Funding,CHILTERN TRAINING LTD,NUPS14_29838,"991,777.72",Programme Template
BIS,Skills Funding Agency,13/08/2014,16-18 Apprenticeships - Non Centralised Contract Management,Main Funding,CIRENCESTER TERTIARY COLLEGE,NUPS14_27659,"-233,084.69",Programme Template
BIS,Skills Funding Agency,13/08/2014,16-18 Apprenticeships - Non Centralised Contract Management,Main Funding,CIRENCESTER TERTIARY COLLEGE,NUPS14_30158,"246,045.85",Programme Template
BIS,Skills Funding Agency,13/08/2014,16-18 Apprenticeships - Non Centralised Contract Management,Main Funding,CITB CONSTRUCTIONSKILLS,NUPS14_27149,"-17,767,193.88",Programme Template
BIS,Skills Funding Agency,13/08/2014,16-18 Apprenticeships - Non Centralised Contract Management,Main Funding,CITB CONSTRUCTIONSKILLS,NUPS14_29644,"19,770,939.89",Programme Template
BIS,Skills Funding Agency,13/08/2014,16-18 Apprenticeships - Non Centralised Contract Management,Main Funding,CITROEN UK LTD,NUPS14_27486,"-516,753.94",Programme Template
BIS,Skills Funding Agency,13/08/2014,16-18 Apprenticeships - Non Centralised Contract Management,Main Funding,CITROEN UK LTD,NUPS14_29984,"564,194.67",Programme Template
BIS,Skills Funding Agency,13/08/2014,16-18 Apprenticeships - Non Centralised Contract Management,Main Funding,CITY AND ISLINGTON COLLEGE,NUPS14_27713,"-164,004.39",Programme Template
BIS,Skills Funding Agency,13/08/2014,16-18 Apprenticeships - Non Centralised Contract Management,Main Funding,CITY AND ISLINGTON COLLEGE,NUPS14_30210,"179,639.58",Programme Template
BIS,Skills Funding Agency,13/08/2014,16-18 Apprenticeships - Non Centralised Contract Management,Main Funding,CITY COLLEGE BRIGHTON & HOVE,NUPS14_27435,"-636,375.33",Programme Template
BIS,Skills Funding Agency,13/08/2014,16-18 Apprenticeships - Non Centralised Contract Management,Main Funding,CITY COLLEGE BRIGHTON & HOVE,NUPS14_29931,"695,250.29",Programme Template
BIS,Skills Funding Agency,13/08/2014,16-18 Apprenticeships - Non Centralised Contract Management,Main Funding,CITY COLLEGE COVENTRY,NUPS14_27324,"-972,508.00",Programme Template
BIS,Skills Funding Agency,13/08/2014,16-18 Apprenticeships - Non Centralised Contract Management,Main Funding,CITY COLLEGE COVENTRY,NUPS14_29817,"1,070,617.18",Programme Template
BIS,Skills Funding Agency,13/08/2014,16-18 Apprenticeships - Non Centralised Contract Management,Main Funding,CITY COLLEGE PLYMOUTH,NUPS14_27195,"-2,182,950.05",Programme Template
BIS,Skills Funding Agency,13/08/2014,16-18 Apprenticeships - Non Centralised Contract Management,Main Funding,CITY COLLEGE PLYMOUTH,NUPS14_29691,"2,386,884.50",Programme Template
BIS,Skills Funding Agency,13/08/2014,16-18 Apprenticeships - Non Centralised Contract Management,Main Funding,CITY GATEWAY LTD,NUPS14_27599,"-322,050.63",Programme Template
BIS,Skills Funding Agency,13/08/2014,16-18 Apprenticeships - Non Centralised Contract Management,Main Funding,CITY GATEWAY LTD,NUPS14_30092,"363,368.56",Programme Template
BIS,Skills Funding Agency,13/08/2014,16-18 Apprenticeships - Non Centralised Contract Management,Main Funding,CITY LINK LIMITED,NUPS14_27942,"-3,415.22",Programme Template
BIS,Skills Funding Agency,13/08/2014,16-18 Apprenticeships - Non Centralised Contract Management,Main Funding,CITY LINK LIMITED,NUPS14_30424,"7,818.33",Programme Template
BIS,Skills Funding Agency,13/08/2014,16-18 Apprenticeships - Non Centralised Contract Management,Main Funding,CITY OF BATH COLLEGE,NUPS14_27515,"-464,254.25",Programme Template
BIS,Skills Funding Agency,13/08/2014,16-18 Apprenticeships - Non Centralised Contract Management,Main Funding,CITY OF BATH COLLEGE,NUPS14_30008,"509,256.39",Programme Template
BIS,Skills Funding Agency,13/08/2014,16-18 Apprenticeships - Non Centralised Contract Management,Main Funding,CITY OF BRISTOL COLLEGE,NUPS14_27179,"-2,955,798.88",Programme Template
BIS,Skills Funding Agency,13/08/2014,16-18 Apprenticeships - Non Centralised Contract Management,Main Funding,CITY OF BRISTOL COLLEGE,NUPS14_29675,"3,193,043.91",Programme Template
BIS,Skills Funding Agency,13/08/2014,16-18 Apprenticeships - Non Centralised Contract Management,Main Funding,CITY OF LONDON ADULT EDUCATION,NUPS14_27699,"-173,896.53",Programme Template
BIS,Skills Funding Agency,13/08/2014,16-18 Apprenticeships - Non Centralised Contract Management,Main Funding,CITY OF LONDON ADULT EDUCATION,NUPS14_30200,"187,366.15",Programme Template
BIS,Skills Funding Agency,13/08/2014,16-18 Apprenticeships - Non Centralised Contract Management,Main Funding,CITY OF SUNDERLAND COLLEGE,NUPS14_27373,"-813,059.21",Programme Template
BIS,Skills Funding Agency,13/08/2014,16-18 Apprenticeships - Non Centralised Contract Management,Main Funding,CITY OF SUNDERLAND COLLEGE,NUPS14_29868,"884,580.06",Programme Template
BIS,Skills Funding Agency,13/08/2014,16-18 Apprenticeships - Non Centralised Contract Management,Main Funding,CITY OF WESTMINSTER COLLEGE,NUPS14_27672,"-211,234.98",Programme Template
BIS,Skills Funding Agency,13/08/2014,16-18 Apprenticeships - Non Centralised Contract Management,Main Funding,CITY OF WESTMINSTER COLLEGE,NUPS14_30171,"223,792.97",Programme Template
BIS,Skills Funding Agency,13/08/2014,16-18 Apprenticeships - Non Centralised Contract Management,Main Funding,CITY OF WOLVERHAMPTON COLLEGE,NUPS14_27235,"-1,457,869.96",Programme Template
BIS,Skills Funding Agency,13/08/2014,16-18 Apprenticeships - Non Centralised Contract Management,Main Funding,CITY OF WOLVERHAMPTON COLLEGE,NUPS14_29733,"1,618,131.32",Programme Template
BIS,Skills Funding Agency,13/08/2014,16-18 Apprenticeships - Non Centralised Contract Management,Main Funding,CITY OF YORK COUNCIL,NUPS14_27801,"-98,389.82",Programme Template
BIS,Skills Funding Agency,13/08/2014,16-18 Apprenticeships - Non Centralised Contract Management,Main Funding,CITY OF YORK COUNCIL,NUPS14_30294,"106,482.91",Programme Template
BIS,Skills Funding Agency,13/08/2014,16-18 Apprenticeships - Non Centralised Contract Management,Main Funding,CLARKSON EVANS TRAINING LTD,NUPS14_27597,"-324,966.04",Programme Template
BIS,Skills Funding Agency,13/08/2014,16-18 Apprenticeships - Non Centralised Contract Management,Main Funding,CLARKSON EVANS TRAINING LTD,NUPS14_30093,"360,720.36",Programme Template
BIS,Skills Funding Agency,13/08/2014,16-18 Apprenticeships - Non Centralised Contract Management,Main Funding,CLEVELAND YOUTH ASSOCIATION,NUPS14_27668,"-214,061.76",Programme Template
BIS,Skills Funding Agency,13/08/2014,16-18 Apprenticeships - Non Centralised Contract Management,Main Funding,CLEVELAND YOUTH ASSOCIATION,NUPS14_30163,"237,432.44",Programme Template
BIS,Skills Funding Agency,13/08/2014,16-18 Apprenticeships - Non Centralised Contract Management,Main Funding,COLCHESTER INSTITUTE,NUPS14_27187,"-2,414,322.16",Programme Template
BIS,Skills Funding Agency,13/08/2014,16-18 Apprenticeships - Non Centralised Contract Management,Main Funding,COLCHESTER INSTITUTE,NUPS14_29685,"2,568,477.33",Programme Template
BIS,Skills Funding Agency,13/08/2014,16-18 Apprenticeships - Non Centralised Contract Management,Main Funding,COLLEGE OF ANIMAL WELFARE LTD,NUPS14_27695,"-180,231.69",Programme Template
BIS,Skills Funding Agency,13/08/2014,16-18 Apprenticeships - Non Centralised Contract Management,Main Funding,COLLEGE OF ANIMAL WELFARE LTD,NUPS14_30187,"199,588.67",Programme Template
BIS,Skills Funding Agency,13/08/2014,16-18 Apprenticeships - Non Centralised Contract Management,Main Funding,COLLEGE OF NORTH EAST LONDON,NUPS14_27450,"-595,232.74",Programme Template
BIS,Skills Funding Agency,13/08/2014,16-18 Apprenticeships - Non Centralised Contract Management,Main Funding,COLLEGE OF NORTH EAST LONDON,NUPS14_29950,"643,036.27",Programme Template
BIS,Skills Funding Agency,13/08/2014,16-18 Apprenticeships - Non Centralised Contract Management,Main Funding,COLLEGE OF NORTH WEST LONDON,NUPS14_27581,"-344,964.74",Programme Template
BIS,Skills Funding Agency,13/08/2014,16-18 Apprenticeships - Non Centralised Contract Management,Main Funding,COLLEGE OF NORTH WEST LONDON,NUPS14_30087,"372,087.90",Programme Template
BIS,Skills Funding Agency,13/08/2014,16-18 Apprenticeships - Non Centralised Contract Management,Main Funding,COLLEGE OF RICHARD COLLYER,NUPS14_27892,"-23,840.95",Programme Template
BIS,Skills Funding Agency,13/08/2014,16-18 Apprenticeships - Non Centralised Contract Management,Main Funding,COLLEGE OF RICHARD COLLYER,NUPS14_30384,"25,052.78",Programme Template
BIS,Skills Funding Agency,13/08/2014,16-18 Apprenticeships - Non Centralised Contract Management,Main Funding,COLLEGE OF WEST ANGLIA,NUPS14_27233,"-1,533,607.72",Programme Template
BIS,Skills Funding Agency,13/08/2014,16-18 Apprenticeships - Non Centralised Contract Management,Main Funding,COLLEGE OF WEST ANGLIA,NUPS14_29724,"1,755,295.57",Programme Template
BIS,Skills Funding Agency,13/08/2014,16-18 Apprenticeships - Non Centralised Contract Management,Main Funding,COMMUNITY SKILLS DEVELOPMENT AGENCY LTD,NUPS14_27739,"-144,364.79",Programme Template
BIS,Skills Funding Agency,13/08/2014,16-18 Apprenticeships - Non Centralised Contract Management,Main Funding,COMMUNITY SKILLS DEVELOPMENT AGENCY LTD,NUPS14_30192,"194,552.05",Programme Template
BIS,Skills Funding Agency,13/08/2014,16-18 Apprenticeships - Non Centralised Contract Management,Main Funding,COMMUNITY TRAINING SERVICES LTD,NUPS14_27549,"-388,796.99",Programme Template
BIS,Skills Funding Agency,13/08/2014,16-18 Apprenticeships - Non Centralised Contract Management,Main Funding,COMMUNITY TRAINING SERVICES LTD,NUPS14_30043,"431,011.43",Programme Template
BIS,Skills Funding Agency,13/08/2014,16-18 Apprenticeships - Non Centralised Contract Management,Main Funding,COMPASS GROUP UK & IRELAND LTD,NUPS14_27763,"-124,373.77",Programme Template
BIS,Skills Funding Agency,13/08/2014,16-18 Apprenticeships - Non Centralised Contract Management,Main Funding,COMPASS GROUP UK & IRELAND LTD,NUPS14_30268,"126,812.23",Programme Template
BIS,Skills Funding Agency,13/08/2014,16-18 Apprenticeships - Non Centralised Contract Management,Main Funding,CONSORTIA TRAINING LIMITED,NUPS14_27463,"-565,555.38",Programme Template
BIS,Skills Funding Agency,13/08/2014,16-18 Apprenticeships - Non Centralised Contract Management,Main Funding,CONSORTIA TRAINING LIMITED,NUPS14_29948,"648,413.61",Programme Template
BIS,Skills Funding Agency,13/08/2014,16-18 Apprenticeships - Non Centralised Contract Management,Main Funding,CORDANT GROUP PLC,NUPS13_11519,"19,913.00",Programme Template
BIS,Skills Funding Agency,13/08/2014,16-18 Apprenticeships - Non Centralised Contract Management,Main Funding,CORDANT GROUP PLC,NUPS13_15334,"-19,913.00",Programme Template
BIS,Skills Funding Agency,13/08/2014,16-18 Apprenticeships - Non Centralised Contract Management,Main Funding,CORDANT GROUP PLC,NUPS13_17079,"-19,913.00",Programme Template
BIS,Skills Funding Agency,13/08/2014,16-18 Apprenticeships - Non Centralised Contract Management,Main Funding,CORDANT GROUP PLC,NUPS13_19487,"-19,913.00",Programme Template
BIS,Skills Funding Agency,13/08/2014,16-18 Apprenticeships - Non Centralised Contract Management,Main Funding,CORDANT GROUP PLC,NUPS13_21847,"9,459.60",Programme Template
BIS,Skills Funding Agency,13/08/2014,16-18 Apprenticeships - Non Centralised Contract Management,Main Funding,CORDANT GROUP PLC,NUPS13_26520,"-9,459.60",Programme Template
BIS,Skills Funding Agency,13/08/2014,16-18 Apprenticeships - Non Centralised Contract Management,Main Funding,CORDANT GROUP PLC,NUPS13_30653,"10,130.56",Programme Template
BIS,Skills Funding Agency,13/08/2014,16-18 Apprenticeships - Non Centralised Contract Management,Main Funding,CORDANT GROUP PLC,NUPS13_34794,"-10,130.56",Programme Template
BIS,Skills Funding Agency,13/08/2014,16-18 Apprenticeships - Non Centralised Contract Management,Main Funding,CORDANT GROUP PLC,NUPS13_37059,"15,720.69",Programme Template
BIS,Skills Funding Agency,13/08/2014,16-18 Apprenticeships - Non Centralised Contract Management,Main Funding,CORDANT GROUP PLC,NUPS13_40549,"-15,720.69",Programme Template
BIS,Skills Funding Agency,13/08/2014,16-18 Apprenticeships - Non Centralised Contract Management,Main Funding,CORDANT GROUP PLC,NUPS13_43033,"13,661.45",Programme Template
BIS,Skills Funding Agency,13/08/2014,16-18 Apprenticeships - Non Centralised Contract Management,Main Funding,CORDANT GROUP PLC,NUPS13_5704,"19,913.00",Programme Template
BIS,Skills Funding Agency,13/08/2014,16-18 Apprenticeships - Non Centralised Contract Management,Main Funding,CORDANT GROUP PLC,NUPS13_8649,"19,913.00",Programme Template
BIS,Skills Funding Agency,13/08/2014,16-18 Apprenticeships - Non Centralised Contract Management,Main Funding,CORDANT GROUP PLC,NUPS14_12471,"16,011.31",Programme Template
BIS,Skills Funding Agency,13/08/2014,16-18 Apprenticeships - Non Centralised Contract Management,Main Funding,CORDANT GROUP PLC,NUPS14_16430,"-16,011.31",Programme Template
BIS,Skills Funding Agency,13/08/2014,16-18 Apprenticeships - Non Centralised Contract Management,Main Funding,CORDANT GROUP PLC,NUPS14_18479,"18,331.87",Programme Template
BIS,Skills Funding Agency,13/08/2014,16-18 Apprenticeships - Non Centralised Contract Management,Main Funding,CORDANT GROUP PLC,NUPS14_22452,"-18,331.87",Programme Template
BIS,Skills Funding Agency,13/08/2014,16-18 Apprenticeships - Non Centralised Contract Management,Main Funding,CORDANT GROUP PLC,NUPS14_24911,"17,840.77",Programme Template
BIS,Skills Funding Agency,13/08/2014,16-18 Apprenticeships - Non Centralised Contract Management,Main Funding,CORDANT GROUP PLC,NUPS14_2651,"-13,661.45",Programme Template
BIS,Skills Funding Agency,13/08/2014,16-18 Apprenticeships - Non Centralised Contract Management,Main Funding,CORDANT GROUP PLC,NUPS14_27902,"-17,840.77",Programme Template
BIS,Skills Funding Agency,13/08/2014,16-18 Apprenticeships - Non Centralised Contract Management,Main Funding,CORDANT GROUP PLC,NUPS14_30396,"18,920.75",Programme Template
BIS,Skills Funding Agency,13/08/2014,16-18 Apprenticeships - Non Centralised Contract Management,Main Funding,CORDANT GROUP PLC,NUPS14_5859,"15,136.21",Programme Template
BIS,Skills Funding Agency,13/08/2014,16-18 Apprenticeships - Non Centralised Contract Management,Main Funding,CORDANT GROUP PLC,NUPS14_9210,"-15,136.21",Programme Template
BIS,Skills Funding Agency,13/08/2014,16-18 Apprenticeships - Non Centralised Contract Management,Main Funding,CORNWALL COLLEGE,NUPS14_27174,"-3,134,166.19",Programme Template
BIS,Skills Funding Agency,13/08/2014,16-18 Apprenticeships - Non Centralised Contract Management,Main Funding,CORNWALL COLLEGE,NUPS14_29671,"3,377,477.53",Programme Template
BIS,Skills Funding Agency,13/08/2014,16-18 Apprenticeships - Non Centralised Contract Management,Main Funding,COVENTRY & WARWICKSHIRE CHAMBERS OF COMMERCE TRAINING LIMITED,NUPS14_27340,"-922,094.37",Programme Template
BIS,Skills Funding Agency,13/08/2014,16-18 Apprenticeships - Non Centralised Contract Management,Main Funding,COVENTRY & WARWICKSHIRE CHAMBERS OF COMMERCE TRAINING LIMITED,NUPS14_29829,"1,041,509.36",Programme Template
BIS,Skills Funding Agency,13/08/2014,16-18 Apprenticeships - Non Centralised Contract Management,Main Funding,COVET LTD,NUPS14_27677,"-206,149.68",Programme Template
BIS,Skills Funding Agency,13/08/2014,16-18 Apprenticeships - Non Centralised Contract Management,Main Funding,COVET LTD,NUPS14_30172,"223,417.35",Programme Template
BIS,Skills Funding Agency,13/08/2014,16-18 Apprenticeships - Non Centralised Contract Management,Main Funding,CRACKERJACK TRAINING LTD,NUPS14_27397,"-736,091.46",Programme Template
BIS,Skills Funding Agency,13/08/2014,16-18 Apprenticeships - Non Centralised Contract Management,Main Funding,CRACKERJACK TRAINING LTD,NUPS14_29901,"771,377.77",Programme Template
BIS,Skills Funding Agency,13/08/2014,16-18 Apprenticeships - Non Centralised Contract Management,Main Funding,CRAVEN COLLEGE,NUPS14_27274,"-1,183,552.81",Programme Template
BIS,Skills Funding Agency,13/08/2014,16-18 Apprenticeships - Non Centralised Contract Management,Main Funding,CRAVEN COLLEGE,NUPS14_29757,"1,341,821.36",Programme Template
BIS,Skills Funding Agency,13/08/2014,16-18 Apprenticeships - Non Centralised Contract Management,Main Funding,CREATIVE PROCESS,NUPS14_27547,"-393,780.95",Programme Template
BIS,Skills Funding Agency,13/08/2014,16-18 Apprenticeships - Non Centralised Contract Management,Main Funding,CREATIVE PROCESS,NUPS14_30044,"428,724.75",Programme Template
BIS,Skills Funding Agency,13/08/2014,16-18 Apprenticeships - Non Centralised Contract Management,Main Funding,CROYDON COLLEGE,NUPS14_27540,"-406,096.78",Programme Template
BIS,Skills Funding Agency,13/08/2014,16-18 Apprenticeships - Non Centralised Contract Management,Main Funding,CROYDON COLLEGE,NUPS14_30035,"451,804.84",Programme Template
BIS,Skills Funding Agency,13/08/2014,16-18 Apprenticeships - Non Centralised Contract Management,Main Funding,CSM CONSULTING LTD,NUPS14_27940,"-3,460.07",Programme Template
BIS,Skills Funding Agency,13/08/2014,16-18 Apprenticeships - Non Centralised Contract Management,Main Funding,CSM CONSULTING LTD,NUPS14_30434,"4,232.98",Programme Template
BIS,Skills Funding Agency,13/08/2014,16-18 Apprenticeships - Non Centralised Contract Management,Main Funding,CTC KINGHURST ACADEMY,NUPS14_27710,"-165,749.54",Programme Template
BIS,Skills Funding Agency,13/08/2014,16-18 Apprenticeships - Non Centralised Contract Management,Main Funding,CTC KINGHURST ACADEMY,NUPS14_30224,"167,154.33",Programme Template
BIS,Skills Funding Agency,13/08/2014,16-18 Apprenticeships - Non Centralised Contract Management,Main Funding,CUMBRIA COUNTY COUNCIL,NUPS14_27864,"-42,006.82",Programme Template
BIS,Skills Funding Agency,13/08/2014,16-18 Apprenticeships - Non Centralised Contract Management,Main Funding,CUMBRIA COUNTY COUNCIL,NUPS14_30359,"45,091.45",Programme Template
BIS,Skills Funding Agency,13/08/2014,16-18 Apprenticeships - Non Centralised Contract Management,Main Funding,D M T BUSINESS SERVICES LTD,NUPS14_27516,"-462,540.82",Programme Template
BIS,Skills Funding Agency,13/08/2014,16-18 Apprenticeships - Non Centralised Contract Management,Main Funding,D M T BUSINESS SERVICES LTD,NUPS14_30005,"515,155.48",Programme Template
BIS,Skills Funding Agency,13/08/2014,16-18 Apprenticeships - Non Centralised Contract Management,Main Funding,DAMAR LTD,NUPS14_27396,"-736,652.51",Programme Template
BIS,Skills Funding Agency,13/08/2014,16-18 Apprenticeships - Non Centralised Contract Management,Main Funding,DAMAR LTD,NUPS14_29893,"806,249.62",Programme Template
BIS,Skills Funding Agency,13/08/2014,16-18 Apprenticeships - Non Centralised Contract Management,Main Funding,DARLINGTON BOROUGH COUNCIL,NUPS14_27718,"-161,991.37",Programme Template
BIS,Skills Funding Agency,13/08/2014,16-18 Apprenticeships - Non Centralised Contract Management,Main Funding,DARLINGTON BOROUGH COUNCIL,NUPS14_30211,"178,699.03",Programme Template
BIS,Skills Funding Agency,13/08/2014,16-18 Apprenticeships - Non Centralised Contract Management,Main Funding,DARLINGTON COLLEGE,NUPS14_27281,"-1,171,249.63",Programme Template
BIS,Skills Funding Agency,13/08/2014,16-18 Apprenticeships - Non Centralised Contract Management,Main Funding,DARLINGTON COLLEGE,NUPS14_29781,"1,258,978.33",Programme Template
BIS,Skills Funding Agency,13/08/2014,16-18 Apprenticeships - Non Centralised Contract Management,Main Funding,DART LTD,NUPS14_27466,"-562,435.04",Programme Template
BIS,Skills Funding Agency,13/08/2014,16-18 Apprenticeships - Non Centralised Contract Management,Main Funding,DART LTD,NUPS14_29957,"631,395.54",Programme Template
BIS,Skills Funding Agency,13/08/2014,16-18 Apprenticeships - Non Centralised Contract Management,Main Funding,DAVIDSON TRAINING UK LIMITED,NUPS14_27745,"-138,320.30",Programme Template
BIS,Skills Funding Agency,13/08/2014,16-18 Apprenticeships - Non Centralised Contract Management,Main Funding,DAVIDSON TRAINING UK LIMITED,NUPS14_30236,"154,324.00",Programme Template
BIS,Skills Funding Agency,13/08/2014,16-18 Apprenticeships - Non Centralised Contract Management,Main Funding,DAWN HODGE ASSOCIATES LTD,NUPS14_27617,"-298,303.59",Programme Template
BIS,Skills Funding Agency,13/08/2014,16-18 Apprenticeships - Non Centralised Contract Management,Main Funding,DAWN HODGE ASSOCIATES LTD,NUPS14_30111,"326,569.11",Programme Template
BIS,Skills Funding Agency,13/08/2014,16-18 Apprenticeships - Non Centralised Contract Management,Main Funding,DEARNE VALLEY COLLEGE,NUPS14_27580,"-347,003.33",Programme Template
BIS,Skills Funding Agency,13/08/2014,16-18 Apprenticeships - Non Centralised Contract Management,Main Funding,DEARNE VALLEY COLLEGE,NUPS14_30085,"375,746.57",Programme Template
BIS,Skills Funding Agency,13/08/2014,16-18 Apprenticeships - Non Centralised Contract Management,Main Funding,DERBY BUSINESS COLLEGE,NUPS14_27883,"-26,058.69",Programme Template
BIS,Skills Funding Agency,13/08/2014,16-18 Apprenticeships - Non Centralised Contract Management,Main Funding,DERBY BUSINESS COLLEGE,NUPS14_30379,"27,891.12",Programme Template
BIS,Skills Funding Agency,13/08/2014,16-18 Apprenticeships - Non Centralised Contract Management,Main Funding,DERBY CITY COUNCIL,NUPS14_27717,"-162,033.14",Programme Template
BIS,Skills Funding Agency,13/08/2014,16-18 Apprenticeships - Non Centralised Contract Management,Main Funding,DERBY CITY COUNCIL,NUPS14_30208,"180,394.50",Programme Template
BIS,Skills Funding Agency,13/08/2014,16-18 Apprenticeships - Non Centralised Contract Management,Main Funding,DERBY COLLEGE,NUPS14_27202,"-2,032,194.29",Programme Template
BIS,Skills Funding Agency,13/08/2014,16-18 Apprenticeships - Non Centralised Contract Management,Main Funding,DERBY COLLEGE,NUPS14_29697,"2,237,672.76",Programme Template
BIS,Skills Funding Agency,13/08/2014,16-18 Apprenticeships - Non Centralised Contract Management,Main Funding,DERBYSHIRE & NOTTINGHAMSHIRE CHAMBER OF COMMERCE & INDUSTRY,NUPS14_27476,"-539,516.63",Programme Template
BIS,Skills Funding Agency,13/08/2014,16-18 Apprenticeships - Non Centralised Contract Management,Main Funding,DERBYSHIRE & NOTTINGHAMSHIRE CHAMBER OF COMMERCE & INDUSTRY,NUPS14_29975,"587,360.30",Programme Template
BIS,Skills Funding Agency,13/08/2014,16-18 Apprenticeships - Non Centralised Contract Management,Main Funding,DERBYSHIRE COUNTY COUNCIL,NUPS14_27900,"-19,209.02",Programme Template
BIS,Skills Funding Agency,13/08/2014,16-18 Apprenticeships - Non Centralised Contract Management,Main Funding,DERBYSHIRE COUNTY COUNCIL,NUPS14_30398,"18,679.72",Programme Template
BIS,Skills Funding Agency,13/08/2014,16-18 Apprenticeships - Non Centralised Contract Management,Main Funding,DERBYSHIRE NETWORK,NUPS14_27559,"-374,060.74",Programme Template
BIS,Skills Funding Agency,13/08/2014,16-18 Apprenticeships - Non Centralised Contract Management,Main Funding,DERBYSHIRE NETWORK,NUPS14_30038,"441,392.88",Programme Template
BIS,Skills Funding Agency,13/08/2014,16-18 Apprenticeships - Non Centralised Contract Management,Main Funding,DERWEN COLLEGE,NUPS14_27933,"-5,774.80",Programme Template
BIS,Skills Funding Agency,13/08/2014,16-18 Apprenticeships - Non Centralised Contract Management,Main Funding,DERWEN COLLEGE,NUPS14_30429,"6,415.43",Programme Template
BIS,Skills Funding Agency,13/08/2014,16-18 Apprenticeships - Non Centralised Contract Management,Main Funding,DERWENTSIDE COLLEGE,NUPS14_27319,"-983,802.17",Programme Template
BIS,Skills Funding Agency,13/08/2014,16-18 Apprenticeships - Non Centralised Contract Management,Main Funding,DERWENTSIDE COLLEGE,NUPS14_29809,"1,081,940.50",Programme Template
BIS,Skills Funding Agency,13/08/2014,16-18 Apprenticeships - Non Centralised Contract Management,Main Funding,DEVON COUNTY COUNCIL,NUPS14_27948,"-2,098.62",Programme Template
BIS,Skills Funding Agency,13/08/2014,16-18 Apprenticeships - Non Centralised Contract Management,Main Funding,DEVON COUNTY COUNCIL,NUPS14_30444,"2,289.40",Programme Template
BIS,Skills Funding Agency,13/08/2014,16-18 Apprenticeships - Non Centralised Contract Management,Main Funding,DHL INTERNATIONAL UK LTD,NUPS14_27882,"-26,366.79",Programme Template
BIS,Skills Funding Agency,13/08/2014,16-18 Apprenticeships - Non Centralised Contract Management,Main Funding,DHL INTERNATIONAL UK LTD,NUPS14_30376,"29,516.83",Programme Template
BIS,Skills Funding Agency,13/08/2014,16-18 Apprenticeships - Non Centralised Contract Management,Main Funding,DIDAC LTD,NUPS14_27673,"-209,336.84",Programme Template
BIS,Skills Funding Agency,13/08/2014,16-18 Apprenticeships - Non Centralised Contract Management,Main Funding,DIDAC LTD,NUPS14_30166,"231,913.91",Programme Template
BIS,Skills Funding Agency,13/08/2014,16-18 Apprenticeships - Non Centralised Contract Management,Main Funding,DIMENSIONS TRAINING SOLUTIONS LTD,NUPS14_27468,"-558,803.83",Programme Template
BIS,Skills Funding Agency,13/08/2014,16-18 Apprenticeships - Non Centralised Contract Management,Main Funding,DIMENSIONS TRAINING SOLUTIONS LTD,NUPS14_29969,"608,726.24",Programme Template
BIS,Skills Funding Agency,13/08/2014,16-18 Apprenticeships - Non Centralised Contract Management,Main Funding,DONCASTER COLLEGE,NUPS14_27298,"-1,069,225.56",Programme Template
BIS,Skills Funding Agency,13/08/2014,16-18 Apprenticeships - Non Centralised Contract Management,Main Funding,DONCASTER COLLEGE,NUPS14_29790,"1,192,282.73",Programme Template
BIS,Skills Funding Agency,13/08/2014,16-18 Apprenticeships - Non Centralised Contract Management,Main Funding,DONCASTER METRO BOROUGH COUNCIL,NUPS14_27691,"-184,642.79",Programme Template
BIS,Skills Funding Agency,13/08/2014,16-18 Apprenticeships - Non Centralised Contract Management,Main Funding,DONCASTER METRO BOROUGH COUNCIL,NUPS14_30188,"197,451.77",Programme Template
BIS,Skills Funding Agency,13/08/2014,16-18 Apprenticeships - Non Centralised Contract Management,Main Funding,DONCASTER ROTHERHAM & DISTRICT MOTOR TRADES GROUP TRAINING ASSOCIATION LTD,NUPS14_27412,"-676,788.10",Programme Template
BIS,Skills Funding Agency,13/08/2014,16-18 Apprenticeships - Non Centralised Contract Management,Main Funding,DONCASTER ROTHERHAM & DISTRICT MOTOR TRADES GROUP TRAINING ASSOCIATION LTD,NUPS14_29911,"744,817.79",Programme Template
BIS,Skills Funding Agency,13/08/2014,16-18 Apprenticeships - Non Centralised Contract Management,Main Funding,DOOSAN BABCOCK LTD,NUPS14_27248,"-1,349,911.00",Programme Template
BIS,Skills Funding Agency,13/08/2014,16-18 Apprenticeships - Non Centralised Contract Management,Main Funding,DOOSAN BABCOCK LTD,NUPS14_29745,"1,486,522.00",Programme Template
BIS,Skills Funding Agency,13/08/2014,16-18 Apprenticeships - Non Centralised Contract Management,Main Funding,DUDLEY COLLEGE OF TECHNOLOGY,NUPS14_27167,"-3,530,437.28",Programme Template
BIS,Skills Funding Agency,13/08/2014,16-18 Apprenticeships - Non Centralised Contract Management,Main Funding,DUDLEY COLLEGE OF TECHNOLOGY,NUPS14_29662,"4,016,419.36",Programme Template
BIS,Skills Funding Agency,13/08/2014,16-18 Apprenticeships - Non Centralised Contract Management,Main Funding,DURHAM COUNTY COUNCIL,NUPS14_27851,"-48,884.91",Programme Template
BIS,Skills Funding Agency,13/08/2014,16-18 Apprenticeships - Non Centralised Contract Management,Main Funding,DURHAM COUNTY COUNCIL,NUPS14_30346,"55,027.90",Programme Template
BIS,Skills Funding Agency,13/08/2014,16-18 Apprenticeships - Non Centralised Contract Management,Main Funding,E TRAINING LTD,NUPS14_27807,"-92,405.57",Programme Template
BIS,Skills Funding Agency,13/08/2014,16-18 Apprenticeships - Non Centralised Contract Management,Main Funding,E TRAINING LTD,NUPS14_30297,"104,452.93",Programme Template
BIS,Skills Funding Agency,13/08/2014,16-18 Apprenticeships - Non Centralised Contract Management,Main Funding,EAGIT LTD,NUPS14_27460,"-575,699.27",Programme Template
BIS,Skills Funding Agency,13/08/2014,16-18 Apprenticeships - Non Centralised Contract Management,Main Funding,EAGIT LTD,NUPS14_29947,"649,977.40",Programme Template
BIS,Skills Funding Agency,13/08/2014,16-18 Apprenticeships - Non Centralised Contract Management,Main Funding,EALING HAMMERSMITH & WEST LONDON COLLEGE,NUPS14_27700,"-173,299.38",Programme Template
BIS,Skills Funding Agency,13/08/2014,16-18 Apprenticeships - Non Centralised Contract Management,Main Funding,EALING HAMMERSMITH & WEST LONDON COLLEGE,NUPS14_30186,"199,609.54",Programme Template
BIS,Skills Funding Agency,13/08/2014,16-18 Apprenticeships - Non Centralised Contract Management,Main Funding,EAST BERKSHIRE COLLEGE,NUPS14_27393,"-749,657.90",Programme Template
BIS,Skills Funding Agency,13/08/2014,16-18 Apprenticeships - Non Centralised Contract Management,Main Funding,EAST BERKSHIRE COLLEGE,NUPS14_29876,"842,038.84",Programme Template
BIS,Skills Funding Agency,13/08/2014,16-18 Apprenticeships - Non Centralised Contract Management,Main Funding,EAST DURHAM COLLEGE,NUPS14_27556,"-376,802.00",Programme Template
BIS,Skills Funding Agency,13/08/2014,16-18 Apprenticeships - Non Centralised Contract Management,Main Funding,EAST DURHAM COLLEGE,NUPS14_30047,"422,218.69",Programme Template
BIS,Skills Funding Agency,13/08/2014,16-18 Apprenticeships - Non Centralised Contract Management,Main Funding,EAST KENT COLLEGE,NUPS14_27618,"-298,068.30",Programme Template
BIS,Skills Funding Agency,13/08/2014,16-18 Apprenticeships - Non Centralised Contract Management,Main Funding,EAST KENT COLLEGE,NUPS14_30116,"319,883.40",Programme Template
BIS,Skills Funding Agency,13/08/2014,16-18 Apprenticeships - Non Centralised Contract Management,Main Funding,EAST LINDSEY INFORMATION TECHNOLOGY CENTRE,NUPS14_27554,"-378,780.14",Programme Template
BIS,Skills Funding Agency,13/08/2014,16-18 Apprenticeships - Non Centralised Contract Management,Main Funding,EAST LINDSEY INFORMATION TECHNOLOGY CENTRE,NUPS14_30046,"423,003.27",Programme Template
BIS,Skills Funding Agency,13/08/2014,16-18 Apprenticeships - Non Centralised Contract Management,Main Funding,EAST RIDING COLLEGE,NUPS14_27564,"-369,598.69",Programme Template
BIS,Skills Funding Agency,13/08/2014,16-18 Apprenticeships - Non Centralised Contract Management,Main Funding,EAST RIDING COLLEGE,NUPS14_30067,"392,458.06",Programme Template
BIS,Skills Funding Agency,13/08/2014,16-18 Apprenticeships - Non Centralised Contract Management,Main Funding,EAST RIDING OF YORKSHIRE COUNCIL,NUPS14_27819,"-80,102.87",Programme Template
BIS,Skills Funding Agency,13/08/2014,16-18 Apprenticeships - Non Centralised Contract Management,Main Funding,EAST RIDING OF YORKSHIRE COUNCIL,NUPS14_30314,"86,068.84",Programme Template
BIS,Skills Funding Agency,13/08/2014,16-18 Apprenticeships - Non Centralised Contract Management,Main Funding,EAST SURREY COLLEGE,NUPS14_27622,"-286,718.37",Programme Template
BIS,Skills Funding Agency,13/08/2014,16-18 Apprenticeships - Non Centralised Contract Management,Main Funding,EAST SURREY COLLEGE,NUPS14_30121,"309,125.19",Programme Template
BIS,Skills Funding Agency,13/08/2014,16-18 Apprenticeships - Non Centralised Contract Management,Main Funding,EASTLEIGH COLLEGE,NUPS14_27289,"-1,112,292.30",Programme Template
BIS,Skills Funding Agency,13/08/2014,16-18 Apprenticeships - Non Centralised Contract Management,Main Funding,EASTLEIGH COLLEGE,NUPS14_29786,"1,226,358.64",Programme Template
BIS,Skills Funding Agency,13/08/2014,16-18 Apprenticeships - Non Centralised Contract Management,Main Funding,EASTON & OTLEY COLLEGE,NUPS14_27353,"-855,573.90",Programme Template
BIS,Skills Funding Agency,13/08/2014,16-18 Apprenticeships - Non Centralised Contract Management,Main Funding,EASTON & OTLEY COLLEGE,NUPS14_29848,"930,378.56",Programme Template
BIS,Skills Funding Agency,13/08/2014,16-18 Apprenticeships - Non Centralised Contract Management,Main Funding,ECONOMIC SOLUTIONS LTD,NUPS14_27155,"-5,746,882.38",Programme Template
BIS,Skills Funding Agency,13/08/2014,16-18 Apprenticeships - Non Centralised Contract Management,Main Funding,ECONOMIC SOLUTIONS LTD,NUPS14_29652,"6,318,454.14",Programme Template
BIS,Skills Funding Agency,13/08/2014,16-18 Apprenticeships - Non Centralised Contract Management,Main Funding,EDEN TRAINING SOLUTIONS LTD,NUPS14_27615,"-302,451.51",Programme Template
BIS,Skills Funding Agency,13/08/2014,16-18 Apprenticeships - Non Centralised Contract Management,Main Funding,EDEN TRAINING SOLUTIONS LTD,NUPS14_30106,"334,861.28",Programme Template
BIS,Skills Funding Agency,13/08/2014,16-18 Apprenticeships - Non Centralised Contract Management,Main Funding,EDUCATION & TRAINING SKILLS LTD,NUPS14_27802,"-97,500.88",Programme Template
BIS,Skills Funding Agency,13/08/2014,16-18 Apprenticeships - Non Centralised Contract Management,Main Funding,EDUCATION & TRAINING SKILLS LTD,NUPS14_30292,"108,587.54",Programme Template
BIS,Skills Funding Agency,13/08/2014,16-18 Apprenticeships - Non Centralised Contract Management,Main Funding,EDUCATION & YOUTH SERVICES LTD,NUPS14_27694,"-180,470.09",Programme Template
BIS,Skills Funding Agency,13/08/2014,16-18 Apprenticeships - Non Centralised Contract Management,Main Funding,EDUCATION & YOUTH SERVICES LTD,NUPS14_30181,"210,723.58",Programme Template
BIS,Skills Funding Agency,13/08/2014,16-18 Apprenticeships - Non Centralised Contract Management,Main Funding,EEF LTD,NUPS14_27336,"-933,533.01",Programme Template
BIS,Skills Funding Agency,13/08/2014,16-18 Apprenticeships - Non Centralised Contract Management,Main Funding,EEF LTD,NUPS14_29834,"1,016,019.14",Programme Template
BIS,Skills Funding Agency,13/08/2014,16-18 Apprenticeships - Non Centralised Contract Management,Main Funding,ELATT,NUPS14_27862,"-44,608.99",Programme Template
BIS,Skills Funding Agency,13/08/2014,16-18 Apprenticeships - Non Centralised Contract Management,Main Funding,ELATT,NUPS14_30345,"55,066.87",Programme Template
BIS,Skills Funding Agency,13/08/2014,16-18 Apprenticeships - Non Centralised Contract Management,Main Funding,ENFIELD LONDON BOROUGH COUNCIL,NUPS14_27698,"-177,854.68",Programme Template
BIS,Skills Funding Agency,13/08/2014,16-18 Apprenticeships - Non Centralised Contract Management,Main Funding,ENFIELD LONDON BOROUGH COUNCIL,NUPS14_30195,"190,494.17",Programme Template
BIS,Skills Funding Agency,13/08/2014,16-18 Apprenticeships - Non Centralised Contract Management,Main Funding,ENGLAND & WALES CRICKET BOARD LTD,NUPS14_27619,"-293,544.74",Programme Template
BIS,Skills Funding Agency,13/08/2014,16-18 Apprenticeships - Non Centralised Contract Management,Main Funding,ENGLAND & WALES CRICKET BOARD LTD,NUPS14_30119,"310,386.63",Programme Template
BIS,Skills Funding Agency,13/08/2014,16-18 Apprenticeships - Non Centralised Contract Management,Main Funding,ENLIGHTENMENT PARTNERSHIP LIMITED,NUPS14_27608,"-308,978.14",Programme Template
BIS,Skills Funding Agency,13/08/2014,16-18 Apprenticeships - Non Centralised Contract Management,Main Funding,ENLIGHTENMENT PARTNERSHIP LIMITED,NUPS14_30103,"340,526.80",Programme Template
BIS,Skills Funding Agency,13/08/2014,16-18 Apprenticeships - Non Centralised Contract Management,Main Funding,EON UK PLC,NUPS14_27711,"-165,736.15",Programme Template
BIS,Skills Funding Agency,13/08/2014,16-18 Apprenticeships - Non Centralised Contract Management,Main Funding,EON UK PLC,NUPS14_30215,"175,987.31",Programme Template
BIS,Skills Funding Agency,13/08/2014,16-18 Apprenticeships - Non Centralised Contract Management,Main Funding,EPPING FOREST COLLEGE,NUPS14_27657,"-236,053.89",Programme Template
BIS,Skills Funding Agency,13/08/2014,16-18 Apprenticeships - Non Centralised Contract Management,Main Funding,EPPING FOREST COLLEGE,NUPS14_30144,"265,771.59",Programme Template
BIS,Skills Funding Agency,13/08/2014,16-18 Apprenticeships - Non Centralised Contract Management,Main Funding,EQL SOLUTIONS LTD,NUPS14_27269,"-1,197,558.54",Programme Template
BIS,Skills Funding Agency,13/08/2014,16-18 Apprenticeships - Non Centralised Contract Management,Main Funding,EQL SOLUTIONS LTD,NUPS14_29758,"1,339,697.33",Programme Template
BIS,Skills Funding Agency,13/08/2014,16-18 Apprenticeships - Non Centralised Contract Management,Main Funding,ESG (SKILLS) LIMITED,NUPS14_27164,"-4,059,135.02",Programme Template
BIS,Skills Funding Agency,13/08/2014,16-18 Apprenticeships - Non Centralised Contract Management,Main Funding,ESG (SKILLS) LIMITED,NUPS14_29658,"4,510,863.50",Programme Template
BIS,Skills Funding Agency,13/08/2014,16-18 Apprenticeships - Non Centralised Contract Management,Main Funding,ESSEX COUNTY COUNCIL,NUPS14_27806,"-92,625.43",Programme Template
BIS,Skills Funding Agency,13/08/2014,16-18 Apprenticeships - Non Centralised Contract Management,Main Funding,ESSEX COUNTY COUNCIL,NUPS14_30302,"100,961.71",Programme Template
BIS,Skills Funding Agency,13/08/2014,16-18 Apprenticeships - Non Centralised Contract Management,Main Funding,EXEMPLAS HOLDINGS LTD,NUPS14_27338,"-928,347.19",Programme Template
BIS,Skills Funding Agency,13/08/2014,16-18 Apprenticeships - Non Centralised Contract Management,Main Funding,EXEMPLAS HOLDINGS LTD,NUPS14_29836,"1,007,941.43",Programme Template
BIS,Skills Funding Agency,13/08/2014,16-18 Apprenticeships - Non Centralised Contract Management,Main Funding,EXETER COLLEGE,NUPS14_27211,"-1,877,095.11",Programme Template
BIS,Skills Funding Agency,13/08/2014,16-18 Apprenticeships - Non Centralised Contract Management,Main Funding,EXETER COLLEGE,NUPS14_29706,"2,050,664.10",Programme Template
BIS,Skills Funding Agency,13/08/2014,16-18 Apprenticeships - Non Centralised Contract Management,Main Funding,EXG LTD,NUPS14_27890,"-24,428.32",Programme Template
BIS,Skills Funding Agency,13/08/2014,16-18 Apprenticeships - Non Centralised Contract Management,Main Funding,EXG LTD,NUPS14_30388,"24,428.32",Programme Template
BIS,Skills Funding Agency,13/08/2014,16-18 Apprenticeships - Non Centralised Contract Management,Main Funding,FAREHAM COLLEGE,NUPS14_27348,"-872,100.66",Programme Template
BIS,Skills Funding Agency,13/08/2014,16-18 Apprenticeships - Non Centralised Contract Management,Main Funding,FAREHAM COLLEGE,NUPS14_29842,"959,788.11",Programme Template
BIS,Skills Funding Agency,13/08/2014,16-18 Apprenticeships - Non Centralised Contract Management,Main Funding,FAREPORT TRAINING ORGANISATION LTD,NUPS14_27505,"-475,420.98",Programme Template
BIS,Skills Funding Agency,13/08/2014,16-18 Apprenticeships - Non Centralised Contract Management,Main Funding,FAREPORT TRAINING ORGANISATION LTD,NUPS14_30010,"504,745.42",Programme Template
BIS,Skills Funding Agency,13/08/2014,16-18 Apprenticeships - Non Centralised Contract Management,Main Funding,FARNBOROUGH COLLEGE,NUPS14_27335,"-938,086.49",Programme Template
